Workbook

Sheet はじめに
D1: マクロ使用のための設定
D3: エクセル２０１０の場合
H4: まず、ファイルを選び・・・
H14: オプションを選択します・・・
K21: リボンのユーザー設定から・・・
K27: 開発にチェックを入れます。
D30: これでマクロの編集が可能になる開発タブが表示されるようになります。
D32: エクセル２００７の場合
D34: オフィスボタンを選び・・・
D50: エクセルのオプションを選択します・・・
K54: 基本設定から・・・
K57: 開発タブをリボンに表示する（D)
K58: にチェックを入れます。
D63: これで２００７の設定も半分終了。これからは２０１０とほぼ同じ画面になります。
D65: ２００７・２０１０共通
D66: セキュリティセンター → セキュリティセンターの設定を選びます。
J82: マクロの設定を選びます。
K90: 警告を表示してすべてのマクロを
K91: 無効にする（L) を選びます。
D98: ここまで終わったら、OKをクリックして一度エクセルを終了します。
D104: 再度エクセルを立ち上げるとセキュリティの警告が出ます。
D105: コンテンツの有効化を選んでください。
D115: これで準備完了です。
D116: この作業により、このプログラムは自由に動くようになります。
D119: このページは削除してもプログラムに影響はありません。

Sheet マスタ変更
D5: マスター変更シート
D6: こちらのシートの変更は慎重に行ってください。
O7: 世帯状況 | P7: 独居 | Q7: 0 | R7: 在宅で家族介護 | S7: 0 | T7: ７５歳以上 老々介護 | U7: 0 | V7: 施設 入所 入院中 | W7: 0
P8: 0 | Q8: 0 | R8: 0 | S8: 0 | T8: 0 | U8: 0 | V8: 0 | W8: 0
P9: 介護者 不在 | R9: 主介護者 障害疾病 など | S9: 0 | T9: 就労 のため 介護困難 | U9: 0 | V9: 育児のため 介護困難 | X9: 障害者 複数介護 | Y9: 0 | Z9: 退院等を 迫られ ている | AB9: 遠距離 訪問介護 | AC9: 0
R10: 0 | S10: 0 | T10: 0 | U10: 0 | X10: 0 | Y10: 0 | AB10: 0 | AC10: 0
C12: 医療関連 | F12: インシュリン投与 | G12: 0 | H12: 0 | I12: 在宅酸素療法 | L12: 胃瘻 | O12: 喀痰吸引 | R12: 褥瘡処置
F13: 人工肛門処置 | I13: 腸瘻 | L13: 膀胱洗浄 | O13: 導尿 | R13: ＩＶＨ | U13: 透析 | X13: 尿カテーテル | AA13: 看取り
C14: 筋力低下 麻痺等 | F14: 右手 | H14: - | I14: 弱 | J14: 中 | K14: 強 | L14: 左手 | N14: - | O14: 弱 | P14: 中 | Q14: 強 | R14: 右足 | T14: - | U14: 弱 | V14: 中 | W14: 強 | X14: 左足 | Z14: - | AA14: 弱 | AB14: 中 | AC14: 強
C15: 歩行・立位 | F15: 安定歩行 | G15: 0 | H15: 0 | I15: なんとか歩く | L15: つかまり立つ 支えれば歩く | M15: 0 | N15: 0 | O15: つかまれば 移乗できる | P15: 0 | Q15: 0 | R15: 支持すれば 立てる | S15: 0 | T15: 0 | U15: 引き上げて なんとか立つ | V15: 0 | W15: 0 | X15: 保持して やっと立つ | Y15: 0 | Z15: 0 | AA15: できない | AB15: 0 | AC15: 0
C16: 尿意 | F16: ある | G16: 0 | H16: 0 | I16: 曖昧 | J16: 0 | K16: 0 | L16: なし | M16: 0 | N16: 0 | O16: 便意 | R16: ある | S16: 0 | T16: 0 | U16: 曖昧 | V16: 0 | W16: 0 | X16: なし | Y16: 0 | Z16: 0 | AA16: 人工肛門 尿カテーテル | AB16: 0 | AC16: 0
C17: 排泄（日中） | F17: 自分で行く | G17: 0 | H17: 0 | I17: 失敗あるが 自分でする | J17: 0 | K17: 0 | L17: 脱衣介助 一部介助 | O17: お尻を拭く 体の支持 | P17: 0 | Q17: 0 | R17: 抱えて移乗 ほぼ全介助 | S17: 0 | T17: 0 | U17: 寝たまま おむつ交換 | V17: 0 | W17: 0
C18: 排泄（夜間） | F18: 自分で行く | G18: 0 | H18: 0 | I18: 失敗あるが 自分でする | J18: 0 | K18: 0 | L18: 脱衣介助 一部介助 | M18: 0 | N18: 0 | O18: お尻を拭く 体の支持 | P18: 0 | Q18: 0 | R18: 抱えて移乗 ほぼ全介助 | S18: 0 | T18: 0 | U18: 寝たまま おむつ交換 | V18: 0 | W18: 0
C19: 食事介助 | F19: 常食 | G19: 0 | H19: 0 | I19: 刻み食 柔らか食 | J19: 0 | K19: 0 | L19: ミキサー食 | M19: 0 | N19: 0 | O19: 経管栄養 | R19: 半介助 | U19: ほぼ全介助
C20: 物盗られ妄想 被害妄想 | F20: ときどき | G20: 0 | H20: よくある | I20: 0 | J20: 耐え難い | K20: 0 | L20: 幻覚 幻聴 | O20: ときどき | P20: 0 | Q20: よくある | R20: 0 | S20: 耐え難い | T20: 0 | U20: 異食・収集 | X20: ときどき | Y20: 0 | Z20: よくある | AA20: 0 | AB20: 耐え難い | AC20: 0
C21: 精神科症状 うつなど | F21: ときどき | G21: 0 | H21: よくある | I21: 0 | J21: 耐え難い | K21: 0 | L21: 不眠行動 昼夜逆転 | O21: ときどき | P21: 0 | Q21: よくある | R21: 0 | S21: 耐え難い | T21: 0 | U21: 激しい抵抗 暴力行為 | X21: ときどき | Y21: 0 | Z21: よくある | AA21: 0 | AB21: 耐え難い | AC21: 0
C22: 同じ話や 行動繰り返し | F22: ときどき | G22: 0 | H22: よくある | I22: 0 | J22: 耐え難い | K22: 0 | L22: 大声 不快な音 | O22: ときどき | P22: 0 | Q22: よくある | R22: 0 | S22: 耐え難い | T22: 0 | U22: 徘徊 外に出たがる | X22: ときどき | Y22: 0 | Z22: よくある | AA22: 0 | AB22: 耐え難い | AC22: 0
C23: 不潔行為 弄便・放尿 | F23: ときどき | G23: 0 | H23: よくある | I23: 0 | J23: 耐え難い | K23: 0 | L23: 危険行為 火の不始末 | O23: ときどき | P23: 0 | Q23: よくある | R23: 0 | S23: 耐え難い | T23: 0 | U23: セクハラ行為 いじる・壊す | X23: ときどき | Y23: 0 | Z23: よくある | AA23: 0 | AB23: 耐え難い | AC23: 0
C24: その他の問題
C25: 日中の 過ごし方 | F25: 近所なら 自由に行動 | G25: 0 | H25: 0 | I25: 家の中なら 自由に行動 | J25: 0 | K25: 0 | L25: 起きて生活 屋外は補助 | M25: 0 | N25: 0 | O25: 伝い歩き 寝たり起きたり | P25: 0 | Q25: 0 | R25: 介助あれば 起きて生活 | S25: 0 | T25: 0 | U25: 介助により 寝たり起きたり | V25: 0 | W25: 0 | X25: 寝室中心 の生活 | Y25: 0 | Z25: 0 | AA25: 離床しない | AB25: 0 | AC25: 0
C26: 聴力 | F26: 問題なし | G26: 0 | H26: 0 | I26: 遠い | J26: 0 | K26: 0 | L26: ひどく遠い | M26: 0 | N26: 0 | O26: 聴力なし 確認できない | P26: 0 | Q26: 0 | R26: 視力 | U26: 年齢相応 | V26: 0 | W26: 0 | X26: かなり悪い 半盲 | Y26: 0 | Z26: 0 | AA26: 失明 | AB26: 0 | AC26: 0
C27: 意思疎通 | F27: 問題なし | G27: 0 | H27: 0 | I27: なんとか通じる | J27: 0 | K27: 0 | L27: かなり厳しい | O27: ほぼ不可能 | P27: 0 | Q27: 0 | R27: 錯乱状態 | S27: 0 | T27: 0
F28: 0 | G28: 0 | H28: 0 | I28: 0 | J28: 0 | K28: 0 | O28: 0 | P28: 0 | Q28: 0 | R28: 0 | S28: 0 | T28: 0
C30: 既往歴 | F30: 脳梗塞 | I30: 心臓疾患 | L30: 糖尿病 | O30: 癌 | R30: 認知症 | U30: 脳挫傷 | X30: 緑内障 | AA30: 大腿部骨折
F31: 脳内出血 | I31: 呼吸器系疾患 | L31: 腎臓疾患 | O31: リューマチ | R31: うつ病 | U31: 胆石 | X31: 白内障 | AA31: 脊髄等損傷
F32: 高血圧症 | I32: 喘息 | L32: 肝炎・肝硬変 | O32: パーキンソン | R32: 統合失調症 | U32: 尿管結石等 | X32: 結核 | AA32: 変形性膝関節症

Sheet 配点表
B2: 配点表 | C2: このページの配点により、入所順位の参考となる点数が計算されます。配点を変えても呼出して再び転記を行うことで再計算がされます。
B4: 世帯状況 | C4: =マスタ変更!P7 -> 独居 | D4: =マスタ変更!R7 -> 在宅で家族介護 | E4: =マスタ変更!T7 -> ７５歳以上 老々介護 | F4: =マスタ変更!V7 -> 施設 入所 入院中 | G4: =マスタ変更!P9 -> 介護者 不在 | H4: =マスタ変更!R9 -> 主介護者 障害疾病 など | I4: =マスタ変更!T9 -> 就労 のため 介護困難 | J4: =マスタ変更!V9 -> 育児のため 介護困難 | K4: =マスタ変更!X9 -> 障害者 複数介護 | L4: =マスタ変更!Z9 -> 退院等を 迫られ ている | M4: =マスタ変更!AB9 -> 遠距離 訪問介護
C5: 9 | D5: 3 | E5: 6 | F5: 0 | G5: 9 | H5: 3 | I5: 5 | J5: 4 | K5: 5 | L5: 1 | M5: 3
B7: 医療関連 | C7: =マスタ変更!F12 -> インシュリン投与 | D7: =マスタ変更!I12 -> 在宅酸素療法 | E7: =マスタ変更!L12 -> 胃瘻 | F7: =マスタ変更!O12 -> 喀痰吸引 | G7: =マスタ変更!R12 -> 褥瘡処置 | I7: =マスタ変更!F13 -> 人工肛門処置 | J7: =マスタ変更!I13 -> 腸瘻 | K7: =マスタ変更!L13 -> 膀胱洗浄 | L7: =マスタ変更!O13 -> 導尿 | M7: =マスタ変更!R13 -> ＩＶＨ | N7: =マスタ変更!U13 -> 透析 | O7: =マスタ変更!X13 -> 尿カテーテル | P7: =マスタ変更!AA13 -> 看取り
C8: 2 | D8: 2 | E8: 3 | F8: 2 | G8: 1 | I8: 1 | J8: 2 | K8: 2 | L8: 3 | M8: 4 | N8: 4 | O8: 1 | P8: 4
B10: 筋力低下 麻痺等 | C10: =マスタ変更!F14 -> 右手 | D10: =マスタ変更!H14 -> - | E10: =マスタ変更!I14 -> 弱 | F10: =マスタ変更!J14 -> 中 | G10: =マスタ変更!K14 -> 強 | H10: =マスタ変更!L14 -> 左手 | I10: =マスタ変更!N14 -> - | J10: =マスタ変更!O14 -> 弱 | K10: =マスタ変更!P14 -> 中 | L10: =マスタ変更!Q14 -> 強 | M10: =マスタ変更!R14 -> 右足 | N10: =マスタ変更!T14 -> - | O10: =マスタ変更!U14 -> 弱 | P10: =マスタ変更!V14 -> 中 | Q10: =マスタ変更!W14 -> 強 | R10: =マスタ変更!X14 -> 左足 | S10: =マスタ変更!Z14 -> - | T10: =マスタ変更!AA14 -> 弱 | U10: =マスタ変更!AB14 -> 中 | V10: =マスタ変更!AC14 -> 強
D11: 0 | E11: 2 | F11: 3 | G11: 4 | I11: 0 | J11: 1 | K11: 2 | L11: 3 | N11: 0 | O11: 2 | P11: 4 | Q11: 6 | S11: 0 | T11: 2 | U11: 4 | V11: 6
B13: =マスタ変更!C15 -> 歩行・立位 | C13: =マスタ変更!F15 -> 安定歩行 | D13: =マスタ変更!I15 -> なんとか歩く | E13: =マスタ変更!L15 -> つかまり立つ 支えれば歩く | F13: =マスタ変更!O15 -> つかまれば 移乗できる | G13: =マスタ変更!R15 -> 支持すれば 立てる | H13: =マスタ変更!U15 -> 引き上げて なんとか立つ | I13: =マスタ変更!X15 -> 保持して やっと立つ | J13: =マスタ変更!AA15 -> できない
C14: 0 | D14: 2 | E14: 4 | F14: 6 | G14: 8 | H14: 10 | I14: 12 | J14: 10
B16: =マスタ変更!C16 -> 尿意 | C16: =マスタ変更!F16 -> ある | D16: =マスタ変更!I16 -> 曖昧 | E16: =マスタ変更!L16 -> なし | F16: 便意 | G16: =マスタ変更!R16 -> ある | H16: =マスタ変更!U16 -> 曖昧 | I16: =マスタ変更!X16 -> なし | J16: =マスタ変更!AA16 -> 人工肛門 尿カテーテル
C17: 0 | D17: 1 | E17: 2 | G17: 0 | H17: 2 | I17: 4 | J17: 1
B19: =マスタ変更!C17 -> 排泄（日中） | C19: =マスタ変更!F17 -> 自分で行く | D19: =マスタ変更!I17 -> 失敗あるが 自分でする | E19: =マスタ変更!L17 -> 脱衣介助 一部介助 | F19: =マスタ変更!O17 -> お尻を拭く 体の支持 | G19: =マスタ変更!R17 -> 抱えて移乗 ほぼ全介助 | H19: =マスタ変更!U17 -> 寝たまま おむつ交換
C20: 0 | D20: 2 | E20: 4 | F20: 6 | G20: 10 | H20: 8
B22: =マスタ変更!C18 -> 排泄（夜間） | C22: =マスタ変更!F18 -> 自分で行く | D22: =マスタ変更!I18 -> 失敗あるが 自分でする | E22: =マスタ変更!L18 -> 脱衣介助 一部介助 | F22: =マスタ変更!O18 -> お尻を拭く 体の支持 | G22: =マスタ変更!R18 -> 抱えて移乗 ほぼ全介助 | H22: =マスタ変更!U18 -> 寝たまま おむつ交換 | J22: 排泄介助 昼 | L22: 排泄介助 夜
C23: 0 | D23: 3 | E23: 5 | F23: 7 | G23: 11 | H23: 9 | J23: １回1点 最高５点 | L23: １回３点 最高９点
B25: =マスタ変更!C19 -> 食事介助 | C25: =マスタ変更!F19 -> 常食 | D25: =マスタ変更!I19 -> 刻み食 柔らか食 | E25: =マスタ変更!L19 -> ミキサー食 | F25: =マスタ変更!O19 -> 経管栄養 | G25: =マスタ変更!R19 -> 半介助 | H25: =マスタ変更!U19 -> ほぼ全介助 | J25: 食事時間 | L25: 体重
C26: 0 | D26: 1 | E26: 2 | F26: 3 | G26: 4 | H26: 5 | J26: 10分1点 最高６点 | L26: 50Kg以上は10Kgで1点
B28: =マスタ変更!C20 -> 物盗られ妄想 被害妄想 | C28: =マスタ変更!F20 -> ときどき | D28: =マスタ変更!H20 -> よくある | E28: =マスタ変更!J20 -> 耐え難い | F28: =マスタ変更!L20 -> 幻覚 幻聴 | G28: =マスタ変更!O20 -> ときどき | H28: =マスタ変更!Q20 -> よくある | I28: =マスタ変更!S20 -> 耐え難い | J28: =マスタ変更!U20 -> 異食・収集 | K28: =マスタ変更!X20 -> ときどき | L28: =マスタ変更!Z21 -> よくある | M28: =マスタ変更!AB20 -> 耐え難い
C29: 2 | D29: 3 | E29: 4 | G29: 2 | H29: 4 | I29: 6 | K29: 1 | L29: 3 | M29: 5
B31: =マスタ変更!C21 -> 精神科症状 うつなど | C31: =マスタ変更!F21 -> ときどき | D31: =マスタ変更!H21 -> よくある | E31: =マスタ変更!J21 -> 耐え難い | F31: =マスタ変更!L21 -> 不眠行動 昼夜逆転 | G31: =マスタ変更!O21 -> ときどき | H31: =マスタ変更!Q21 -> よくある | I31: =マスタ変更!S21 -> 耐え難い | J31: =マスタ変更!U21 -> 激しい抵抗 暴力行為 | K31: =マスタ変更!X21 -> ときどき | L31: =マスタ変更!Z21 -> よくある | M31: =マスタ変更!AB21 -> 耐え難い
C32: 1 | D32: 3 | E32: 5 | G32: 1 | H32: 2 | I32: 3 | K32: 1 | L32: 3 | M32: 5
B34: =マスタ変更!C22 -> 同じ話や 行動繰り返し | C34: =マスタ変更!F22 -> ときどき | D34: =マスタ変更!H22 -> よくある | E34: =マスタ変更!J22 -> 耐え難い | F34: =マスタ変更!L22 -> 大声 不快な音 | G34: =マスタ変更!O22 -> ときどき | H34: =マスタ変更!Q22 -> よくある | I34: =マスタ変更!S22 -> 耐え難い | J34: =マスタ変更!U22 -> 徘徊 外に出たがる | K34: =マスタ変更!X22 -> ときどき | L34: =マスタ変更!Z22 -> よくある | M34: =マスタ変更!AB22 -> 耐え難い
C35: 1 | D35: 3 | E35: 5 | G35: 1 | H35: 3 | I35: 5 | K35: 3 | L35: 6 | M35: 9
B37: =マスタ変更!C23 -> 不潔行為 弄便・放尿 | C37: =マスタ変更!F23 -> ときどき | D37: =マスタ変更!H23 -> よくある | E37: =マスタ変更!J23 -> 耐え難い | F37: =マスタ変更!L23 -> 危険行為 火の不始末 | G37: =マスタ変更!O23 -> ときどき | H37: =マスタ変更!Q23 -> よくある | I37: =マスタ変更!S23 -> 耐え難い | J37: =マスタ変更!U23 -> セクハラ行為 いじる・壊す | K37: =マスタ変更!X23 -> ときどき | L37: =マスタ変更!Z23 -> よくある | M37: =マスタ変更!AB23 -> 耐え難い
C38: 2 | D38: 4 | E38: 6 | G38: 1 | H38: 2 | I38: 4 | K38: 1 | L38: 2 | M38: 4
B40: =マスタ変更!C25 -> 日中の 過ごし方 | C40: =マスタ変更!F25 -> 近所なら 自由に行動 | D40: =マスタ変更!I25 -> 家の中なら 自由に行動 | E40: =マスタ変更!L25 -> 起きて生活 屋外は補助 | F40: =マスタ変更!O25 -> 伝い歩き 寝たり起きたり | G40: =マスタ変更!R25 -> 介助あれば 起きて生活 | H40: =マスタ変更!U25 -> 介助により 寝たり起きたり | I40: =マスタ変更!X25 -> 寝室中心 の生活 | J40: =マスタ変更!AA25 -> 離床しない
C41: 0 | D41: 1 | E41: 1 | F41: 2 | G41: 3 | H41: 4 | I41: 5 | J41: 6
B43: =マスタ変更!C26 -> 聴力 | C43: =マスタ変更!F26 -> 問題なし | D43: =マスタ変更!I26 -> 遠い | E43: =マスタ変更!L26 -> ひどく遠い | F43: =マスタ変更!O26 -> 聴力なし 確認できない | G43: =マスタ変更!R26 -> 視力 | H43: =マスタ変更!U26 -> 年齢相応 | I43: =マスタ変更!X26 -> かなり悪い 半盲 | J43: =マスタ変更!AA26 -> 失明
C44: 0 | D44: 1 | E44: 2 | F44: 3 | H44: 0 | I44: 2 | J44: 6
B46: =マスタ変更!C27 -> 意思疎通 | C46: =マスタ変更!F27 -> 問題なし | D46: =マスタ変更!I27 -> なんとか通じる | E46: =マスタ変更!L27 -> かなり厳しい | F46: =マスタ変更!O27 -> ほぼ不可能 | G46: =マスタ変更!R27 -> 錯乱状態 | I46: 介護度 ３．４．５ 以外
C47: 0 | D47: 1 | E47: 2 | F47: 3 | G47: 4 | I47: 0.85

Sheet 削除台帳
C1: =NOW() -> 2014-11-02T18:12:19.670 | I1: 削除番号 | K1: 削除者氏名
C2: 削除者名簿 | F2: 削除 | K2: =IF(I2="","",VLOOKUP(I2,B4:DL505,3)) -> 
B4: 0 | C4: 日付 | D4: =記録台帳!F4 -> 本人氏名 | E4: =記録台帳!G4 -> フリガナ | F4: 削除理由 | G4: =記録台帳!I4 -> 〒 | H4: =記録台帳!J4 -> 住所 | I4: =記録台帳!K4 -> 電話 | J4: =記録台帳!L4 -> 生 年 月 日 | K4: =記録台帳!M4 -> 介護度 | L4: =記録台帳!N4 -> 介護保険証被保険者番号 | M4: =記録台帳!O4 -> 保険者市町村名 | N4: =記録台帳!P4 -> 連絡先 家族氏名 | O4: =記録台帳!Q4 -> 予備 | P4: =記録台帳!R4 -> 続柄 | Q4: =記録台帳!S4 -> 〒 | R4: =記録台帳!T4 -> 住所 | S4: =記録台帳!U4 -> 電話 | T4: =記録台帳!V4 -> 携帯 | U4: =記録台帳!W4 -> 概況報告 | V4: =記録台帳!X4 -> 独居 | W4: =記録台帳!Y4 -> 自宅 介護 | X4: =記録台帳!Z4 -> 施設 入所 入院中 | Y4: =記録台帳!AA4 -> 施設 入所 入院中 | Z4: =記録台帳!AB4 -> 予備 | AA4: =記録台帳!AC4 -> 介護者 なし | AB4: =記録台帳!AD4 -> 主介護者 高齢障害 疾病など | AC4: =記録台帳!AE4 -> 就労 のため 介護困難 | AD4: =記録台帳!AF4 -> 身体的 精神的 負担大 | AE4: =記録台帳!AG4 -> 居住環境 事情から 介護困難 | AF4: =記録台帳!AH4 -> 退去を 求められ ている | AG4: =記録台帳!AI4 -> 障害者 複数世帯 | AH4: =記録台帳!AJ4 -> 介護（協力）者の人数・続柄・頻度など | AI4: =記録台帳!AK4 -> 同居家族が介護協力困難である具体的理由 | AJ4: =記録台帳!AL4 -> 非同居家族が介護協力困難である具体的理由・居住地 | AK4: =記録台帳!AM4 -> 居宅介護支援事業所 | AL4: =記録台帳!AN4 -> ショートステイ | AM4: =記録台帳!AO4 -> 事業所名 | AN4: =記録台帳!AP4 -> デイケア・デイサービス | AO4: =記録台帳!AQ4 -> 事業所名 | AP4: =記録台帳!AR4 -> 訪問看護・ヘルパー | AQ4: =記録台帳!AS4 -> 事業所名 | AR4: =記録台帳!AT4 -> その他 | AS4: =記録台帳!AU4 -> 既往歴 持病・障害 入院経緯 | AT4: =記録台帳!AV4 -> 主事病院 | AU4: =記録台帳!AW4 -> インシュリン投与 | AV4: =記録台帳!AX4 -> 在宅酸素療法 | AW4: =記録台帳!AY4 -> 経管栄養 | AX4: =記録台帳!AZ4 -> 喀痰吸引 | AY4: =記録台帳!BA4 -> 褥瘡処置 | AZ4: =記録台帳!BB4 -> 部位等 | BA4: =記録台帳!BC4 -> - | BB4: =記録台帳!BD4 -> 弱 | BC4: =記録台帳!BE4 -> 中 | BD4: =記録台帳!BF4 -> 強 | BE4: =記録台帳!BG4 -> - | BF4: =記録台帳!BH4 -> 弱 | BG4: =記録台帳!BI4 -> 中 | BH4: =記録台帳!BJ4 -> 強 | BI4: =記録台帳!BK4 -> - | BJ4: =記録台帳!BL4 -> 弱 | BK4: =記録台帳!BM4 -> 中 | BL4: =記録台帳!BN4 -> 強 | BM4: =記録台帳!BO4 -> - | BN4: =記録台帳!BP4 -> 弱 | BO4: =記録台帳!BQ4 -> 中 | BP4: =記録台帳!BR4 -> 強 | BQ4: =記録台帳!BS4 -> 安定歩行 | BR4: =記録台帳!BT4 -> シルバーカー 歩行器 | BS4: =記録台帳!BU4 -> つきそい支持 手引き歩行 | BT4: =記録台帳!BV4 -> 車椅子自力 移譲・移動 | BU4: =記録台帳!BW4 -> 移乗支援 自力移動 | BV4: =記録台帳!BX4 -> 抱えて移乗 自力移動 | BW4: =記録台帳!BY4 -> 抱えて移乗 移動介助 | BX4: =記録台帳!BZ4 -> 寝たきり ストレッチャー | BY4: =記録台帳!CA4 -> ある | BZ4: =記録台帳!CB4 -> なし | CA4: =記録台帳!CC4 -> 曖昧 | CB4: =記録台帳!CD4 -> ある | CC4: =記録台帳!CE4 -> なし | CD4: =記録台帳!CF4 -> 曖昧 | CE4: =記録台帳!CG4 -> 人工肛門 尿カテーテル | CF4: =記録台帳!#REF! ->  | CG4: =記録台帳!#REF! ->  | CH4: =記録台帳!#REF! ->  | CI4: =記録台帳!#REF! ->  | CJ4: =記録台帳!#REF! ->  | CK4: =記録台帳!#REF! ->  | CL4: =記録台帳!CN4 -> 介助 頻度 | CM4: =記録台帳!CH4 -> 自分で行く | CN4: =記録台帳!CI4 -> 失敗あるが 自分でする | CO4: =記録台帳!CJ4 -> 脱衣介助 一部介助 | CP4: =記録台帳!CK4 -> お尻を拭く 体の支持 | CQ4: =記録台帳!CL4 -> 抱えて移乗 ほぼ全介助 | CR4: =記録台帳!CM4 -> 寝たまま おむつ交換 | CS4: =記録台帳!CU4 -> 介助 頻度 | CT4: =記録台帳!CV4 -> 常食 | CU4: =記録台帳!CW4 -> おかゆ 柔らか食 | CV4: =記録台帳!CX4 -> ミキサー食 | CW4: =記録台帳!CY4 -> 経管栄養 | CX4: =記録台帳!CZ4 -> 半介助 | CY4: =記録台帳!DA4 -> ほぼ全介助 | CZ4: =記録台帳!DB4 -> 直接介助に かかる時間 | DA4: =記録台帳!DC4 -> ときどき | DB4: =記録台帳!DD4 -> よくある | DC4: =記録台帳!DE4 -> 耐え難い | DD4: =記録台帳!DF4 -> ときどき | DE4: =記録台帳!DG4 -> よくある | DF4: =記録台帳!DH4 -> 耐え難い | DG4: =記録台帳!DI4 -> ときどき | DH4: =記録台帳!DJ4 -> よくある | DI4: =記録台帳!DK4 -> 耐え難い | DJ4: =記録台帳!DL4 -> ときどき | DK4: =記録台帳!DM4 -> よくある | DL4: =記録台帳!DN4 -> 耐え難い | DM4: =記録台帳!DO4 -> ときどき | DN4: =記録台帳!DP4 -> よくある | DO4: =記録台帳!DQ4 -> 耐え難い | DP4: =記録台帳!DR4 -> ときどき | DQ4: =記録台帳!DS4 -> よくある | DR4: =記録台帳!DT4 -> 耐え難い | DS4: =記録台帳!DU4 -> ときどき | DT4: =記録台帳!DV4 -> よくある | DU4: =記録台帳!DW4 -> 耐え難い | DV4: =記録台帳!DX4 -> ときどき | DW4: =記録台帳!DY4 -> よくある | DX4: =記録台帳!DZ4 -> 耐え難い | DY4: =記録台帳!EA4 -> ときどき | DZ4: =記録台帳!EB4 -> よくある | EA4: =記録台帳!EC4 -> 耐え難い | EB4: =記録台帳!ED4 -> ときどき | EC4: =記録台帳!EE4 -> よくある | ED4: =記録台帳!EF4 -> 耐え難い | EE4: =記録台帳!EG4 -> ときどき | EF4: =記録台帳!EH4 -> よくある | EG4: =記録台帳!EI4 -> 耐え難い | EH4: =記録台帳!EJ4 -> 良い | EI4: =記録台帳!EK4 -> やや悪い | EJ4: =記録台帳!EL4 -> 悪い | EK4: =記録台帳!EM4 -> その他の問題 | EL4: =記録台帳!EN4 -> 近所なら 自由に行動 | EM4: =記録台帳!EO4 -> 家の中なら 自由に行動 | EN4: =記録台帳!EP4 -> 起きて生活 屋外は補助 | EO4: =記録台帳!EQ4 -> 伝い歩き 寝たり起きたり | EP4: =記録台帳!ER4 -> 介助あれば 起きて生活 | EQ4: =記録台帳!ES4 -> 介助により 寝たり起きたり | ER4: =記録台帳!ET4 -> 寝室中心 の生活 | ES4: =記録台帳!EU4 -> 離床しない | ET4: =記録台帳!EV4 -> 問題なし | EU4: =記録台帳!EW4 -> 遠い | EV4: =記録台帳!EX4 -> ひどく遠い | EW4: =記録台帳!EY4 -> 聴力なし 確認できない | EX4: =記録台帳!EZ4 -> 年齢相応 | EY4: =記録台帳!FA4 -> かなり悪い 半盲 | EZ4: =記録台帳!FB4 -> 失明 | FA4: =記録台帳!FC4 -> 問題なし | FB4: =記録台帳!FD4 -> なんとか通じる | FC4: =記録台帳!FE4 -> かなり厳しい | FD4: =記録台帳!FF4 -> ほぼ不可能 | FE4: =記録台帳!FG4 -> 錯乱状態 | FF4: =記録台帳!FH4 -> 身長 | FG4: =記録台帳!FI4 -> 体重 | FH4: =記録台帳!FJ4 -> 本人月収 | FI4: =記録台帳!FK4 -> 1ヶ月に本人と親族が 支出できる限界金額 | FJ4: =記録台帳!FL4 -> 特別な 事情 | FK4: =記録台帳!FM4 -> 申し込み済施設1 | FL4: =記録台帳!FN4 -> 申し込み済施設2 | FM4: =記録台帳!FO4 -> 申し込み済施設3 | FN4: =記録台帳!FP4 -> 申し込み済施設4 | FO4: =記録台帳!FQ4 -> 申し込み済施設5 | FP4: =記録台帳!FR4 -> 申し込み済施設6 | FQ4: =記録台帳!FS4 -> 申し込み済施設7 | FR4: =記録台帳!FT4 -> 申し込み済施設8 | FS4: =記録台帳!FU4 -> 申し込み予定施設1 | FT4: =記録台帳!FV4 -> 申し込み予定施設2 | FU4: =記録台帳!FW4 -> 申し込み予定施設3 | FV4: =記録台帳!FX4 -> 申し込み予定施設4 | FW4: =記録台帳!FY4 -> 申し込み予定施設5 | FX4: =記録台帳!FZ4 -> 申し込み予定施設6 | FY4: =記録台帳!GA4 -> 申し込み予定施設7 | FZ4: =記録台帳!GB4 -> 申し込み予定施設8 | GA4: =記録台帳!GC4 -> 脳梗塞 | GB4: =記録台帳!GD4 -> 心臓疾患 | GC4: =記録台帳!GE4 -> 糖尿病 | GD4: =記録台帳!GF4 -> 癌 | GE4: =記録台帳!GG4 -> 認知症 | GF4: =記録台帳!GH4 -> 脳挫傷 | GG4: =記録台帳!GI4 -> 緑内障 | GH4: =記録台帳!GJ4 -> 大腿部骨折 | GI4: =記録台帳!GK4 -> 脳内出血 | GJ4: =記録台帳!GL4 -> 呼吸器系疾患 | GK4: =記録台帳!GM4 -> 腎臓疾患 | GL4: =記録台帳!GN4 -> リューマチ | GM4: =記録台帳!GO4 -> うつ病 | GN4: =記録台帳!GP4 -> 胆石 | GO4: =記録台帳!GQ4 -> 白内障 | GP4: =記録台帳!GR4 -> 脊髄等損傷 | GQ4: =記録台帳!GS4 -> 高血圧症 | GR4: =記録台帳!GT4 -> 喘息 | GS4: =記録台帳!GU4 -> 肝炎・肝硬変 | GT4: =記録台帳!GV4 -> パーキンソン | GU4: =記録台帳!GW4 -> 統合失調症 | GV4: =記録台帳!GX4 -> 尿管結石等 | GW4: =記録台帳!GY4 -> 結核 | GX4: =記録台帳!GZ4 -> 変形性膝関節症 | GY4: =記録台帳!HA4 -> 人工肛門処置 | GZ4: =記録台帳!HB4 -> 腸瘻 | HA4: =記録台帳!HC4 -> 膀胱洗浄 | HB4: =記録台帳!HD4 -> 導尿 | HC4: =記録台帳!HE4 -> ＩＶＨ | HD4: =記録台帳!HF4 -> 透析 | HE4: =記録台帳!HG4 -> 尿カテーテル | HF4: =記録台帳!HH4 -> 看取り | HG4: =記録台帳!HI4 -> 非常に多い | HH4: =記録台帳!HJ4 -> やや多い | HI4: =記録台帳!HK4 -> 少しあり | HJ4: =記録台帳!HL4 -> なし | HK4: =記録台帳!HM4 -> ６０％以上 | HL4: =記録台帳!HN4 -> ５０％以上 | HM4: =記録台帳!HO4 -> ３０％以上 | HN4: =記録台帳!HP4 -> ３０％未満 | HO4: =記録台帳!HQ4 -> ７０歳以上 | HP4: =記録台帳!HR4 -> ６０歳以上 | HQ4: =記録台帳!HS4 -> ６０歳未満 | HR4: 重い | HS4: やや重い | HT4: 軽い | HU4: なし | HV4: 介護困難 | HW4: 多少困難 | HX4: 介護可能 | HY4: なし | HZ4: フルタイム 高齢のため | IA4: ４時間以上 | IB4: ４時間未満 | IC4: なし | ID4: 常時 | IE4: 半日程度 | IF4: 随時 | IG4: なし | IH4: 介護拒否 | II4: 非常に消極的 | IJ4: やや消極的 | IK4: ふつう | IL4: ほとんどなし | IM4: 随時あり | IN4: 常時あり | IO4: ほとんどなし | IP4: 随時あり | IQ4: 常時あり | IR4: ほとんどなし | IS4: 随時あり | IT4: 常時あり | IU4: 独自点数
B5: =IF(E5="","",ROW()-4) -> 
B6: =IF(E6="","",ROW()-4) -> 
B7: =IF(E7="","",ROW()-4) -> 
B8: =IF(E8="","",ROW()-4) -> 
B9: =IF(E9="","",ROW()-4) -> 
B10: =IF(E10="","",ROW()-4) -> 
B11: =IF(E11="","",ROW()-4) -> 
U580: =IF(C580="",0,(NOW()-C580)/(NOW()-MIN($C$5:$C$1004))*20) -> 00:00:00 | V580: =IF(OR(L580="自立",L580="要支援",L580="未申請"),0,L580)+(IF(OR(M580="自立",M580="要支援"),0,M580))*2 -> 0 | W580: =N580*(N580-1) -> 0 | X580: =O580*4 -> 0 | Y580: =IF(P580="",0,((5-P580)*6)) -> 0 | Z580: =IF(J580="市原市",5)+IF(K580="○",3) -> 0
U581: 00:00:00 | V581: 0 | W581: =N581*(N581-1) -> 0 | X581: =O581*4 -> 0 | Y581: =IF(P581="",0,((5-P581)*6)) -> 0 | Z581: =IF(J581="市原市",5)+IF(K581="○",3) -> 0
U582: 00:00:00 | V582: 0 | W582: 0 | X582: 0 | Y582: 0 | Z582: 0
U583: 00:00:00 | V583: 0 | W583: 0 | X583: 0 | Y583: 0 | Z583: 0
U584: 00:00:00 | V584: 0 | W584: 0 | X584: 0 | Y584: 0 | Z584: 0
U585: 00:00:00 | V585: 0 | W585: 0 | X585: 0 | Y585: 0 | Z585: 0
U586: 00:00:00 | V586: 0 | W586: 0 | X586: 0 | Y586: 0 | Z586: 0
U587: 00:00:00 | V587: 0 | W587: 0 | X587: 0 | Y587: 0 | Z587: 0
U588: 00:00:00 | V588: 0 | W588: 0 | X588: 0 | Y588: 0 | Z588: 0
U589: 00:00:00 | V589: 0 | W589: 0 | X589: 0 | Y589: 0 | Z589: 0
U590: 00:00:00 | V590: 0 | W590: 0 | X590: 0 | Y590: 0 | Z590: 0
U591: 00:00:00 | V591: 0 | W591: 0 | X591: 0 | Y591: 0 | Z591: 0
U592: 00:00:00 | V592: 0 | W592: 0 | X592: 0 | Y592: 0 | Z592: 0
U593: 00:00:00 | V593: 0 | W593: 0 | X593: 0 | Y593: 0 | Z593: 0
U594: 00:00:00 | V594: 0 | W594: 0 | X594: 0 | Y594: 0 | Z594: 0
U595: 00:00:00 | V595: 0 | W595: 0 | X595: 0 | Y595: 0 | Z595: 0
U596: 00:00:00 | V596: 0 | W596: 0 | X596: 0 | Y596: 0 | Z596: 0
U597: 00:00:00 | V597: 0 | W597: 0 | X597: 0 | Y597: 0 | Z597: 0
U598: 00:00:00 | V598: 0 | W598: 0 | X598: 0 | Y598: 0 | Z598: 0
U599: 00:00:00 | V599: 0 | W599: 0 | X599: 0 | Y599: 0 | Z599: 0
U600: 00:00:00 | V600: 0 | W600: 0 | X600: 0 | Y600: 0 | Z600: 0
U601: 00:00:00 | V601: 0 | W601: 0 | X601: 0 | Y601: 0 | Z601: 0
U602: 00:00:00 | V602: 0 | W602: 0 | X602: 0 | Y602: 0 | Z602: 0
U603: 00:00:00 | V603: 0 | W603: 0 | X603: 0 | Y603: 0 | Z603: 0
U604: 00:00:00 | V604: 0 | W604: 0 | X604: 0 | Y604: 0 | Z604: 0
U605: 00:00:00 | V605: 0 | W605: 0 | X605: 0 | Y605: 0 | Z605: 0
U606: 00:00:00 | V606: 0 | W606: 0 | X606: 0 | Y606: 0 | Z606: 0
U607: 00:00:00 | V607: 0 | W607: 0 | X607: 0 | Y607: 0 | Z607: 0
U608: 00:00:00 | V608: 0 | W608: 0 | X608: 0 | Y608: 0 | Z608: 0
U609: 00:00:00 | V609: 0 | W609: 0 | X609: 0 | Y609: 0 | Z609: 0
U610: 00:00:00 | V610: 0 | W610: 0 | X610: 0 | Y610: 0 | Z610: 0
U611: 00:00:00 | V611: 0 | W611: 0 | X611: 0 | Y611: 0 | Z611: 0
U612: 00:00:00 | V612: 0 | W612: 0 | X612: 0 | Y612: 0 | Z612: 0
U613: 00:00:00 | V613: 0 | W613: 0 | X613: 0 | Y613: 0 | Z613: 0
U614: 00:00:00 | V614: 0 | W614: 0 | X614: 0 | Y614: 0 | Z614: 0
U615: 00:00:00 | V615: 0 | W615: 0 | X615: 0 | Y615: 0 | Z615: 0
U616: 00:00:00 | V616: 0 | W616: 0 | X616: 0 | Y616: 0 | Z616: 0
U617: 00:00:00 | V617: 0 | W617: 0 | X617: 0 | Y617: 0 | Z617: 0
U618: 00:00:00 | V618: 0 | W618: 0 | X618: 0 | Y618: 0 | Z618: 0
U619: 00:00:00 | V619: 0 | W619: 0 | X619: 0 | Y619: 0 | Z619: 0
U620: 00:00:00 | V620: 0 | W620: 0 | X620: 0 | Y620: 0 | Z620: 0
U621: 00:00:00 | V621: 0 | W621: 0 | X621: 0 | Y621: 0 | Z621: 0
U622: 00:00:00 | V622: 0 | W622: 0 | X622: 0 | Y622: 0 | Z622: 0
U623: 00:00:00 | V623: 0 | W623: 0 | X623: 0 | Y623: 0 | Z623: 0
U624: 00:00:00 | V624: 0 | W624: 0 | X624: 0 | Y624: 0 | Z624: 0
U625: 00:00:00 | V625: 0 | W625: 0 | X625: 0 | Y625: 0 | Z625: 0
U626: 00:00:00 | V626: 0 | W626: 0 | X626: 0 | Y626: 0 | Z626: 0
U627: 00:00:00 | V627: 0 | W627: 0 | X627: 0 | Y627: 0 | Z627: 0
U628: 00:00:00 | V628: 0 | W628: 0 | X628: 0 | Y628: 0 | Z628: 0
U629: 00:00:00 | V629: 0 | W629: 0 | X629: 0 | Y629: 0 | Z629: 0
U630: 00:00:00 | V630: 0 | W630: 0 | X630: 0 | Y630: 0 | Z630: 0
U631: 00:00:00 | V631: 0 | W631: 0 | X631: 0 | Y631: 0 | Z631: 0
U632: 00:00:00 | V632: 0 | W632: 0 | X632: 0 | Y632: 0 | Z632: 0
U633: 00:00:00 | V633: 0 | W633: 0 | X633: 0 | Y633: 0 | Z633: 0
U634: 00:00:00 | V634: 0 | W634: 0 | X634: 0 | Y634: 0 | Z634: 0
U635: 00:00:00 | V635: 0 | W635: 0 | X635: 0 | Y635: 0 | Z635: 0
U636: 00:00:00 | V636: 0 | W636: 0 | X636: 0 | Y636: 0 | Z636: 0
U637: 00:00:00 | V637: 0 | W637: 0 | X637: 0 | Y637: 0 | Z637: 0
U638: 00:00:00 | V638: 0 | W638: 0 | X638: 0 | Y638: 0 | Z638: 0
U639: 00:00:00 | V639: 0 | W639: 0 | X639: 0 | Y639: 0 | Z639: 0
U640: 00:00:00 | V640: 0 | W640: 0 | X640: 0 | Y640: 0 | Z640: 0
U641: 00:00:00 | V641: 0 | W641: 0 | X641: 0 | Y641: 0 | Z641: 0
U642: 00:00:00 | V642: 0 | W642: 0 | X642: 0 | Y642: 0 | Z642: 0
U643: 00:00:00 | V643: 0 | W643: 0 | X643: 0 | Y643: 0 | Z643: 0
U644: =IF(C644="",0,(NOW()-C644)/(NOW()-MIN($C$5:$C$1004))*20) -> 00:00:00 | V644: =IF(OR(L644="自立",L644="要支援",L644="未申請"),0,L644)+(IF(OR(M644="自立",M644="要支援"),0,M644))*2 -> 0 | W644: 0 | X644: 0 | Y644: 0 | Z644: 0
U645: 00:00:00 | V645: 0 | W645: =N645*(N645-1) -> 0 | X645: =O645*4 -> 0 | Y645: =IF(P645="",0,((5-P645)*6)) -> 0 | Z645: =IF(J645="市原市",5)+IF(K645="○",3) -> 0
U646: 00:00:00 | V646: 0 | W646: 0 | X646: 0 | Y646: 0 | Z646: 0
U647: 00:00:00 | V647: 0 | W647: 0 | X647: 0 | Y647: 0 | Z647: 0
U648: 00:00:00 | V648: 0 | W648: 0 | X648: 0 | Y648: 0 | Z648: 0
U649: 00:00:00 | V649: 0 | W649: 0 | X649: 0 | Y649: 0 | Z649: 0
U650: 00:00:00 | V650: 0 | W650: 0 | X650: 0 | Y650: 0 | Z650: 0
U651: 00:00:00 | V651: 0 | W651: 0 | X651: 0 | Y651: 0 | Z651: 0
U652: 00:00:00 | V652: 0 | W652: 0 | X652: 0 | Y652: 0 | Z652: 0
U653: 00:00:00 | V653: 0 | W653: 0 | X653: 0 | Y653: 0 | Z653: 0
U654: 00:00:00 | V654: 0 | W654: 0 | X654: 0 | Y654: 0 | Z654: 0
U655: 00:00:00 | V655: 0 | W655: 0 | X655: 0 | Y655: 0 | Z655: 0
U656: 00:00:00 | V656: 0 | W656: 0 | X656: 0 | Y656: 0 | Z656: 0
U657: 00:00:00 | V657: 0 | W657: 0 | X657: 0 | Y657: 0 | Z657: 0
U658: 00:00:00 | V658: 0 | W658: 0 | X658: 0 | Y658: 0 | Z658: 0
U659: 00:00:00 | V659: 0 | W659: 0 | X659: 0 | Y659: 0 | Z659: 0
U660: 00:00:00 | V660: 0 | W660: 0 | X660: 0 | Y660: 0 | Z660: 0
U661: 00:00:00 | V661: 0 | W661: 0 | X661: 0 | Y661: 0 | Z661: 0
U662: 00:00:00 | V662: 0 | W662: 0 | X662: 0 | Y662: 0 | Z662: 0
U663: 00:00:00 | V663: 0 | W663: 0 | X663: 0 | Y663: 0 | Z663: 0
U664: 00:00:00 | V664: 0 | W664: 0 | X664: 0 | Y664: 0 | Z664: 0
U665: 00:00:00 | V665: 0 | W665: 0 | X665: 0 | Y665: 0 | Z665: 0
U666: 00:00:00 | V666: 0 | W666: 0 | X666: 0 | Y666: 0 | Z666: 0
U667: 00:00:00 | V667: 0 | W667: 0 | X667: 0 | Y667: 0 | Z667: 0
U668: 00:00:00 | V668: 0 | W668: 0 | X668: 0 | Y668: 0 | Z668: 0
U669: 00:00:00 | V669: 0 | W669: 0 | X669: 0 | Y669: 0 | Z669: 0
U670: 00:00:00 | V670: 0 | W670: 0 | X670: 0 | Y670: 0 | Z670: 0
U671: 00:00:00 | V671: 0 | W671: 0 | X671: 0 | Y671: 0 | Z671: 0
U672: 00:00:00 | V672: 0 | W672: 0 | X672: 0 | Y672: 0 | Z672: 0
U673: 00:00:00 | V673: 0 | W673: 0 | X673: 0 | Y673: 0 | Z673: 0
U674: 00:00:00 | V674: 0 | W674: 0 | X674: 0 | Y674: 0 | Z674: 0
U675: 00:00:00 | V675: 0 | W675: 0 | X675: 0 | Y675: 0 | Z675: 0
U676: 00:00:00 | V676: 0 | W676: 0 | X676: 0 | Y676: 0 | Z676: 0
U677: 00:00:00 | V677: 0 | W677: 0 | X677: 0 | Y677: 0 | Z677: 0
U678: 00:00:00 | V678: 0 | W678: 0 | X678: 0 | Y678: 0 | Z678: 0
U679: 00:00:00 | V679: 0 | W679: 0 | X679: 0 | Y679: 0 | Z679: 0
U680: 00:00:00 | V680: 0 | W680: 0 | X680: 0 | Y680: 0 | Z680: 0
U681: 00:00:00 | V681: 0 | W681: 0 | X681: 0 | Y681: 0 | Z681: 0
U682: 00:00:00 | V682: 0 | W682: 0 | X682: 0 | Y682: 0 | Z682: 0
U683: 00:00:00 | V683: 0 | W683: 0 | X683: 0 | Y683: 0 | Z683: 0
U684: 00:00:00 | V684: 0 | W684: 0 | X684: 0 | Y684: 0 | Z684: 0
U685: 00:00:00 | V685: 0 | W685: 0 | X685: 0 | Y685: 0 | Z685: 0
U686: 00:00:00 | V686: 0 | W686: 0 | X686: 0 | Y686: 0 | Z686: 0
U687: 00:00:00 | V687: 0 | W687: 0 | X687: 0 | Y687: 0 | Z687: 0
U688: 00:00:00 | V688: 0 | W688: 0 | X688: 0 | Y688: 0 | Z688: 0
U689: 00:00:00 | V689: 0 | W689: 0 | X689: 0 | Y689: 0 | Z689: 0
U690: 00:00:00 | V690: 0 | W690: 0 | X690: 0 | Y690: 0 | Z690: 0
U691: 00:00:00 | V691: 0 | W691: 0 | X691: 0 | Y691: 0 | Z691: 0
U692: 00:00:00 | V692: 0 | W692: 0 | X692: 0 | Y692: 0 | Z692: 0
U693: 00:00:00 | V693: 0 | W693: 0 | X693: 0 | Y693: 0 | Z693: 0
U694: 00:00:00 | V694: 0 | W694: 0 | X694: 0 | Y694: 0 | Z694: 0
U695: 00:00:00 | V695: 0 | W695: 0 | X695: 0 | Y695: 0 | Z695: 0
U696: 00:00:00 | V696: 0 | W696: 0 | X696: 0 | Y696: 0 | Z696: 0
U697: 00:00:00 | V697: 0 | W697: 0 | X697: 0 | Y697: 0 | Z697: 0
U698: 00:00:00 | V698: 0 | W698: 0 | X698: 0 | Y698: 0 | Z698: 0
U699: 00:00:00 | V699: 0 | W699: 0 | X699: 0 | Y699: 0 | Z699: 0
U700: 00:00:00 | V700: 0 | W700: 0 | X700: 0 | Y700: 0 | Z700: 0
U701: 00:00:00 | V701: 0 | W701: 0 | X701: 0 | Y701: 0 | Z701: 0
U702: 00:00:00 | V702: 0 | W702: 0 | X702: 0 | Y702: 0 | Z702: 0
U703: 00:00:00 | V703: 0 | W703: 0 | X703: 0 | Y703: 0 | Z703: 0
U704: 00:00:00 | V704: 0 | W704: 0 | X704: 0 | Y704: 0 | Z704: 0
U705: 00:00:00 | V705: 0 | W705: 0 | X705: 0 | Y705: 0 | Z705: 0
U706: 00:00:00 | V706: 0 | W706: 0 | X706: 0 | Y706: 0 | Z706: 0
U707: 00:00:00 | V707: 0 | W707: 0 | X707: 0 | Y707: 0 | Z707: 0
U708: =IF(C708="",0,(NOW()-C708)/(NOW()-MIN($C$5:$C$1004))*20) -> 00:00:00 | V708: =IF(OR(L708="自立",L708="要支援",L708="未申請"),0,L708)+(IF(OR(M708="自立",M708="要支援"),0,M708))*2 -> 0 | W708: 0 | X708: 0 | Y708: 0 | Z708: 0
U709: 00:00:00 | V709: 0 | W709: =N709*(N709-1) -> 0 | X709: =O709*4 -> 0 | Y709: =IF(P709="",0,((5-P709)*6)) -> 0 | Z709: =IF(J709="市原市",5)+IF(K709="○",3) -> 0
U710: 00:00:00 | V710: 0 | W710: 0 | X710: 0 | Y710: 0 | Z710: 0
U711: 00:00:00 | V711: 0 | W711: 0 | X711: 0 | Y711: 0 | Z711: 0
U712: 00:00:00 | V712: 0 | W712: 0 | X712: 0 | Y712: 0 | Z712: 0
U713: 00:00:00 | V713: 0 | W713: 0 | X713: 0 | Y713: 0 | Z713: 0
U714: 00:00:00 | V714: 0 | W714: 0 | X714: 0 | Y714: 0 | Z714: 0
U715: 00:00:00 | V715: 0 | W715: 0 | X715: 0 | Y715: 0 | Z715: 0
U716: 00:00:00 | V716: 0 | W716: 0 | X716: 0 | Y716: 0 | Z716: 0
U717: 00:00:00 | V717: 0 | W717: 0 | X717: 0 | Y717: 0 | Z717: 0
U718: 00:00:00 | V718: 0 | W718: 0 | X718: 0 | Y718: 0 | Z718: 0
U719: 00:00:00 | V719: 0 | W719: 0 | X719: 0 | Y719: 0 | Z719: 0
U720: 00:00:00 | V720: 0 | W720: 0 | X720: 0 | Y720: 0 | Z720: 0
U721: 00:00:00 | V721: 0 | W721: 0 | X721: 0 | Y721: 0 | Z721: 0
U722: 00:00:00 | V722: 0 | W722: 0 | X722: 0 | Y722: 0 | Z722: 0
U723: 00:00:00 | V723: 0 | W723: 0 | X723: 0 | Y723: 0 | Z723: 0
U724: 00:00:00 | V724: 0 | W724: 0 | X724: 0 | Y724: 0 | Z724: 0
U725: 00:00:00 | V725: 0 | W725: 0 | X725: 0 | Y725: 0 | Z725: 0
U726: 00:00:00 | V726: 0 | W726: 0 | X726: 0 | Y726: 0 | Z726: 0
U727: 00:00:00 | V727: 0 | W727: 0 | X727: 0 | Y727: 0 | Z727: 0
U728: 00:00:00 | V728: 0 | W728: 0 | X728: 0 | Y728: 0 | Z728: 0
U729: 00:00:00 | V729: 0 | W729: 0 | X729: 0 | Y729: 0 | Z729: 0
U730: 00:00:00 | V730: 0 | W730: 0 | X730: 0 | Y730: 0 | Z730: 0
U731: 00:00:00 | V731: 0 | W731: 0 | X731: 0 | Y731: 0 | Z731: 0
U732: 00:00:00 | V732: 0 | W732: 0 | X732: 0 | Y732: 0 | Z732: 0
U733: 00:00:00 | V733: 0 | W733: 0 | X733: 0 | Y733: 0 | Z733: 0
U734: 00:00:00 | V734: 0 | W734: 0 | X734: 0 | Y734: 0 | Z734: 0
U735: 00:00:00 | V735: 0 | W735: 0 | X735: 0 | Y735: 0 | Z735: 0
U736: 00:00:00 | V736: 0 | W736: 0 | X736: 0 | Y736: 0 | Z736: 0
U737: 00:00:00 | V737: 0 | W737: 0 | X737: 0 | Y737: 0 | Z737: 0
U738: 00:00:00 | V738: 0 | W738: 0 | X738: 0 | Y738: 0 | Z738: 0
U739: 00:00:00 | V739: 0 | W739: 0 | X739: 0 | Y739: 0 | Z739: 0
U740: 00:00:00 | V740: 0 | W740: 0 | X740: 0 | Y740: 0 | Z740: 0
U741: 00:00:00 | V741: 0 | W741: 0 | X741: 0 | Y741: 0 | Z741: 0
U742: 00:00:00 | V742: 0 | W742: 0 | X742: 0 | Y742: 0 | Z742: 0
U743: 00:00:00 | V743: 0 | W743: 0 | X743: 0 | Y743: 0 | Z743: 0
U744: 00:00:00 | V744: 0 | W744: 0 | X744: 0 | Y744: 0 | Z744: 0
U745: 00:00:00 | V745: 0 | W745: 0 | X745: 0 | Y745: 0 | Z745: 0
U746: 00:00:00 | V746: 0 | W746: 0 | X746: 0 | Y746: 0 | Z746: 0
U747: 00:00:00 | V747: 0 | W747: 0 | X747: 0 | Y747: 0 | Z747: 0
U748: 00:00:00 | V748: 0 | W748: 0 | X748: 0 | Y748: 0 | Z748: 0
U749: 00:00:00 | V749: 0 | W749: 0 | X749: 0 | Y749: 0 | Z749: 0
U750: 00:00:00 | V750: 0 | W750: 0 | X750: 0 | Y750: 0 | Z750: 0
U751: 00:00:00 | V751: 0 | W751: 0 | X751: 0 | Y751: 0 | Z751: 0
U752: 00:00:00 | V752: 0 | W752: 0 | X752: 0 | Y752: 0 | Z752: 0
U753: 00:00:00 | V753: 0 | W753: 0 | X753: 0 | Y753: 0 | Z753: 0
U754: 00:00:00 | V754: 0 | W754: 0 | X754: 0 | Y754: 0 | Z754: 0
U755: 00:00:00 | V755: 0 | W755: 0 | X755: 0 | Y755: 0 | Z755: 0
U756: 00:00:00 | V756: 0 | W756: 0 | X756: 0 | Y756: 0 | Z756: 0
U757: 00:00:00 | V757: 0 | W757: 0 | X757: 0 | Y757: 0 | Z757: 0
U758: 00:00:00 | V758: 0 | W758: 0 | X758: 0 | Y758: 0 | Z758: 0
U759: 00:00:00 | V759: 0 | W759: 0 | X759: 0 | Y759: 0 | Z759: 0
U760: 00:00:00 | V760: 0 | W760: 0 | X760: 0 | Y760: 0 | Z760: 0
U761: 00:00:00 | V761: 0 | W761: 0 | X761: 0 | Y761: 0 | Z761: 0
U762: 00:00:00 | V762: 0 | W762: 0 | X762: 0 | Y762: 0 | Z762: 0
U763: 00:00:00 | V763: 0 | W763: 0 | X763: 0 | Y763: 0 | Z763: 0
U764: 00:00:00 | V764: 0 | W764: 0 | X764: 0 | Y764: 0 | Z764: 0
U765: 00:00:00 | V765: 0 | W765: 0 | X765: 0 | Y765: 0 | Z765: 0
U766: 00:00:00 | V766: 0 | W766: 0 | X766: 0 | Y766: 0 | Z766: 0
U767: 00:00:00 | V767: 0 | W767: 0 | X767: 0 | Y767: 0 | Z767: 0
U768: 00:00:00 | V768: 0 | W768: 0 | X768: 0 | Y768: 0 | Z768: 0
U769: 00:00:00 | V769: 0 | W769: 0 | X769: 0 | Y769: 0 | Z769: 0
... 235 more rows

Sheet 記入用
D1: 呼出番号 | G1: ↓ 右クリックで起動します。 | T1: ５００人まで用 | BR1: 入力領域 | BV1: リスト入力 | BZ1: クリック入力 | CD1: クリック入力 | CH1: 入力禁止域
G2: 呼出 | K2: 参照入力 | O2: 新規入力 | Y2: 1 | AA2: ～ | AB2: 53 | AE2: 連続印刷 | BK2: 転写 | BO2: 戻る | CN2: 得点 | CO2: 受付年月日 | CP2: 本人氏名 | CQ2: フリガナ | CR2: 性別 | CS2: 〒 | CT2: 住所 | CU2: 電話 | CV2: 生 年 月 日 | CW2: 介護度 | CX2: 介護保険証被保険者番号 | CY2: 保険者市町村名 | CZ2: 連絡先 家族氏名 | DA2: 予備 | DB2: 続柄 | DC2: 〒 | DD2: 住所 | DE2: 電話 | DF2: 携帯 | DG2: 概況報告 | DH2: =BX13 -> 独居 | DI2: =BZ13 -> 在宅で家族介護 | DJ2: =CB13 -> ７５歳以上 老々介護 | DK2: 入院・入所施設名 | DL2: =マスタ変更!V7 -> 施設 入所 入院中 | DM2: =BX15 -> 介護者 不在 | DN2: =BZ15 -> 主介護者 障害疾病 など | DO2: 就労 のため 介護困難 | DP2: 身体的 精神的 負担大 | DQ2: 居住環境 事情から 介護困難 | DR2: 退去を 求められ ている | DS2: 障害者 複数世帯 | DT2: 介護（協力）者の人数・続柄・頻度など | DU2: 同居家族が介護協力困難である具体的理由 | DV2: 非同居家族が介護協力困難である具体的理由・居住地 | DW2: 居宅介護支援事業所 | DX2: デイケア・デイサービス | DY2: 事業所名 | DZ2: ヘルパー | EA2: 事業所名 | EB2: 訪問看護 | EC2: 事業所名 | ED2: その他 | EE2: 既往歴 持病・障害 入院経緯 | EF2: 主事病院 | EG2: 糖尿管理 療養食管理 | EH2: 在宅 酸素療法 | EI2: 喀痰吸引 | EJ2: 透析・輸血 | EK2: 褥瘡処置 | EL2: 部位等 | EM2: - | EN2: 弱 | EO2: 中 | EP2: 強 | EQ2: - | ER2: 弱 | ES2: 中 | ET2: 強 | EU2: - | EV2: 弱 | EW2: 中 | EX2: 強 | EY2: - | EZ2: 弱 | FA2: 中 | FB2: 強 | FC2: 安定歩行 | FD2: 転倒注意 見守り | FE2: ふらつき介助 手引き歩行 | FF2: 突然立ち 転倒してしまう | FG2: 車椅子自力 移譲・移動 | FH2: 車椅子介助 移乗・自力移動 | FI2: 車椅子 介助移動 | FJ2: 寝たきり ストレッチャー | FK2: ある | FL2: なし | FM2: 曖昧 | FN2: ある | FO2: なし | FP2: 曖昧 | FQ2: 人工肛門 尿カテーテル | FR2: 自分で行く | FS2: 自分で行くが 失敗がある | FT2: 定期的に 誘導している | FU2: ポータブル トイレなど | FV2: リハビリ パンツ | FW2: おむつ | FX2: 介助 頻度 | FY2: 自分で行く | FZ2: 自分で行くが 失敗がある | GA2: 定期的に 誘導している | GB2: ポータブル トイレなど | GC2: リハビリ パンツ | GD2: おむつ | GE2: 介助 頻度 | GF2: 見守り | GG2: 介助２５％ | GH2: 介助５０％ ※時間記入 | GI2: 介助７５％超 ※時間記入 | GJ2: 胃瘻 | GK2: 経鼻栄養 ＩＶＨ | GL2: 直接介助に かかる時間 | GM2: ときどき | GN2: よくある | GO2: 耐え難い | GP2: ときどき | GQ2: よくある | GR2: 耐え難い | GS2: ときどき | GT2: よくある | GU2: 耐え難い | GV2: ときどき | GW2: よくある | GX2: 耐え難い | GY2: ときどき | GZ2: よくある | HA2: 耐え難い | HB2: ときどき | HC2: よくある | HD2: 耐え難い | HE2: ときどき | HF2: よくある | HG2: 耐え難い | HH2: ときどき | HI2: よくある | HJ2: 耐え難い | HK2: ときどき | HL2: よくある | HM2: 耐え難い | HN2: ときどき | HO2: よくある | HP2: 耐え難い | HQ2: ときどき | HR2: よくある | HS2: 耐え難い | HT2: 良い | HU2: やや悪い | HV2: 悪い | HW2: その他の問題 | HX2: 公共交通 機関が使える | HY2: 地区内なら 自由に行動 | HZ2: 起きて生活 外出は補助 | IA2: 伝い歩き 寝たり起きたり | IB2: 介助あれば 起きて生活 | IC2: 介助により 寝たり起きたり | ID2: 寝室中心 の生活 | IE2: 離床しない | IF2: 問題なし | IG2: やや不自由 | IH2: かなり困難 | II2: ほぼ不可能 | IJ2: 年齢相応 | IK2: かなり悪い 半盲 | IL2: 失明 | IM2: 問題なし | IN2: 遠い | IO2: ひどく遠い | IP2: 聴力なし | IQ2: 確認できない | IR2: 身長 | IS2: 体重 | IT2: 本人月収 | IU2: 1ヶ月に本人と親族が 支出できる限界金額 | IV2: 特別な 事情 | IW2: 申し込み済施設1 | IX2: 申し込み済施設2 | IY2: 申し込み済施設3 | IZ2: 申し込み済施設4 | JA2: 申し込み済施設5 | JB2: 申し込み済施設6 | JC2: 申し込み済施設7 | JD2: 申し込み済施設8 | JE2: 申し込み予定施設1 | JF2: 申し込み予定施設2 | JG2: 申し込み予定施設3 | JH2: 申し込み予定施設4 | JI2: 申し込み予定施設5 | JJ2: 申し込み予定施設6 | JK2: 申し込み予定施設7 | JL2: 申し込み予定施設8 | JM2: =マスタ変更!F30 -> 脳梗塞 | JN2: =マスタ変更!I30 -> 心臓疾患 | JO2: =マスタ変更!L30 -> 糖尿病 | JP2: =マスタ変更!O30 -> 癌 | JQ2: =マスタ変更!R30 -> 認知症 | JR2: =マスタ変更!U30 -> 脳挫傷 | JS2: =マスタ変更!X30 -> 緑内障 | JT2: =マスタ変更!AA30 -> 大腿部骨折 | JU2: =マスタ変更!F31 -> 脳内出血 | JV2: =マスタ変更!I31 -> 呼吸器系疾患 | JW2: =マスタ変更!L31 -> 腎臓疾患 | JX2: =マスタ変更!O31 -> リューマチ | JY2: =マスタ変更!R31 -> うつ病 | JZ2: =マスタ変更!U31 -> 胆石 | KA2: =マスタ変更!X31 -> 白内障 | KB2: =マスタ変更!AA31 -> 脊髄等損傷 | KC2: =マスタ変更!F32 -> 高血圧症 | KD2: =マスタ変更!I32 -> 喘息 | KE2: =マスタ変更!L32 -> 肝炎・肝硬変 | KF2: =マスタ変更!O32 -> パーキンソン | KG2: =マスタ変更!R32 -> 統合失調症 | KH2: =マスタ変更!U32 -> 尿管結石等 | KI2: =マスタ変更!X32 -> 結核 | KJ2: =マスタ変更!AA32 -> 変形性膝関節症 | KK2: =マスタ変更!F13 -> 人工肛門処置 | KL2: =マスタ変更!I13 -> 腸瘻 | KM2: =マスタ変更!L13 -> 膀胱洗浄 | KN2: =マスタ変更!O13 -> 導尿 | KO2: =マスタ変更!R13 -> ＩＶＨ | KP2: =マスタ変更!U13 -> 透析 | KQ2: =マスタ変更!X13 -> 尿カテーテル | KR2: =マスタ変更!AA13 -> 看取り | KS2: 216 | KT2: 217 | KU2: 218 | KV2: 219 | KW2: 220 | KX2: 221 | KY2: 222 | KZ2: 223 | LA2: 224 | LB2: 225 | LC2: 226 | LD2: 227 | LE2: 228 | LF2: 229 | LG2: 230 | LH2: 231 | LI2: 232 | LJ2: 233 | LK2: 234 | LL2: 235 | LM2: 236 | LN2: 237 | LO2: 238 | LP2: 239 | LQ2: 240 | LR2: 241 | LS2: 242 | LT2: 243 | LU2: 244 | LV2: 245 | LW2: 246 | LX2: 247 | LY2: 248 | LZ2: 249 | MA2: 250 | MB2: 251 | MC2: 252 | MD2: 253 | ME2: 254 | MF2: 255 | MG2: 256
T3: =NOW() -> 2014-11-02T18:12:19.670 | BR3: ＊赤字は必須入力項目 | CN3: =$CI$66 -> 0 | CO3: =$CE$5 -> 00:00:00 | CP3: =$BM$8 -> 0 | CQ3: =$BM$7 -> 0 | CR3: =$BU$8 -> 0 | CS3: =$BX$7 -> 0 | CT3: =$BX$8 -> 0 | CU3: =$CB$7 -> 0 | CV3: =$BK$10 -> 00:00:00 | CW3: =$BU$10 -> 0 | CX3: =$BW$10 -> 0 | CY3: =$CG$10 -> 0 | CZ3: =$BM$11 -> 0 | DB3: =$BU$12 -> 0 | DC3: =$BX$11 -> 0 | DD3: =$BX$12 -> 0 | DE3: =$CA$11 -> 0 | DF3: =$CG$11 -> 0 | DG3: =$BM$13 -> 00:00:00 | DH3: =$DC$13 -> 0 | DI3: =$DE$13 -> 0 | DJ3: =$DG$13 -> 0 | DK3: =$CF$14 -> 0 | DL3: =$DI$13 -> 0 | DM3: =$DC$15 -> 0 | DN3: =$DE$15 -> 0 | DO3: =$DG$15 -> 0 | DP3: =$DI$15 -> 0 | DQ3: =$DK$15 -> 0 | DR3: =$DM$15 -> 0 | DS3: =$DO$15 -> 0 | DT3: =$BW$18 -> 0 | DU3: =$BW$21 -> 0 | DV3: =$BW$24 -> 0 | DW3: =$BO$20 -> 0 | DX3: =$BP$22 -> 0 | DY3: =$BR$22 -> 0 | DZ3: =$BP$23 -> 0 | EA3: =$BR$23 -> 0 | EB3: =$BP$24 -> 0 | EC3: =$BR$24 -> 0 | ED3: =$BO$25 -> 0 | EE3: =$BN$26 -> 0 | EF3: =$CH$27 -> 0 | EG3: =$CS$31 -> 0 | EH3: =$CV$31 -> 0 | EI3: =$CY$31 -> 0 | EJ3: =$DB$31 -> 0 | EK3: =$DE$31 -> 0 | EL3: =$DJ$31 -> 0 | EM3: =$CU$36 -> 0 | EN3: =$CV$36 -> 0 | EO3: =$CW$36 -> 0 | EP3: =$CX$36 -> 0 | EQ3: =$DA$36 -> 0 | ER3: =$DB$36 -> 0 | ES3: =$DC$36 -> 0 | ET3: =$DD$36 -> 0 | EU3: =$DG$36 -> 0 | EV3: =$DH$36 -> 0 | EW3: =$DI$36 -> 0 | EX3: =$DJ$36 -> 0 | EY3: =$DM$36 -> 0 | EZ3: =$DN$36 -> 0 | FA3: =$DO$36 -> 0 | FB3: =$DP$36 -> 0 | FC3: =$CS$37 -> 0 | FD3: =$CV$37 -> 0 | FE3: =$CY$37 -> 0 | FF3: =$DB$37 -> 0 | FG3: =$DE$37 -> 0 | FH3: =$DH$37 -> 0 | FI3: =$DK$37 -> 0 | FJ3: =$DN$37 -> 0 | FK3: =$CS$38 -> 0 | FL3: =$CV$38 -> 0 | FM3: =$CY$38 -> 0 | FN3: =$DE$38 -> 0 | FO3: =$DH$38 -> 0 | FP3: =$DK$38 -> 0 | FQ3: =$DN$38 -> 0 | FR3: =$CS$39 -> 0 | FS3: =$CV$39 -> 0 | FT3: =$CY$39 -> 0 | FU3: =$DB$39 -> 0 | FV3: =$DE$39 -> 0 | FW3: =$DH$39 -> 0 | FX3: =$CI$39 -> 0 | FY3: =$CS$40 -> 0 | FZ3: =$CV$40 -> 0 | GA3: =$CY$40 -> 0 | GB3: =$DB$40 -> 0 | GC3: =$DE$40 -> 0 | GD3: =$DH$40 -> 0 | GE3: =$CI$39 -> 0 | GF3: =$CS$41 -> 0 | GG3: =$CV$41 -> 0 | GH3: =$CY$41 -> 0 | GI3: =$DB$41 -> 0 | GJ3: =$DE$41 -> 0 | GK3: =$DH$41 -> 0 | GL3: =$CI$41 -> 0 | GM3: =$CS$42 -> 0 | GN3: =$CU$42 -> 0 | GO3: =$CW$42 -> 0 | GP3: =$DB$42 -> 0 | GQ3: =$DD$42 -> 0 | GR3: =$DF$42 -> 0 | GS3: =$DK$42 -> 0 | GT3: =$DM$42 -> 0 | GU3: =$DO$42 -> 0 | GV3: =$CS$43 -> 0 | GW3: =$CU$43 -> 0 | GX3: =$CW$43 -> 0 | GY3: =$DB$43 -> 0 | GZ3: =$DD$43 -> 0 | HA3: =$DF$43 -> 0 | HB3: =$DK$43 -> 0 | HC3: =$DM$43 -> 0 | HD3: =$DO$43 -> 0 | HE3: =$CS$44 -> 0 | HF3: =$CU$44 -> 0 | HG3: =$CW$44 -> 0 | HH3: =$DB$44 -> 0 | HI3: =$DD$44 -> 0 | HJ3: =$DF$44 -> 0 | HK3: =$DK$44 -> 0 | HL3: =$DM$44 -> 0 | HM3: =$DO$44 -> 0 | HN3: =$CS$45 -> 0 | HO3: =$CU$45 -> 0 | HP3: =$CW$45 -> 0 | HQ3: =$DB$45 -> 0 | HR3: =$DD$45 -> 0 | HS3: =$DF$45 -> 0 | HT3: =$DK$45 -> 0 | HU3: =$DM$45 -> 0 | HV3: =$DO$45 -> 0 | HW3: =$BN$46 -> 0 | HX3: =$CS$47 -> 0 | HY3: =$CV$47 -> 0 | HZ3: =$CY$47 -> 0 | IA3: =$DB$47 -> 0 | IB3: =$DE$47 -> 0 | IC3: =$DH$47 -> 0 | ID3: =$DK$47 -> 0 | IE3: =$DN$47 -> 0 | IF3: =$CS$48 -> 0 | IG3: =$CV$48 -> 0 | IH3: =$CY$48 -> 0 | II3: =$DB$48 -> 0 | IJ3: =$DH$48 -> 0 | IK3: =$DK$48 -> 0 | IL3: =$DN$48 -> 0 | IM3: =$CS$49 -> 0 | IN3: =$CV$49 -> 0 | IO3: =$CY$49 -> 0 | IP3: =$DB$49 -> 0 | IQ3: =$DE$49 -> 0 | IR3: =$CF$49 -> 0 | IS3: =$CF$50 -> 0 | IT3: =$BM$34 -> 0 | IU3: =$BR$34 -> 0 | IV3: =$BY$33 -> 0 | IW3: =$BN$51 -> 0 | IX3: =$BQ$51 -> 0 | IY3: =$BT$51 -> 0 | IZ3: =$BW$51 -> 0 | JA3: =$BZ$51 -> 0 | JB3: =$CC$51 -> 0 | JC3: =$CF$51 -> 0 | JD3: =$CI$51 -> 0 | JE3: =$BN$52 -> 0 | JF3: =$BQ$52 -> 0 | JG3: =$BT$52 -> 0 | JH3: =$BW$52 -> 0 | JI3: =$BZ$52 -> 0 | JJ3: =$CC$52 -> 0 | JK3: =$CF$52 -> 0 | JL3: =$CI$52 -> 0 | JM3: =$CS$28 -> 0 | JN3: =$CV$28 -> 0 | JO3: =$CY$28 -> 0 | JP3: =$DB$28 -> 0 | JQ3: =$DE$28 -> 0 | JR3: =$DH$28 -> 0 | JS3: =$DK$28 -> 0 | JT3: =$DN$28 -> 0 | JU3: =$CS$29 -> 0 | JV3: =$CV$29 -> 0 | JW3: =$CY$29 -> 0 | JX3: =$DB$29 -> 0 | JY3: =$DE$29 -> 0 | JZ3: =$DH$29 -> 0 | KA3: =$DK$29 -> 0 | KB3: =$DN$29 -> 0 | KC3: =$CS$30 -> 0 | KD3: =$CV$30 -> 0 | KE3: =$CY$30 -> 0 | KF3: =$DB$30 -> 0 | KG3: =$DE$30 -> 0 | KH3: =$DH$30 -> 0 | KI3: =$DK$30 -> 0 | KJ3: =$DN$30 -> 0 | KK3: =$CS$32 -> 0 | KL3: =$CV$32 -> 0 | KM3: =$CY$32 -> 0 | KN3: =$DB$32 -> 0 | KO3: =$DE$32 -> 0 | KP3: =$DH$32 -> 0 | KQ3: =$DK$32 -> 0 | KR3: =$DN$32 -> 0 | KS3: =$BU$54 -> □ | KT3: =$BX$54 -> □ | KU3: =$CA$54 -> □ | KV3: =$CD$54 -> □ | KW3: =$BU$55 -> □ | KX3: =$BX$55 -> □ | KY3: =$CA$55 -> □ | KZ3: =$CD$55 -> □ | LA3: =$BU$57 -> □ | LB3: =$BX$57 -> □ | LC3: =$CA$57 -> □ | LD3: =$BU$58 -> □ | LE3: =$BX$58 -> □ | LF3: =$CA$58 -> □ | LG3: =$CD$58 -> □ | LH3: =$BU$59 -> □ | LI3: =$BX$59 -> □ | LJ3: =$CA$59 -> □ | LK3: =$CD$59 -> □ | LL3: =$BU$60 -> □ | LM3: =$BX$60 -> □ | LN3: =$CA$60 -> □ | LO3: =$CD$60 -> □ | LP3: =$BU$61 -> □ | LQ3: =$BX$61 -> □ | LR3: =$CA$61 -> □ | LS3: =$CD$61 -> □ | LT3: =$BU$62 -> □ | LU3: =$BX$62 -> □ | LV3: =$CA$62 -> □ | LW3: =$CD$62 -> □ | LX3: =$BU$63 -> □ | LY3: =$BX$63 -> □ | LZ3: =$CA$63 -> □ | MA3: =$BU$64 -> □ | MB3: =$BX$64 -> □ | MC3: =$CA$64 -> □ | MD3: =$BU$65 -> □ | ME3: =$BX$65 -> □ | MF3: =$CA$65 -> □ | MG3: =$GJ$23 -> 0
BA4: =NOW() -> 2014-11-02T18:12:19.670 | CE4: 2014-11-02T18:12:14.240 | JM4: =DG29 -> 0 | JO4: =DI29 -> 0 | JP4: =DJ29 -> 0 | JV4: =CT29 -> 0 | JW4: =CU29 -> 0 | JY4: =CW29 -> 0 | JZ4: =CX29 -> 0 | KB4: =CZ29 -> 0 | KC4: =DA29 -> 0 | KW4: =BU56 -> 0 | KX4: =BX56 -> 0 | KY4: =CA56 -> 0 | KZ4: =CD56 -> 0
D5: 特別養護老人ホーム 入所待機申込書 | T5: 受付年月日 | W5: =IF($D$2="",0,VLOOKUP($D$2,記録台帳!$B$4:$GB$505,FK5)) -> 00:00:00 | AH5: 特別養護老人ホーム 入所待機申込書 | AX5: 受付年月日 | BA5: =$W$5 -> 00:00:00 | BL5: 特別養護老人ホーム 入所待機申込書 | CB5: 受付年月日 | CE5: 00:00:00 | CN5: =IF(CQ5="","",ROW()-4) ->  | CO5: =IF(CR5="","",RANK(CP5,$D$5:$D$505)) ->  | CP5: ← 式が入っています | FK5: 1900-01-04
C7: フリガナ | E7: =IF($D$2="",0,VLOOKUP($D$2,記録台帳!$B$4:$GB$505,ES7)) -> 0 | F7: =IF($D$2="",0,VLOOKUP($D$2,記録台帳!$B$4:$GB$505,ET7)) -> 0 | G7: =IF($D$2="",0,VLOOKUP($D$2,記録台帳!$B$4:$GB$505,EU7)) -> 0 | H7: =IF($D$2="",0,VLOOKUP($D$2,記録台帳!$B$4:$GB$505,EV7)) -> 0 | I7: =IF($D$2="",0,VLOOKUP($D$2,記録台帳!$B$4:$GB$505,EW7)) -> 0 | J7: =IF($D$2="",0,VLOOKUP($D$2,記録台帳!$B$4:$GB$505,EX7)) -> 0 | K7: =IF($D$2="",0,VLOOKUP($D$2,記録台帳!$B$4:$GB$505,EY7)) -> 0 | L7: =IF($D$2="",0,VLOOKUP($D$2,記録台帳!$B$4:$GB$505,EZ7)) -> 0 | M7: 性別 | O7: 〒 | P7: =IF($D$2="",0,VLOOKUP($D$2,記録台帳!$B$4:$GB$505,FD7)) -> 0 | Q7: =IF($D$2="",0,VLOOKUP($D$2,記録台帳!$B$4:$GB$505,FE7)) -> 0 | R7: =IF($D$2="",0,VLOOKUP($D$2,記録台帳!$B$4:$GB$505,FF7)) -> 0 | S7: 電話 | T7: =IF($D$2="",0,VLOOKUP($D$2,記録台帳!$B$4:$GB$505,FH7)) -> 0 | U7: =IF($D$2="",0,VLOOKUP($D$2,記録台帳!$B$4:$GB$505,FI7)) -> 0 | V7: =IF($D$2="",0,VLOOKUP($D$2,記録台帳!$B$4:$GB$505,FJ7)) -> 0 | W7: =IF($D$2="",0,VLOOKUP($D$2,記録台帳!$B$4:$GB$505,FK7)) -> 0 | X7: =IF($D$2="",0,VLOOKUP($D$2,記録台帳!$B$4:$GB$505,FL7)) -> 0 | Y7: =IF($D$2="",0,VLOOKUP($D$2,記録台帳!$B$4:$GB$505,FM7)) -> 0 | Z7: =IF($D$2="",0,VLOOKUP($D$2,記録台帳!$B$4:$GB$505,FN7)) -> 0 | AA7: =IF($D$2="",0,VLOOKUP($D$2,記録台帳!$B$4:$GB$505,FO7)) -> 0 | AB7: =IF($D$2="",0,VLOOKUP($D$2,記録台帳!$B$4:$GB$505,FP7)) -> 0 | AC7: =IF($D$2="",0,VLOOKUP($D$2,記録台帳!$B$4:$GB$505,FQ7)) -> 0 | AG7: フリガナ | AI7: =$E$7 -> 0 | AQ7: 性別 | AS7: 〒 | AT7: =$P$7 -> 0 | AU7: =Q7 -> 0 | AV7: 0 | AW7: 電話 | AX7: =$T$7 -> 0 | AY7: =U7 -> 0 | AZ7: 0 | BA7: 0 | BB7: 0 | BC7: 0 | BD7: 0 | BE7: 0 | BF7: 0 | BG7: 0 | BK7: フリガナ | BM7: 0 | BU7: 性別 | BW7: 〒 | BX7: 0 | BY7: 0 | BZ7: 0 | CA7: 電話 | CB7: 0 | CC7: 0 | CD7: 0 | CE7: 0 | CF7: 0 | CG7: 0 | CH7: 0 | CI7: 0 | CJ7: 0 | CK7: 0 | ES7: 6 | FD7: 8 | FH7: 10
C8: 本人氏名 | E8: =IF($D$2="",0,VLOOKUP($D$2,記録台帳!$B$4:$GB$505,ES8)) -> 0 | F8: =IF($D$2="",0,VLOOKUP($D$2,記録台帳!$B$4:$GB$505,ET8)) -> 0 | G8: =IF($D$2="",0,VLOOKUP($D$2,記録台帳!$B$4:$GB$505,EU8)) -> 0 | H8: =IF($D$2="",0,VLOOKUP($D$2,記録台帳!$B$4:$GB$505,EV8)) -> 0 | I8: =IF($D$2="",0,VLOOKUP($D$2,記録台帳!$B$4:$GB$505,EW8)) -> 0 | J8: =IF($D$2="",0,VLOOKUP($D$2,記録台帳!$B$4:$GB$505,EX8)) -> 0 | K8: =IF($D$2="",0,VLOOKUP($D$2,記録台帳!$B$4:$GB$505,EY8)) -> 0 | L8: =IF($D$2="",0,VLOOKUP($D$2,記録台帳!$B$4:$GB$505,EZ8)) -> 0 | M8: =IF($D$2="",0,VLOOKUP($D$2,記録台帳!$B$4:$GB$505,FA8)) -> 0 | N8: =IF($D$2="",0,VLOOKUP($D$2,記録台帳!$B$4:$GB$505,FB8)) -> 0 | O8: 住所 | P8: =IF($D$2="",0,VLOOKUP($D$2,記録台帳!$B$4:$GB$505,FD8)) -> 0 | Q8: =IF($D$2="",0,VLOOKUP($D$2,記録台帳!$B$4:$GB$505,FE8)) -> 0 | R8: =IF($D$2="",0,VLOOKUP($D$2,記録台帳!$B$4:$GB$505,FF8)) -> 0 | S8: =IF($D$2="",0,VLOOKUP($D$2,記録台帳!$B$4:$GB$505,FG8)) -> 0 | T8: =IF($D$2="",0,VLOOKUP($D$2,記録台帳!$B$4:$GB$505,FH8)) -> 0 | U8: =IF($D$2="",0,VLOOKUP($D$2,記録台帳!$B$4:$GB$505,FI8)) -> 0 | V8: =IF($D$2="",0,VLOOKUP($D$2,記録台帳!$B$4:$GB$505,FJ8)) -> 0 | W8: =IF($D$2="",0,VLOOKUP($D$2,記録台帳!$B$4:$GB$505,FK8)) -> 0 | X8: =IF($D$2="",0,VLOOKUP($D$2,記録台帳!$B$4:$GB$505,FL8)) -> 0 | Y8: =IF($D$2="",0,VLOOKUP($D$2,記録台帳!$B$4:$GB$505,FM8)) -> 0 | Z8: =IF($D$2="",0,VLOOKUP($D$2,記録台帳!$B$4:$GB$505,FN8)) -> 0 | AA8: =IF($D$2="",0,VLOOKUP($D$2,記録台帳!$B$4:$GB$505,FO8)) -> 0 | AB8: =IF($D$2="",0,VLOOKUP($D$2,記録台帳!$B$4:$GB$505,FP8)) -> 0 | AC8: =IF($D$2="",0,VLOOKUP($D$2,記録台帳!$B$4:$GB$505,FQ8)) -> 0 | AG8: 本人氏名 | AI8: =$E$8 -> 0 | AQ8: =$M$8 -> 0 | AR8: =N8 -> 0 | AS8: 住所 | AT8: =$P$8 -> 0 | AU8: 0 | AV8: 0 | AW8: 0 | AX8: 0 | AY8: 0 | AZ8: 0 | BA8: 0 | BB8: 0 | BC8: 0 | BD8: 0 | BE8: 0 | BF8: 0 | BG8: 0 | BK8: 本人氏名 | BM8: 0 | BU8: 0 | BV8: 0 | BW8: 住所 | BX8: 0 | BY8: 0 | BZ8: 0 | CA8: 0 | CB8: 0 | CC8: 0 | CD8: 0 | CE8: 0 | CF8: 0 | CG8: 0 | CH8: 0 | CI8: 0 | CJ8: 0 | CK8: 0 | ES8: 5 | FA8: 7 | FD8: 9
C9: 生 年 月 日 | K9: 年齢 | M9: 介護度 | O9: 介護保険証被保険者番号 | Y9: 保険者市町村名 | AG9: 生 年 月 日 | AO9: 年齢 | AQ9: 介護度 | AS9: 介護保険証被保険者番号 | BC9: 保険者市町村名 | BK9: 生 年 月 日 | BS9: 年齢 | BU9: 介護度 | BW9: 介護保険証被保険者番号 | CG9: 保険者市町村名 | KS9: =BN60 -> 0 | KT9: =BZ60 -> 0
C10: =IF($D$2="",0,VLOOKUP($D$2,記録台帳!$B$4:$GB$505,EQ10)) -> 00:00:00 | D10: =IF($D$2="",0,VLOOKUP($D$2,記録台帳!$B$4:$GB$505,ER10)) -> 00:00:00 | E10: =IF($D$2="",0,VLOOKUP($D$2,記録台帳!$B$4:$GB$505,ES10)) -> 00:00:00 | F10: =IF($D$2="",0,VLOOKUP($D$2,記録台帳!$B$4:$GB$505,ET10)) -> 00:00:00 | G10: =IF($D$2="",0,VLOOKUP($D$2,記録台帳!$B$4:$GB$505,EU10)) -> 00:00:00 | H10: =IF($D$2="",0,VLOOKUP($D$2,記録台帳!$B$4:$GB$505,EV10)) -> 00:00:00 | I10: =IF($D$2="",0,VLOOKUP($D$2,記録台帳!$B$4:$GB$505,EW10)) -> 00:00:00 | J10: =IF($D$2="",0,VLOOKUP($D$2,記録台帳!$B$4:$GB$505,EX10)) -> 00:00:00 | K10: =IF(C10=0,"",DATEDIF(C10,TODAY(),"y")) ->  | M10: =IF($D$2="",0,VLOOKUP($D$2,記録台帳!$B$4:$GB$505,FA10)) -> 0 | N10: =IF($D$2="",0,VLOOKUP($D$2,記録台帳!$B$4:$GB$505,FB10)) -> 0 | O10: =IF($D$2="",0,VLOOKUP($D$2,記録台帳!$B$4:$GB$505,13)) -> 0 | P10: =IF($D$2="",0,VLOOKUP($D$2,記録台帳!$B$4:$DM$505,4)) -> 0 | Q10: =IF($D$2="",0,VLOOKUP($D$2,記録台帳!$B$4:$DM$505,4)) -> 0 | R10: =IF($D$2="",0,VLOOKUP($D$2,記録台帳!$B$4:$DM$505,4)) -> 0 | S10: =IF($D$2="",0,VLOOKUP($D$2,記録台帳!$B$4:$DM$505,4)) -> 0 | T10: =IF($D$2="",0,VLOOKUP($D$2,記録台帳!$B$4:$DM$505,4)) -> 0 | U10: =IF($D$2="",0,VLOOKUP($D$2,記録台帳!$B$4:$DM$505,4)) -> 0 | V10: =IF($D$2="",0,VLOOKUP($D$2,記録台帳!$B$4:$DM$505,4)) -> 0 | W10: =IF($D$2="",0,VLOOKUP($D$2,記録台帳!$B$4:$DM$505,4)) -> 0 | X10: =IF($D$2="",0,VLOOKUP($D$2,記録台帳!$B$4:$DM$505,4)) -> 0 | Y10: =IF($D$2="",0,VLOOKUP($D$2,記録台帳!$B$4:$GB$505,FM10)) -> 0 | Z10: =IF($D$2="",0,VLOOKUP($D$2,記録台帳!$B$4:$GB$505,FN10)) -> 0 | AA10: =IF($D$2="",0,VLOOKUP($D$2,記録台帳!$B$4:$GB$505,FO10)) -> 0 | AB10: =IF($D$2="",0,VLOOKUP($D$2,記録台帳!$B$4:$GB$505,FP10)) -> 0 | AC10: =IF($D$2="",0,VLOOKUP($D$2,記録台帳!$B$4:$GB$505,FQ10)) -> 0 | AG10: =$C$10 -> 00:00:00 | AH10: =D10 -> 00:00:00 | AI10: 00:00:00 | AJ10: 00:00:00 | AK10: 00:00:00 | AL10: 00:00:00 | AM10: 00:00:00 | AN10: 00:00:00 | AO10: =IF(OR(AG10=0,AG10=""),"",DATEDIF(AG10,TODAY(),"y")) ->  | AQ10: =$M$10 -> 0 | AR10: =N10 -> 0 | AS10: =$O$10 -> 0 | AT10: =P10 -> 0 | AU10: 0 | AV10: 0 | AW10: 0 | AX10: 0 | AY10: 0 | AZ10: 0 | BA10: 0 | BB10: 0 | BC10: =$Y$10 -> 0 | BD10: 0 | BE10: 0 | BF10: 0 | BG10: 0 | BK10: 00:00:00 | BL10: 00:00:00 | BM10: 00:00:00 | BN10: 00:00:00 | BO10: 00:00:00 | BP10: 00:00:00 | BQ10: 00:00:00 | BR10: 00:00:00 | BU10: 0 | BV10: 0 | BW10: 0 | BX10: 0 | BY10: 0 | BZ10: 0 | CA10: 0 | CB10: 0 | CC10: 0 | CD10: 0 | CE10: 0 | CF10: 0 | CG10: 0 | CH10: 0 | CI10: 0 | CJ10: 0 | CK10: 0 | EQ10: 1900-01-11 | FA10: 12 | FC10: 13 | FM10: 14 | KS10: =BN61 -> 0 | KT10: 0
C11: 連絡先 家族氏名 | E11: =IF($D$2="",0,VLOOKUP($D$2,記録台帳!$B$4:$GB$505,ES11)) -> 0 | M11: 続柄 | O11: 〒 | P11: =IF($D$2="",0,VLOOKUP($D$2,記録台帳!$B$4:$GB$505,FD11)) -> 0 | Q11: =IF($D$2="",0,VLOOKUP($D$2,記録台帳!$B$4:$GB$505,FE11)) -> 0 | R11: 電話 | S11: =IF($D$2="",0,VLOOKUP($D$2,記録台帳!$B$4:$GB$505,FG11)) -> 0 | T11: =IF($D$2="",0,VLOOKUP($D$2,記録台帳!$B$4:$GB$505,FH11)) -> 0 | U11: =IF($D$2="",0,VLOOKUP($D$2,記録台帳!$B$4:$GB$505,FI11)) -> 0 | V11: =IF($D$2="",0,VLOOKUP($D$2,記録台帳!$B$4:$GB$505,FJ11)) -> 0 | W11: =IF($D$2="",0,VLOOKUP($D$2,記録台帳!$B$4:$GB$505,FK11)) -> 0 | X11: 携帯 | Y11: =IF($D$2="",0,VLOOKUP($D$2,記録台帳!$B$4:$GB$505,FM11)) -> 0 | Z11: =IF($D$2="",0,VLOOKUP($D$2,記録台帳!$B$4:$GB$505,FN11)) -> 0 | AA11: =IF($D$2="",0,VLOOKUP($D$2,記録台帳!$B$4:$GB$505,FO11)) -> 0 | AB11: =IF($D$2="",0,VLOOKUP($D$2,記録台帳!$B$4:$GB$505,FP11)) -> 0 | AC11: =IF($D$2="",0,VLOOKUP($D$2,記録台帳!$B$4:$GB$505,FQ11)) -> 0 | AG11: 連絡先 家族氏名 | AI11: =$E$11 -> 0 | AQ11: 続柄 | AS11: 〒 | AT11: =$P$11 -> 0 | AU11: 0 | AV11: 電話 | AW11: =$S$11 -> 0 | AX11: 0 | AY11: 0 | AZ11: 0 | BA11: 0 | BB11: 携帯 | BC11: =$Y$11 -> 0 | BD11: 0 | BE11: 0 | BF11: 0 | BG11: 0 | BK11: 連絡先 家族氏名 | BM11: 0 | BU11: 続柄 | BW11: 〒 | BX11: 0 | BY11: 0 | BZ11: 電話 | CA11: 0 | CB11: 0 | CC11: 0 | CD11: 0 | CE11: 0 | CF11: 携帯 | CG11: 0 | CH11: 0 | CI11: 0 | CJ11: 0 | CK11: 0 | CO11: =COUNTA(記録台帳!$E$5:$E$505) -> 0 | ES11: 15 | FD11: 18 | FG11: 20 | FM11: 21 | KS11: =BN62 -> 0 | KT11: 0
M12: =IF($D$2="",0,VLOOKUP($D$2,記録台帳!$B$4:$GB$505,FA12)) -> 0 | N12: =IF($D$2="",0,VLOOKUP($D$2,記録台帳!$B$4:$GB$505,FB12)) -> 0 | O12: 住所 | P12: =IF($D$2="",0,VLOOKUP($D$2,記録台帳!$B$4:$GB$505,FD12)) -> 0 | Q12: =IF($D$2="",0,VLOOKUP($D$2,記録台帳!$B$4:$GB$505,FE12)) -> 0 | R12: =IF($D$2="",0,VLOOKUP($D$2,記録台帳!$B$4:$GB$505,FF12)) -> 0 | S12: =IF($D$2="",0,VLOOKUP($D$2,記録台帳!$B$4:$GB$505,FG12)) -> 0 | T12: =IF($D$2="",0,VLOOKUP($D$2,記録台帳!$B$4:$GB$505,FH12)) -> 0 | U12: =IF($D$2="",0,VLOOKUP($D$2,記録台帳!$B$4:$GB$505,FI12)) -> 0 | V12: =IF($D$2="",0,VLOOKUP($D$2,記録台帳!$B$4:$GB$505,FJ12)) -> 0 | W12: =IF($D$2="",0,VLOOKUP($D$2,記録台帳!$B$4:$GB$505,FK12)) -> 0 | X12: =IF($D$2="",0,VLOOKUP($D$2,記録台帳!$B$4:$GB$505,FL12)) -> 0 | Y12: =IF($D$2="",0,VLOOKUP($D$2,記録台帳!$B$4:$GB$505,FM12)) -> 0 | Z12: =IF($D$2="",0,VLOOKUP($D$2,記録台帳!$B$4:$GB$505,FN12)) -> 0 | AA12: =IF($D$2="",0,VLOOKUP($D$2,記録台帳!$B$4:$GB$505,FO12)) -> 0 | AB12: =IF($D$2="",0,VLOOKUP($D$2,記録台帳!$B$4:$GB$505,FP12)) -> 0 | AC12: =IF($D$2="",0,VLOOKUP($D$2,記録台帳!$B$4:$GB$505,FQ12)) -> 0 | AQ12: =$M$12 -> 0 | AR12: =N12 -> 0 | AS12: 住所 | AT12: =$P$12 -> 0 | AU12: 0 | AV12: 0 | AW12: 0 | AX12: 0 | AY12: 0 | AZ12: 0 | BA12: 0 | BB12: 0 | BC12: 0 | BD12: 0 | BE12: 0 | BF12: 0 | BG12: 0 | BU12: 0 | BV12: 0 | BW12: 住所 | BX12: 0 | BY12: 0 | BZ12: 0 | CA12: 0 | CB12: 0 | CC12: 0 | CD12: 0 | CE12: 0 | CF12: 0 | CG12: 0 | CH12: 0 | CI12: 0 | CJ12: 0 | CK12: 0 | FA12: 17 | FD12: 19 | KS12: =BN63 -> 0 | KT12: 0
C13: 概況と 経緯の 報告 | E13: =IF($D$2="",0,VLOOKUP($D$2,記録台帳!$B$4:$GB$505,ES13)) -> 0 | F13: =IF($D$2="",0,VLOOKUP($D$2,記録台帳!$B$4:$GB$505,ET13)) -> 0 | G13: =IF($D$2="",0,VLOOKUP($D$2,記録台帳!$B$4:$GB$505,EU13)) -> 0 | H13: =IF($D$2="",0,VLOOKUP($D$2,記録台帳!$B$4:$GB$505,EV13)) -> 0 | I13: =IF($D$2="",0,VLOOKUP($D$2,記録台帳!$B$4:$GB$505,EW13)) -> 0 | J13: =IF($D$2="",0,VLOOKUP($D$2,記録台帳!$B$4:$GB$505,EX13)) -> 0 | K13: =IF($D$2="",0,VLOOKUP($D$2,記録台帳!$B$4:$GB$505,EY13)) -> 0 | L13: =IF($D$2="",0,VLOOKUP($D$2,記録台帳!$B$4:$GB$505,EZ13)) -> 0 | M13: =IF($D$2="",0,VLOOKUP($D$2,記録台帳!$B$4:$GB$505,FA13)) -> 0 | N13: =IF($D$2="",0,VLOOKUP($D$2,記録台帳!$B$4:$GB$505,FB13)) -> 0 | O13: 世帯状況 | P13: =マスタ変更!P7 -> 独居 | R13: =マスタ変更!R7 -> 在宅で家族介護 | T13: =マスタ変更!T7 -> ７５歳以上 老々介護 | V13: =マスタ変更!V7 -> 施設 入所 入院中 | X13: 入院・入所施設名 | AG13: =$C$13 -> 概況と 経緯の 報告 | AI13: =$E$13 -> 0 | AJ13: 0 | AK13: 0 | AL13: 0 | AM13: 0 | AN13: 0 | AO13: 0 | AP13: 0 | AQ13: 0 | AR13: 0 | AS13: 世帯状況 | AT13: =$P$13 -> 独居 | AU13: 0 | AV13: =$R$13 -> 在宅で家族介護 | AW13: 0 | AX13: =$T$13 -> ７５歳以上 老々介護 | AY13: 0 | AZ13: =$V$13 -> 施設 入所 入院中 | BB13: 入院・入所施設名 | BK13: 概況と 経緯の 報告 | BM13: 0 | BN13: 0 | BO13: 0 | BP13: 0 | BQ13: 0 | BR13: 0 | BS13: 0 | BT13: 0 | BU13: 0 | BV13: 0 | BW13: 世帯状況 | BX13: 独居 | BY13: 0 | BZ13: 在宅で家族介護 | CA13: 0 | CB13: ７５歳以上 老々介護 | CC13: 0 | CD13: 施設 入所 入院中 | CF13: 入院・入所施設名 | DR13: =IF($D$2="",0,VLOOKUP($D$2,記録台帳!$B$4:$GB$505,$FD$13)) -> 0 | DT13: =IF($D$2="",0,VLOOKUP($D$2,記録台帳!$B$4:$GB$505,$FF$13)) -> 0 | DU13: =IF($D$2="",0,VLOOKUP($D$2,記録台帳!$B$4:$GB$505,FG13)) -> 0 | DV13: =IF($D$2="",0,VLOOKUP($D$2,記録台帳!$B$4:$GB$505,$FH$13)) -> 0 | DW13: =IF($D$2="",0,VLOOKUP($D$2,記録台帳!$B$4:$GB$505,FI13)) -> 0 | DX13: =IF($D$2="",0,VLOOKUP($D$2,記録台帳!$B$4:$GB$505,$FJ$13)) -> 0 | DY13: =IF($D$2="",0,VLOOKUP($D$2,記録台帳!$B$4:$GB$505,FK13)) -> 0 | DZ13: 0 | EB13: 0 | ED13: 0 | ES13: 22 | FD13: 23 | FF13: 24 | FH13: 25 | FJ13: 27 | FS13: =配点表!C5 -> 9 | FU13: =配点表!D5 -> 3 | FW13: =配点表!E5 -> 6
E14: =IF($D$2="",0,VLOOKUP($D$2,記録台帳!$B$4:$GB$505,ES14)) -> 0 | F14: =IF($D$2="",0,VLOOKUP($D$2,記録台帳!$B$4:$GB$505,ET14)) -> 0 | G14: =IF($D$2="",0,VLOOKUP($D$2,記録台帳!$B$4:$GB$505,EU14)) -> 0 | H14: =IF($D$2="",0,VLOOKUP($D$2,記録台帳!$B$4:$GB$505,EV14)) -> 0 | I14: =IF($D$2="",0,VLOOKUP($D$2,記録台帳!$B$4:$GB$505,EW14)) -> 0 | J14: =IF($D$2="",0,VLOOKUP($D$2,記録台帳!$B$4:$GB$505,EX14)) -> 0 | K14: =IF($D$2="",0,VLOOKUP($D$2,記録台帳!$B$4:$GB$505,EY14)) -> 0 | L14: =IF($D$2="",0,VLOOKUP($D$2,記録台帳!$B$4:$GB$505,EZ14)) -> 0 | M14: =IF($D$2="",0,VLOOKUP($D$2,記録台帳!$B$4:$GB$505,FA14)) -> 0 | N14: =IF($D$2="",0,VLOOKUP($D$2,記録台帳!$B$4:$GB$505,FB14)) -> 0 | X14: =IF($D$2="",0,VLOOKUP($D$2,記録台帳!$B$4:$GB$505,FL14)) -> 0 | Y14: =IF($D$2="",0,VLOOKUP($D$2,記録台帳!$B$4:$GB$505,FM14)) -> 0 | Z14: =IF($D$2="",0,VLOOKUP($D$2,記録台帳!$B$4:$GB$505,FN14)) -> 0 | AA14: =IF($D$2="",0,VLOOKUP($D$2,記録台帳!$B$4:$GB$505,FO14)) -> 0 | AB14: =IF($D$2="",0,VLOOKUP($D$2,記録台帳!$B$4:$GB$505,FP14)) -> 0 | AC14: =IF($D$2="",0,VLOOKUP($D$2,記録台帳!$B$4:$GB$505,FQ14)) -> 0 | AI14: 0 | AJ14: 0 | AK14: 0 | AL14: 0 | AM14: 0 | AN14: 0 | AO14: 0 | AP14: 0 | AQ14: 0 | AR14: 0 | AT14: 0 | AU14: 0 | AV14: 0 | AW14: 0 | AX14: 0 | AY14: 0 | BB14: =$X$14 -> 0 | BM14: 0 | BN14: 0 | BO14: 0 | BP14: 0 | BQ14: 0 | BR14: 0 | BS14: 0 | BT14: 0 | BU14: 0 | BV14: 0 | BX14: 0 | BY14: 0 | BZ14: 0 | CA14: 0 | CB14: 0 | CC14: 0 | CF14: 0 | DT14: =IF($D$2="",0,VLOOKUP($D$2,記録台帳!$B$4:$GB$505,FF14)) -> 0 | DU14: =IF($D$2="",0,VLOOKUP($D$2,記録台帳!$B$4:$GB$505,FG14)) -> 0 | DV14: =IF($D$2="",0,VLOOKUP($D$2,記録台帳!$B$4:$GB$505,FH14)) -> 0 | DW14: =IF($D$2="",0,VLOOKUP($D$2,記録台帳!$B$4:$GB$505,FI14)) -> 0 | DX14: =IF($D$2="",0,VLOOKUP($D$2,記録台帳!$B$4:$GB$505,FJ14)) -> 0 | DY14: =IF($D$2="",0,VLOOKUP($D$2,記録台帳!$B$4:$GB$505,FK14)) -> 0 | FL14: 26
E15: =IF($D$2="",0,VLOOKUP($D$2,記録台帳!$B$4:$GB$505,ES15)) -> 0 | F15: =IF($D$2="",0,VLOOKUP($D$2,記録台帳!$B$4:$GB$505,ET15)) -> 0 | G15: =IF($D$2="",0,VLOOKUP($D$2,記録台帳!$B$4:$GB$505,EU15)) -> 0 | H15: =IF($D$2="",0,VLOOKUP($D$2,記録台帳!$B$4:$GB$505,EV15)) -> 0 | I15: =IF($D$2="",0,VLOOKUP($D$2,記録台帳!$B$4:$GB$505,EW15)) -> 0 | J15: =IF($D$2="",0,VLOOKUP($D$2,記録台帳!$B$4:$GB$505,EX15)) -> 0 | K15: =IF($D$2="",0,VLOOKUP($D$2,記録台帳!$B$4:$GB$505,EY15)) -> 0 | L15: =IF($D$2="",0,VLOOKUP($D$2,記録台帳!$B$4:$GB$505,EZ15)) -> 0 | M15: =IF($D$2="",0,VLOOKUP($D$2,記録台帳!$B$4:$GB$505,FA15)) -> 0 | N15: =IF($D$2="",0,VLOOKUP($D$2,記録台帳!$B$4:$GB$505,FB15)) -> 0 | P15: =マスタ変更!P9 -> 介護者 不在 | R15: =マスタ変更!R9 -> 主介護者 障害疾病 など | T15: =マスタ変更!T9 -> 就労 のため 介護困難 | V15: =マスタ変更!V9 -> 育児のため 介護困難 | X15: =マスタ変更!X9 -> 障害者 複数介護 | Z15: =マスタ変更!Z9 -> 退院等を 迫られ ている | AB15: =マスタ変更!AB9 -> 遠距離 訪問介護 | AI15: 0 | AJ15: 0 | AK15: 0 | AL15: 0 | AM15: 0 | AN15: 0 | AO15: 0 | AP15: 0 | AQ15: 0 | AR15: 0 | AT15: =$P$15 -> 介護者 不在 | AU15: 0 | AV15: =$R$15 -> 主介護者 障害疾病 など | AW15: 0 | AX15: =$T$15 -> 就労 のため 介護困難 | AY15: 0 | AZ15: =$V$15 -> 育児のため 介護困難 | BA15: =W15 -> 0 | BB15: =$X$15 -> 障害者 複数介護 | BC15: 0 | BD15: =$Z$15 -> 退院等を 迫られ ている | BE15: 0 | BF15: =$AB$15 -> 遠距離 訪問介護 | BG15: 0 | BM15: 0 | BN15: 0 | BO15: 0 | BP15: 0 | BQ15: 0 | BR15: 0 | BS15: 0 | BT15: 0 | BU15: 0 | BV15: 0 | BX15: 介護者 不在 | BY15: 0 | BZ15: 主介護者 障害疾病 など | CA15: 0 | CB15: 就労 のため 介護困難 | CC15: 0 | CD15: 育児のため 介護困難 | CE15: 0 | CF15: 障害者 複数介護 | CG15: 0 | CH15: 退院等を 迫られ ている | CI15: 0 | CJ15: 遠距離 訪問介護 | CK15: 0 | DR15: =IF($D$2="",0,VLOOKUP($D$2,記録台帳!$B$4:$GB$505,$FD$15)) -> 0 | DS15: =IF($D$2="",0,VLOOKUP($D$2,記録台帳!$B$4:$GB$505,FE15)) -> 0 | DT15: =IF($D$2="",0,VLOOKUP($D$2,記録台帳!$B$4:$GB$505,$FF$15)) -> 0 | DU15: =IF($D$2="",0,VLOOKUP($D$2,記録台帳!$B$4:$GB$505,FG15)) -> 0 | DV15: =IF($D$2="",0,VLOOKUP($D$2,記録台帳!$B$4:$GB$505,$FH$15)) -> 0 | DW15: =IF($D$2="",0,VLOOKUP($D$2,記録台帳!$B$4:$GB$505,FI15)) -> 0 | DX15: =IF($D$2="",0,VLOOKUP($D$2,記録台帳!$B$4:$GB$505,$FJ$15)) -> 0 | DY15: =IF($D$2="",0,VLOOKUP($D$2,記録台帳!$B$4:$GB$505,FK15)) -> 0 | DZ15: =IF($D$2="",0,VLOOKUP($D$2,記録台帳!$B$4:$GB$505,$FL$15)) -> 0 | EA15: =IF($D$2="",0,VLOOKUP($D$2,記録台帳!$B$4:$GB$505,FM15)) -> 0 | EB15: =IF($D$2="",0,VLOOKUP($D$2,記録台帳!$B$4:$GB$505,$FN$15)) -> 0 | EC15: =IF($D$2="",0,VLOOKUP($D$2,記録台帳!$B$4:$GB$505,FO15)) -> 0 | ED15: =IF($D$2="",0,VLOOKUP($D$2,記録台帳!$B$4:$GB$505,$FP$15)) -> 0 | EE15: =IF($D$2="",0,VLOOKUP($D$2,記録台帳!$B$4:$GB$505,FQ15)) -> 0 | FD15: 28 | FF15: 29 | FH15: 30 | FJ15: 31 | FL15: 32 | FN15: 33 | FP15: 34 | FS15: =配点表!G5 -> 9 | FU15: =配点表!H5 -> 3 | FW15: =配点表!I5 -> 5 | FY15: =配点表!J5 -> 4 | GA15: =配点表!K5 -> 5 | GC15: =配点表!L5 -> 1 | GE15: =配点表!M5 -> 3
E16: =IF($D$2="",0,VLOOKUP($D$2,記録台帳!$B$4:$GB$505,ES16)) -> 0 | F16: =IF($D$2="",0,VLOOKUP($D$2,記録台帳!$B$4:$GB$505,ET16)) -> 0 | G16: =IF($D$2="",0,VLOOKUP($D$2,記録台帳!$B$4:$GB$505,EU16)) -> 0 | H16: =IF($D$2="",0,VLOOKUP($D$2,記録台帳!$B$4:$GB$505,EV16)) -> 0 | I16: =IF($D$2="",0,VLOOKUP($D$2,記録台帳!$B$4:$GB$505,EW16)) -> 0 | J16: =IF($D$2="",0,VLOOKUP($D$2,記録台帳!$B$4:$GB$505,EX16)) -> 0 | K16: =IF($D$2="",0,VLOOKUP($D$2,記録台帳!$B$4:$GB$505,EY16)) -> 0 | L16: =IF($D$2="",0,VLOOKUP($D$2,記録台帳!$B$4:$GB$505,EZ16)) -> 0 | M16: =IF($D$2="",0,VLOOKUP($D$2,記録台帳!$B$4:$GB$505,FA16)) -> 0 | N16: =IF($D$2="",0,VLOOKUP($D$2,記録台帳!$B$4:$GB$505,FB16)) -> 0 | AI16: 0 | AJ16: 0 | AK16: 0 | AL16: 0 | AM16: 0 | AN16: 0 | AO16: 0 | AP16: 0 | AQ16: 0 | AR16: 0 | AT16: 0 | AU16: 0 | AV16: 0 | AW16: 0 | AX16: 0 | AY16: 0 | AZ16: 0 | BA16: 0 | BB16: 0 | BC16: 0 | BD16: 0 | BE16: 0 | BF16: 0 | BG16: 0 | BM16: 0 | BN16: 0 | BO16: 0 | BP16: 0 | BQ16: 0 | BR16: 0 | BS16: 0 | BT16: 0 | BU16: 0 | BV16: 0 | BX16: 0 | BY16: 0 | BZ16: 0 | CA16: 0 | CB16: 0 | CC16: 0 | CD16: 0 | CE16: 0 | CF16: 0 | CG16: 0 | CH16: 0 | CI16: 0 | CJ16: 0 | CK16: 0 | DR16: =IF($D$2="",0,VLOOKUP($D$2,記録台帳!$B$4:$GB$505,FD16)) -> 0 | DS16: =IF($D$2="",0,VLOOKUP($D$2,記録台帳!$B$4:$GB$505,FE16)) -> 0 | DT16: =IF($D$2="",0,VLOOKUP($D$2,記録台帳!$B$4:$GB$505,FF16)) -> 0 | DU16: =IF($D$2="",0,VLOOKUP($D$2,記録台帳!$B$4:$GB$505,FG16)) -> 0 | DV16: =IF($D$2="",0,VLOOKUP($D$2,記録台帳!$B$4:$GB$505,FH16)) -> 0 | DW16: =IF($D$2="",0,VLOOKUP($D$2,記録台帳!$B$4:$GB$505,FI16)) -> 0 | DX16: =IF($D$2="",0,VLOOKUP($D$2,記録台帳!$B$4:$GB$505,FJ16)) -> 0 | DY16: =IF($D$2="",0,VLOOKUP($D$2,記録台帳!$B$4:$GB$505,FK16)) -> 0 | DZ16: =IF($D$2="",0,VLOOKUP($D$2,記録台帳!$B$4:$GB$505,FL16)) -> 0 | EA16: =IF($D$2="",0,VLOOKUP($D$2,記録台帳!$B$4:$GB$505,FM16)) -> 0 | EB16: =IF($D$2="",0,VLOOKUP($D$2,記録台帳!$B$4:$GB$505,FN16)) -> 0 | EC16: =IF($D$2="",0,VLOOKUP($D$2,記録台帳!$B$4:$GB$505,FO16)) -> 0 | ED16: =IF($D$2="",0,VLOOKUP($D$2,記録台帳!$B$4:$GB$505,FP16)) -> 0 | EE16: =IF($D$2="",0,VLOOKUP($D$2,記録台帳!$B$4:$GB$505,FQ16)) -> 0
E17: =IF($D$2="",0,VLOOKUP($D$2,記録台帳!$B$4:$GB$505,ES17)) -> 0 | F17: =IF($D$2="",0,VLOOKUP($D$2,記録台帳!$B$4:$GB$505,ET17)) -> 0 | G17: =IF($D$2="",0,VLOOKUP($D$2,記録台帳!$B$4:$GB$505,EU17)) -> 0 | H17: =IF($D$2="",0,VLOOKUP($D$2,記録台帳!$B$4:$GB$505,EV17)) -> 0 | I17: =IF($D$2="",0,VLOOKUP($D$2,記録台帳!$B$4:$GB$505,EW17)) -> 0 | J17: =IF($D$2="",0,VLOOKUP($D$2,記録台帳!$B$4:$GB$505,EX17)) -> 0 | K17: =IF($D$2="",0,VLOOKUP($D$2,記録台帳!$B$4:$GB$505,EY17)) -> 0 | L17: =IF($D$2="",0,VLOOKUP($D$2,記録台帳!$B$4:$GB$505,EZ17)) -> 0 | M17: =IF($D$2="",0,VLOOKUP($D$2,記録台帳!$B$4:$GB$505,FA17)) -> 0 | N17: =IF($D$2="",0,VLOOKUP($D$2,記録台帳!$B$4:$GB$505,FB17)) -> 0 | O17: 家族と世帯（介護者・頻度）などの情報 | AI17: 0 | AJ17: 0 | AK17: 0 | AL17: 0 | AM17: 0 | AN17: 0 | AO17: 0 | AP17: 0 | AQ17: 0 | AR17: 0 | AS17: =$O$17 -> 家族と世帯（介護者・頻度）などの情報 | BM17: 0 | BN17: 0 | BO17: 0 | BP17: 0 | BQ17: 0 | BR17: 0 | BS17: 0 | BT17: 0 | BU17: 0 | BV17: 0 | BW17: 家族と世帯（介護者・頻度）などの情報
E18: =IF($D$2="",0,VLOOKUP($D$2,記録台帳!$B$4:$GB$505,ES18)) -> 0 | F18: =IF($D$2="",0,VLOOKUP($D$2,記録台帳!$B$4:$GB$505,ET18)) -> 0 | G18: =IF($D$2="",0,VLOOKUP($D$2,記録台帳!$B$4:$GB$505,EU18)) -> 0 | H18: =IF($D$2="",0,VLOOKUP($D$2,記録台帳!$B$4:$GB$505,EV18)) -> 0 | I18: =IF($D$2="",0,VLOOKUP($D$2,記録台帳!$B$4:$GB$505,EW18)) -> 0 | J18: =IF($D$2="",0,VLOOKUP($D$2,記録台帳!$B$4:$GB$505,EX18)) -> 0 | K18: =IF($D$2="",0,VLOOKUP($D$2,記録台帳!$B$4:$GB$505,EY18)) -> 0 | L18: =IF($D$2="",0,VLOOKUP($D$2,記録台帳!$B$4:$GB$505,EZ18)) -> 0 | M18: =IF($D$2="",0,VLOOKUP($D$2,記録台帳!$B$4:$GB$505,FA18)) -> 0 | N18: =IF($D$2="",0,VLOOKUP($D$2,記録台帳!$B$4:$GB$505,FB18)) -> 0 | O18: =IF($D$2="",0,VLOOKUP($D$2,記録台帳!$B$4:$GB$505,FC18)) -> 0 | P18: =IF($D$2="",0,VLOOKUP($D$2,記録台帳!$B$4:$GB$505,FD18)) -> 0 | Q18: =IF($D$2="",0,VLOOKUP($D$2,記録台帳!$B$4:$GB$505,FE18)) -> 0 | R18: =IF($D$2="",0,VLOOKUP($D$2,記録台帳!$B$4:$GB$505,FF18)) -> 0 | S18: =IF($D$2="",0,VLOOKUP($D$2,記録台帳!$B$4:$GB$505,FG18)) -> 0 | T18: =IF($D$2="",0,VLOOKUP($D$2,記録台帳!$B$4:$GB$505,FH18)) -> 0 | U18: =IF($D$2="",0,VLOOKUP($D$2,記録台帳!$B$4:$GB$505,FI18)) -> 0 | V18: =IF($D$2="",0,VLOOKUP($D$2,記録台帳!$B$4:$GB$505,FJ18)) -> 0 | W18: =IF($D$2="",0,VLOOKUP($D$2,記録台帳!$B$4:$GB$505,FK18)) -> 0 | X18: =IF($D$2="",0,VLOOKUP($D$2,記録台帳!$B$4:$GB$505,FL18)) -> 0 | Y18: =IF($D$2="",0,VLOOKUP($D$2,記録台帳!$B$4:$GB$505,FM18)) -> 0 | Z18: =IF($D$2="",0,VLOOKUP($D$2,記録台帳!$B$4:$GB$505,FN18)) -> 0 | AA18: =IF($D$2="",0,VLOOKUP($D$2,記録台帳!$B$4:$GB$505,FO18)) -> 0 | AB18: =IF($D$2="",0,VLOOKUP($D$2,記録台帳!$B$4:$GB$505,FP18)) -> 0 | AC18: =IF($D$2="",0,VLOOKUP($D$2,記録台帳!$B$4:$GB$505,FQ18)) -> 0 | AI18: 0 | AJ18: 0 | AK18: 0 | AL18: 0 | AM18: 0 | AN18: 0 | AO18: 0 | AP18: 0 | AQ18: 0 | AR18: 0 | AS18: =$O$18 -> 0 | AT18: =P18 -> 0 | AU18: 0 | AV18: 0 | AW18: 0 | AX18: 0 | AY18: 0 | AZ18: 0 | BA18: 0 | BB18: 0 | BC18: 0 | BD18: 0 | BE18: 0 | BF18: 0 | BG18: 0 | BM18: 0 | BN18: 0 | BO18: 0 | BP18: 0 | BQ18: 0 | BR18: 0 | BS18: 0 | BT18: 0 | BU18: 0 | BV18: 0 | BW18: 0 | BX18: 0 | BY18: 0 | BZ18: 0 | CA18: 0 | CB18: 0 | CC18: 0 | CD18: 0 | CE18: 0 | CF18: 0 | CG18: 0 | CH18: 0 | CI18: 0 | CJ18: 0 | CK18: 0 | FC18: 35 | FS18: =DC13*FS13 -> 0 | FU18: =DE13*FU13 -> 0 | FW18: =DG13*FW13 -> 0
E19: =IF($D$2="",0,VLOOKUP($D$2,記録台帳!$B$4:$GB$505,ES19)) -> 0 | F19: =IF($D$2="",0,VLOOKUP($D$2,記録台帳!$B$4:$GB$505,ET19)) -> 0 | G19: =IF($D$2="",0,VLOOKUP($D$2,記録台帳!$B$4:$GB$505,EU19)) -> 0 | H19: =IF($D$2="",0,VLOOKUP($D$2,記録台帳!$B$4:$GB$505,EV19)) -> 0 | I19: =IF($D$2="",0,VLOOKUP($D$2,記録台帳!$B$4:$GB$505,EW19)) -> 0 | J19: =IF($D$2="",0,VLOOKUP($D$2,記録台帳!$B$4:$GB$505,EX19)) -> 0 | K19: =IF($D$2="",0,VLOOKUP($D$2,記録台帳!$B$4:$GB$505,EY19)) -> 0 | L19: =IF($D$2="",0,VLOOKUP($D$2,記録台帳!$B$4:$GB$505,EZ19)) -> 0 | M19: =IF($D$2="",0,VLOOKUP($D$2,記録台帳!$B$4:$GB$505,FA19)) -> 0 | N19: =IF($D$2="",0,VLOOKUP($D$2,記録台帳!$B$4:$GB$505,FB19)) -> 0 | O19: =IF($D$2="",0,VLOOKUP($D$2,記録台帳!$B$4:$GB$505,FC19)) -> 0 | P19: =IF($D$2="",0,VLOOKUP($D$2,記録台帳!$B$4:$GB$505,FD19)) -> 0 | Q19: =IF($D$2="",0,VLOOKUP($D$2,記録台帳!$B$4:$GB$505,FE19)) -> 0 | R19: =IF($D$2="",0,VLOOKUP($D$2,記録台帳!$B$4:$GB$505,FF19)) -> 0 | S19: =IF($D$2="",0,VLOOKUP($D$2,記録台帳!$B$4:$GB$505,FG19)) -> 0 | T19: =IF($D$2="",0,VLOOKUP($D$2,記録台帳!$B$4:$GB$505,FH19)) -> 0 | U19: =IF($D$2="",0,VLOOKUP($D$2,記録台帳!$B$4:$GB$505,FI19)) -> 0 | V19: =IF($D$2="",0,VLOOKUP($D$2,記録台帳!$B$4:$GB$505,FJ19)) -> 0 | W19: =IF($D$2="",0,VLOOKUP($D$2,記録台帳!$B$4:$GB$505,FK19)) -> 0 | X19: =IF($D$2="",0,VLOOKUP($D$2,記録台帳!$B$4:$GB$505,FL19)) -> 0 | Y19: =IF($D$2="",0,VLOOKUP($D$2,記録台帳!$B$4:$GB$505,FM19)) -> 0 | Z19: =IF($D$2="",0,VLOOKUP($D$2,記録台帳!$B$4:$GB$505,FN19)) -> 0 | AA19: =IF($D$2="",0,VLOOKUP($D$2,記録台帳!$B$4:$GB$505,FO19)) -> 0 | AB19: =IF($D$2="",0,VLOOKUP($D$2,記録台帳!$B$4:$GB$505,FP19)) -> 0 | AC19: =IF($D$2="",0,VLOOKUP($D$2,記録台帳!$B$4:$GB$505,FQ19)) -> 0 | AI19: 0 | AJ19: 0 | AK19: 0 | AL19: 0 | AM19: 0 | AN19: 0 | AO19: 0 | AP19: 0 | AQ19: 0 | AR19: 0 | AS19: 0 | AT19: 0 | AU19: 0 | AV19: 0 | AW19: 0 | AX19: 0 | AY19: 0 | AZ19: 0 | BA19: 0 | BB19: 0 | BC19: 0 | BD19: 0 | BE19: 0 | BF19: 0 | BG19: 0 | BM19: 0 | BN19: 0 | BO19: 0 | BP19: 0 | BQ19: 0 | BR19: 0 | BS19: 0 | BT19: 0 | BU19: 0 | BV19: 0 | BW19: 0 | BX19: 0 | BY19: 0 | BZ19: 0 | CA19: 0 | CB19: 0 | CC19: 0 | CD19: 0 | CE19: 0 | CF19: 0 | CG19: 0 | CH19: 0 | CI19: 0 | CJ19: 0 | CK19: 0 | CW19: フリガナ | CX19: 本人氏名 | CY19: 〒 | CZ19: 住所 | DA19: 介護度 | DB19: 介護保険証被保険者番号 | DC19: 市・区名 | DD19: 連絡先 家族氏名 | DE19: 家族氏名 | DF19: 概況報告 | DG19: 1ヶ月に本人と親族が 支出できる限界金額
C20: 居宅介護支援事業所 | G20: =IF($D$2="",0,VLOOKUP($D$2,記録台帳!$B$4:$GB$505,EU20)) -> 0 | H20: =IF($D$2="",0,VLOOKUP($D$2,記録台帳!$B$4:$GB$505,EV20)) -> 0 | I20: =IF($D$2="",0,VLOOKUP($D$2,記録台帳!$B$4:$GB$505,EW20)) -> 0 | J20: =IF($D$2="",0,VLOOKUP($D$2,記録台帳!$B$4:$GB$505,EX20)) -> 0 | K20: =IF($D$2="",0,VLOOKUP($D$2,記録台帳!$B$4:$GB$505,EY20)) -> 0 | L20: =IF($D$2="",0,VLOOKUP($D$2,記録台帳!$B$4:$GB$505,EZ20)) -> 0 | M20: =IF($D$2="",0,VLOOKUP($D$2,記録台帳!$B$4:$GB$505,FA20)) -> 0 | N20: =IF($D$2="",0,VLOOKUP($D$2,記録台帳!$B$4:$GB$505,FB20)) -> 0 | O20: 同居家族が介護協力困難である具体的理由 | AG20: 居宅介護支援事業所 | AK20: =$G$20 -> 0 | AL20: 0 | AM20: 0 | AN20: 0 | AO20: 0 | AP20: 0 | AQ20: 0 | AR20: 0 | AS20: =$O$20 -> 同居家族が介護協力困難である具体的理由 | BK20: 居宅介護支援事業所 | BO20: 0 | BP20: 0 | BQ20: 0 | BR20: 0 | BS20: 0 | BT20: 0 | BU20: 0 | BV20: 0 | BW20: 同居家族が介護協力困難である具体的理由 | CW20: =IF(BM7=0,0,1) -> 0 | CX20: =IF(BM8=0,0,1) -> 0 | CY20: =IF(BX11=0,0,1) -> 0 | CZ20: =IF(OR(BX8=0,BX12=0),0,1) -> 0 | DA20: =IF(BU10=0,0,1) -> 0 | DB20: =IF(BW10=0,0,1) -> 0 | DC20: =IF(CG10=0,0,1) -> 0 | DD20: =IF(BM11=0,0,1) -> 0 | DE20: =IF(BM11=0,0,1) -> 0 | DF20: =IF(BM13=0,0,1) -> 0 | DG20: =IF(BR34=0,0,1) -> 0 | EU20: 38 | FS20: =DC15*FS15 -> 0 | FU20: =DE15*FU15 -> 0 | FW20: =DG15*FW15 -> 0 | FY20: =DI15*FY15 -> 0 | GA20: =DK15*GA15 -> 0 | GC20: =DM15*GC15 -> 0 | GE20: =DO15*GE15 -> 0
C21: 介護サービスの利用頻度 | J21: 事業所名 | O21: =IF($D$2="",0,VLOOKUP($D$2,記録台帳!$B$4:$GB$505,FC21)) -> 0 | P21: =IF($D$2="",0,VLOOKUP($D$2,記録台帳!$B$4:$GB$505,FD21)) -> 0 | Q21: =IF($D$2="",0,VLOOKUP($D$2,記録台帳!$B$4:$GB$505,FE21)) -> 0 | R21: =IF($D$2="",0,VLOOKUP($D$2,記録台帳!$B$4:$GB$505,FF21)) -> 0 | S21: =IF($D$2="",0,VLOOKUP($D$2,記録台帳!$B$4:$GB$505,FG21)) -> 0 | T21: =IF($D$2="",0,VLOOKUP($D$2,記録台帳!$B$4:$GB$505,FH21)) -> 0 | U21: =IF($D$2="",0,VLOOKUP($D$2,記録台帳!$B$4:$GB$505,FI21)) -> 0 | V21: =IF($D$2="",0,VLOOKUP($D$2,記録台帳!$B$4:$GB$505,FJ21)) -> 0 | W21: =IF($D$2="",0,VLOOKUP($D$2,記録台帳!$B$4:$GB$505,FK21)) -> 0 | X21: =IF($D$2="",0,VLOOKUP($D$2,記録台帳!$B$4:$GB$505,FL21)) -> 0 | Y21: =IF($D$2="",0,VLOOKUP($D$2,記録台帳!$B$4:$GB$505,FM21)) -> 0 | Z21: =IF($D$2="",0,VLOOKUP($D$2,記録台帳!$B$4:$GB$505,FN21)) -> 0 | AA21: =IF($D$2="",0,VLOOKUP($D$2,記録台帳!$B$4:$GB$505,FO21)) -> 0 | AB21: =IF($D$2="",0,VLOOKUP($D$2,記録台帳!$B$4:$GB$505,FP21)) -> 0 | AC21: =IF($D$2="",0,VLOOKUP($D$2,記録台帳!$B$4:$GB$505,FQ21)) -> 0 | AG21: 介護サービスの利用頻度 | AN21: 事業所名 | AS21: =$O$21 -> 0 | AT21: =P21 -> 0 | AU21: 0 | AV21: 0 | AW21: 0 | AX21: 0 | AY21: 0 | AZ21: 0 | BA21: 0 | BB21: 0 | BC21: 0 | BD21: 0 | BE21: 0 | BF21: 0 | BG21: 0 | BK21: 介護サービスの利用頻度 | BR21: 事業所名 | BW21: 0 | BX21: 0 | BY21: 0 | BZ21: 0 | CA21: 0 | CB21: 0 | CC21: 0 | CD21: 0 | CE21: 0 | CF21: 0 | CG21: 0 | CH21: 0 | CI21: 0 | CJ21: 0 | CK21: 0 | CW21: =PRODUCT(CW20:DG20) -> 0 | CX21: ←必須項目チェック | FC21: 36 | GH21: =SUM(FS18:GF21) -> 0 | GI21: ＋ | GJ21: =SUM(FS55:GP71) -> 0 | GK21: ＝ | GL21: =GH21+GJ21 -> 0
C22: ショートステイ | G22: 月 | H22: =IF($D$2="",0,VLOOKUP($D$2,記録台帳!$B$4:$GB$505,EV22)) -> 0 | I22: 回 | J22: =IF($D$2="",0,VLOOKUP($D$2,記録台帳!$B$4:$GB$505,EX22)) -> 0 | K22: =IF($D$2="",0,VLOOKUP($D$2,記録台帳!$B$4:$GB$505,EY22)) -> 0 | L22: =IF($D$2="",0,VLOOKUP($D$2,記録台帳!$B$4:$GB$505,EZ22)) -> 0 | M22: =IF($D$2="",0,VLOOKUP($D$2,記録台帳!$B$4:$GB$505,FA22)) -> 0 | N22: =IF($D$2="",0,VLOOKUP($D$2,記録台帳!$B$4:$GB$505,FB22)) -> 0 | O22: =IF($D$2="",0,VLOOKUP($D$2,記録台帳!$B$4:$GB$505,FC22)) -> 0 | P22: =IF($D$2="",0,VLOOKUP($D$2,記録台帳!$B$4:$GB$505,FD22)) -> 0 | Q22: =IF($D$2="",0,VLOOKUP($D$2,記録台帳!$B$4:$GB$505,FE22)) -> 0 | R22: =IF($D$2="",0,VLOOKUP($D$2,記録台帳!$B$4:$GB$505,FF22)) -> 0 | S22: =IF($D$2="",0,VLOOKUP($D$2,記録台帳!$B$4:$GB$505,FG22)) -> 0 | T22: =IF($D$2="",0,VLOOKUP($D$2,記録台帳!$B$4:$GB$505,FH22)) -> 0 | U22: =IF($D$2="",0,VLOOKUP($D$2,記録台帳!$B$4:$GB$505,FI22)) -> 0 | V22: =IF($D$2="",0,VLOOKUP($D$2,記録台帳!$B$4:$GB$505,FJ22)) -> 0 | W22: =IF($D$2="",0,VLOOKUP($D$2,記録台帳!$B$4:$GB$505,FK22)) -> 0 | X22: =IF($D$2="",0,VLOOKUP($D$2,記録台帳!$B$4:$GB$505,FL22)) -> 0 | Y22: =IF($D$2="",0,VLOOKUP($D$2,記録台帳!$B$4:$GB$505,FM22)) -> 0 | Z22: =IF($D$2="",0,VLOOKUP($D$2,記録台帳!$B$4:$GB$505,FN22)) -> 0 | AA22: =IF($D$2="",0,VLOOKUP($D$2,記録台帳!$B$4:$GB$505,FO22)) -> 0 | AB22: =IF($D$2="",0,VLOOKUP($D$2,記録台帳!$B$4:$GB$505,FP22)) -> 0 | AC22: =IF($D$2="",0,VLOOKUP($D$2,記録台帳!$B$4:$GB$505,FQ22)) -> 0 | AG22: ショートステイ | AK22: 月 | AL22: =$H$22 -> 0 | AM22: 回 | AN22: =$J$22 -> 0 | AO22: =K22 -> 0 | AP22: 0 | AQ22: 0 | AR22: 0 | AS22: 0 | AT22: 0 | AU22: 0 | AV22: 0 | AW22: 0 | AX22: 0 | AY22: 0 | AZ22: 0 | BA22: 0 | BB22: 0 | BC22: 0 | BD22: 0 | BE22: 0 | BF22: 0 | BG22: 0 | BK22: ショートステイ | BO22: 月 | BP22: 0 | BQ22: 回 | BR22: 0 | BS22: 0 | BT22: 0 | BU22: 0 | BV22: 0 | BW22: 0 | BX22: 0 | BY22: 0 | BZ22: 0 | CA22: 0 | CB22: 0 | CC22: 0 | CD22: 0 | CE22: 0 | CF22: 0 | CG22: 0 | CH22: 0 | CI22: 0 | CJ22: 0 | CK22: 0 | EV22: 39 | EX22: 40
C23: デイケア・デイサービス | G23: 月 | H23: =IF($D$2="",0,VLOOKUP($D$2,記録台帳!$B$4:$GB$505,EV23)) -> 0 | I23: 回 | J23: =IF($D$2="",0,VLOOKUP($D$2,記録台帳!$B$4:$GB$505,EX23)) -> 0 | K23: =IF($D$2="",0,VLOOKUP($D$2,記録台帳!$B$4:$GB$505,EY23)) -> 0 | L23: =IF($D$2="",0,VLOOKUP($D$2,記録台帳!$B$4:$GB$505,EZ23)) -> 0 | M23: =IF($D$2="",0,VLOOKUP($D$2,記録台帳!$B$4:$GB$505,FA23)) -> 0 | N23: =IF($D$2="",0,VLOOKUP($D$2,記録台帳!$B$4:$GB$505,FB23)) -> 0 | O23: 非同居家族が介護協力困難である具体的理由・居住地情報 | AG23: デイケア・デイサービス | AK23: 月 | AL23: =$H$23 -> 0 | AM23: 回 | AN23: =$J$23 -> 0 | AO23: 0 | AP23: 0 | AQ23: 0 | AR23: 0 | AS23: =$O$23 -> 非同居家族が介護協力困難である具体的理由・居住地情報 | BK23: デイケア・デイサービス | BO23: 月 | BP23: 0 | BQ23: 回 | BR23: 0 | BS23: 0 | BT23: 0 | BU23: 0 | BV23: 0 | BW23: 非同居家族が介護協力困難である具体的理由・居住地情報 | EV23: 41 | EX23: 42 | GH23: =IF(BU10=3,1,IF(BU10=4,1,IF(BU10=5,1,配点表!I47))) -> 0.85 | GJ23: =ROUNDUP(GL21*GH23,0) -> 0
C24: ヘルパー・訪問介護 | G24: 月 | H24: =IF($D$2="",0,VLOOKUP($D$2,記録台帳!$B$4:$GB$505,EV24)) -> 0 | I24: 回 | J24: =IF($D$2="",0,VLOOKUP($D$2,記録台帳!$B$4:$GB$505,EX24)) -> 0 | K24: =IF($D$2="",0,VLOOKUP($D$2,記録台帳!$B$4:$GB$505,EY24)) -> 0 | L24: =IF($D$2="",0,VLOOKUP($D$2,記録台帳!$B$4:$GB$505,EZ24)) -> 0 | M24: =IF($D$2="",0,VLOOKUP($D$2,記録台帳!$B$4:$GB$505,FA24)) -> 0 | N24: =IF($D$2="",0,VLOOKUP($D$2,記録台帳!$B$4:$GB$505,FB24)) -> 0 | O24: =IF($D$2="",0,VLOOKUP($D$2,記録台帳!$B$4:$GB$505,FC24)) -> 0 | P24: =IF($D$2="",0,VLOOKUP($D$2,記録台帳!$B$4:$GB$505,FD24)) -> 0 | Q24: =IF($D$2="",0,VLOOKUP($D$2,記録台帳!$B$4:$GB$505,FE24)) -> 0 | R24: =IF($D$2="",0,VLOOKUP($D$2,記録台帳!$B$4:$GB$505,FF24)) -> 0 | S24: =IF($D$2="",0,VLOOKUP($D$2,記録台帳!$B$4:$GB$505,FG24)) -> 0 | T24: =IF($D$2="",0,VLOOKUP($D$2,記録台帳!$B$4:$GB$505,FH24)) -> 0 | U24: =IF($D$2="",0,VLOOKUP($D$2,記録台帳!$B$4:$GB$505,FI24)) -> 0 | V24: =IF($D$2="",0,VLOOKUP($D$2,記録台帳!$B$4:$GB$505,FJ24)) -> 0 | W24: =IF($D$2="",0,VLOOKUP($D$2,記録台帳!$B$4:$GB$505,FK24)) -> 0 | X24: =IF($D$2="",0,VLOOKUP($D$2,記録台帳!$B$4:$GB$505,FL24)) -> 0 | Y24: =IF($D$2="",0,VLOOKUP($D$2,記録台帳!$B$4:$GB$505,FM24)) -> 0 | Z24: =IF($D$2="",0,VLOOKUP($D$2,記録台帳!$B$4:$GB$505,FN24)) -> 0 | AA24: =IF($D$2="",0,VLOOKUP($D$2,記録台帳!$B$4:$GB$505,FO24)) -> 0 | AB24: =IF($D$2="",0,VLOOKUP($D$2,記録台帳!$B$4:$GB$505,FP24)) -> 0 | AC24: =IF($D$2="",0,VLOOKUP($D$2,記録台帳!$B$4:$GB$505,FQ24)) -> 0 | AG24: ヘルパー・訪問介護 | AK24: 月 | AL24: =$H$24 -> 0 | AM24: 回 | AN24: =$J$24 -> 0 | AO24: 0 | AP24: 0 | AQ24: 0 | AR24: 0 | AS24: =$O$24 -> 0 | AT24: =P24 -> 0 | AU24: 0 | AV24: 0 | AW24: 0 | AX24: 0 | AY24: 0 | AZ24: 0 | BA24: 0 | BB24: 0 | BC24: 0 | BD24: 0 | BE24: 0 | BF24: 0 | BG24: 0 | BK24: ヘルパー・訪問介護 | BO24: 月 | BP24: 0 | BQ24: 回 | BR24: 0 | BS24: 0 | BT24: 0 | BU24: 0 | BV24: 0 | BW24: 0 | BX24: 0 | BY24: 0 | BZ24: 0 | CA24: 0 | CB24: 0 | CC24: 0 | CD24: 0 | CE24: 0 | CF24: 0 | CG24: 0 | CH24: 0 | CI24: 0 | CJ24: 0 | CK24: 0 | EV24: 43 | EX24: 44 | FC24: 37
C25: その他 | G25: =IF($D$2="",0,VLOOKUP($D$2,記録台帳!$B$4:$GB$505,EU25)) -> 0 | H25: =IF($D$2="",0,VLOOKUP($D$2,記録台帳!$B$4:$GB$505,EV25)) -> 0 | I25: =IF($D$2="",0,VLOOKUP($D$2,記録台帳!$B$4:$GB$505,EW25)) -> 0 | J25: =IF($D$2="",0,VLOOKUP($D$2,記録台帳!$B$4:$GB$505,EX25)) -> 0 | K25: =IF($D$2="",0,VLOOKUP($D$2,記録台帳!$B$4:$GB$505,EY25)) -> 0 | L25: =IF($D$2="",0,VLOOKUP($D$2,記録台帳!$B$4:$GB$505,EZ25)) -> 0 | M25: =IF($D$2="",0,VLOOKUP($D$2,記録台帳!$B$4:$GB$505,FA25)) -> 0 | N25: =IF($D$2="",0,VLOOKUP($D$2,記録台帳!$B$4:$GB$505,FB25)) -> 0 | O25: =IF($D$2="",0,VLOOKUP($D$2,記録台帳!$B$4:$GB$505,FC25)) -> 0 | P25: =IF($D$2="",0,VLOOKUP($D$2,記録台帳!$B$4:$GB$505,FD25)) -> 0 | Q25: =IF($D$2="",0,VLOOKUP($D$2,記録台帳!$B$4:$GB$505,FE25)) -> 0 | R25: =IF($D$2="",0,VLOOKUP($D$2,記録台帳!$B$4:$GB$505,FF25)) -> 0 | S25: =IF($D$2="",0,VLOOKUP($D$2,記録台帳!$B$4:$GB$505,FG25)) -> 0 | T25: =IF($D$2="",0,VLOOKUP($D$2,記録台帳!$B$4:$GB$505,FH25)) -> 0 | U25: =IF($D$2="",0,VLOOKUP($D$2,記録台帳!$B$4:$GB$505,FI25)) -> 0 | V25: =IF($D$2="",0,VLOOKUP($D$2,記録台帳!$B$4:$GB$505,FJ25)) -> 0 | W25: =IF($D$2="",0,VLOOKUP($D$2,記録台帳!$B$4:$GB$505,FK25)) -> 0 | X25: =IF($D$2="",0,VLOOKUP($D$2,記録台帳!$B$4:$GB$505,FL25)) -> 0 | Y25: =IF($D$2="",0,VLOOKUP($D$2,記録台帳!$B$4:$GB$505,FM25)) -> 0 | Z25: =IF($D$2="",0,VLOOKUP($D$2,記録台帳!$B$4:$GB$505,FN25)) -> 0 | AA25: =IF($D$2="",0,VLOOKUP($D$2,記録台帳!$B$4:$GB$505,FO25)) -> 0 | AB25: =IF($D$2="",0,VLOOKUP($D$2,記録台帳!$B$4:$GB$505,FP25)) -> 0 | AC25: =IF($D$2="",0,VLOOKUP($D$2,記録台帳!$B$4:$GB$505,FQ25)) -> 0 | AG25: その他 | AK25: =$G$25 -> 0 | AL25: =H25 -> 0 | AM25: 0 | AN25: 0 | AO25: 0 | AP25: 0 | AQ25: 0 | AR25: 0 | AS25: 0 | AT25: 0 | AU25: 0 | AV25: 0 | AW25: 0 | AX25: 0 | AY25: 0 | AZ25: 0 | BA25: 0 | BB25: 0 | BC25: 0 | BD25: 0 | BE25: 0 | BF25: 0 | BG25: 0 | BK25: その他 | BO25: 0 | BP25: 0 | BQ25: 0 | BR25: 0 | BS25: 0 | BT25: 0 | BU25: 0 | BV25: 0 | BW25: 0 | BX25: 0 | BY25: 0 | BZ25: 0 | CA25: 0 | CB25: 0 | CC25: 0 | CD25: 0 | CE25: 0 | CF25: 0 | CG25: 0 | CH25: 0 | CI25: 0 | CJ25: 0 | CK25: 0 | EU25: 45
C26: 既往歴 持病・障害 入院経緯 | F26: =IF($D$2="",0,VLOOKUP($D$2,記録台帳!$B$4:$GB$505,ET26)) -> 0 | G26: =IF($D$2="",0,VLOOKUP($D$2,記録台帳!$B$4:$GB$505,EU26)) -> 0 | H26: =IF($D$2="",0,VLOOKUP($D$2,記録台帳!$B$4:$GB$505,EV26)) -> 0 | I26: =IF($D$2="",0,VLOOKUP($D$2,記録台帳!$B$4:$GB$505,EW26)) -> 0 | J26: =IF($D$2="",0,VLOOKUP($D$2,記録台帳!$B$4:$GB$505,EX26)) -> 0 | K26: =IF($D$2="",0,VLOOKUP($D$2,記録台帳!$B$4:$GB$505,EY26)) -> 0 | L26: =IF($D$2="",0,VLOOKUP($D$2,記録台帳!$B$4:$GB$505,EZ26)) -> 0 | M26: =IF($D$2="",0,VLOOKUP($D$2,記録台帳!$B$4:$GB$505,FA26)) -> 0 | N26: =IF($D$2="",0,VLOOKUP($D$2,記録台帳!$B$4:$GB$505,FB26)) -> 0 | O26: =IF($D$2="",0,VLOOKUP($D$2,記録台帳!$B$4:$GB$505,FC26)) -> 0 | P26: =IF($D$2="",0,VLOOKUP($D$2,記録台帳!$B$4:$GB$505,FD26)) -> 0 | Q26: =IF($D$2="",0,VLOOKUP($D$2,記録台帳!$B$4:$GB$505,FE26)) -> 0 | R26: =IF($D$2="",0,VLOOKUP($D$2,記録台帳!$B$4:$GB$505,FF26)) -> 0 | S26: =IF($D$2="",0,VLOOKUP($D$2,記録台帳!$B$4:$GB$505,FG26)) -> 0 | T26: =IF($D$2="",0,VLOOKUP($D$2,記録台帳!$B$4:$GB$505,FH26)) -> 0 | U26: =IF($D$2="",0,VLOOKUP($D$2,記録台帳!$B$4:$GB$505,FI26)) -> 0 | V26: =IF($D$2="",0,VLOOKUP($D$2,記録台帳!$B$4:$GB$505,FJ26)) -> 0 | W26: =IF($D$2="",0,VLOOKUP($D$2,記録台帳!$B$4:$GB$505,FK26)) -> 0 | X26: =IF($D$2="",0,VLOOKUP($D$2,記録台帳!$B$4:$GB$505,FL26)) -> 0 | Y26: =IF($D$2="",0,VLOOKUP($D$2,記録台帳!$B$4:$GB$505,FM26)) -> 0 | Z26: 主事病院 | AG26: 既往歴 持病・障害 入院経緯 | AJ26: =$F$26 -> 0 | AK26: 0 | AL26: 0 | AM26: 0 | AN26: 0 | AO26: 0 | AP26: 0 | AQ26: 0 | AR26: 0 | AS26: 0 | AT26: 0 | AU26: 0 | AV26: 0 | AW26: 0 | AX26: 0 | AY26: 0 | AZ26: 0 | BA26: 0 | BB26: 0 | BC26: 0 | BD26: 主治病院 | BK26: 既往歴 持病・障害 入院経緯 | BN26: 0 | BO26: 0 | BP26: 0 | BQ26: 0 | BR26: 0 | BS26: 0 | BT26: 0 | BU26: 0 | BV26: 0 | BW26: 0 | BX26: 0 | BY26: 0 | BZ26: 0 | CA26: 0 | CB26: 0 | CC26: 0 | CD26: 0 | CE26: 0 | CF26: 0 | CG26: 0 | CH26: 主治病院 | ET26: 46
F27: =IF($D$2="",0,VLOOKUP($D$2,記録台帳!$B$4:$GB$505,ET27)) -> 0 | G27: =IF($D$2="",0,VLOOKUP($D$2,記録台帳!$B$4:$GB$505,EU27)) -> 0 | H27: =IF($D$2="",0,VLOOKUP($D$2,記録台帳!$B$4:$GB$505,EV27)) -> 0 | I27: =IF($D$2="",0,VLOOKUP($D$2,記録台帳!$B$4:$GB$505,EW27)) -> 0 | J27: =IF($D$2="",0,VLOOKUP($D$2,記録台帳!$B$4:$GB$505,EX27)) -> 0 | K27: =IF($D$2="",0,VLOOKUP($D$2,記録台帳!$B$4:$GB$505,EY27)) -> 0 | L27: =IF($D$2="",0,VLOOKUP($D$2,記録台帳!$B$4:$GB$505,EZ27)) -> 0 | M27: =IF($D$2="",0,VLOOKUP($D$2,記録台帳!$B$4:$GB$505,FA27)) -> 0 | N27: =IF($D$2="",0,VLOOKUP($D$2,記録台帳!$B$4:$GB$505,FB27)) -> 0 | O27: =IF($D$2="",0,VLOOKUP($D$2,記録台帳!$B$4:$GB$505,FC27)) -> 0 | P27: =IF($D$2="",0,VLOOKUP($D$2,記録台帳!$B$4:$GB$505,FD27)) -> 0 | Q27: =IF($D$2="",0,VLOOKUP($D$2,記録台帳!$B$4:$GB$505,FE27)) -> 0 | R27: =IF($D$2="",0,VLOOKUP($D$2,記録台帳!$B$4:$GB$505,FF27)) -> 0 | S27: =IF($D$2="",0,VLOOKUP($D$2,記録台帳!$B$4:$GB$505,FG27)) -> 0 | T27: =IF($D$2="",0,VLOOKUP($D$2,記録台帳!$B$4:$GB$505,FH27)) -> 0 | U27: =IF($D$2="",0,VLOOKUP($D$2,記録台帳!$B$4:$GB$505,FI27)) -> 0 | V27: =IF($D$2="",0,VLOOKUP($D$2,記録台帳!$B$4:$GB$505,FJ27)) -> 0 | W27: =IF($D$2="",0,VLOOKUP($D$2,記録台帳!$B$4:$GB$505,FK27)) -> 0 | X27: =IF($D$2="",0,VLOOKUP($D$2,記録台帳!$B$4:$GB$505,FL27)) -> 0 | Y27: =IF($D$2="",0,VLOOKUP($D$2,記録台帳!$B$4:$GB$505,FM27)) -> 0 | Z27: =IF($D$2="",0,VLOOKUP($D$2,記録台帳!$B$4:$GB$505,FN27)) -> 0 | AA27: =IF($D$2="",0,VLOOKUP($D$2,記録台帳!$B$4:$GB$505,FO27)) -> 0 | AB27: =IF($D$2="",0,VLOOKUP($D$2,記録台帳!$B$4:$GB$505,FP27)) -> 0 | AC27: =IF($D$2="",0,VLOOKUP($D$2,記録台帳!$B$4:$GB$505,FQ27)) -> 0 | AJ27: =F27 -> 0 | AK27: 0 | AL27: 0 | AM27: 0 | AN27: 0 | AO27: 0 | AP27: 0 | AQ27: 0 | AR27: 0 | AS27: 0 | AT27: 0 | AU27: 0 | AV27: 0 | AW27: 0 | AX27: 0 | AY27: 0 | AZ27: 0 | BA27: 0 | BB27: 0 | BC27: 0 | BD27: =$Z$27 -> 0 | BE27: =AA27 -> 0 | BF27: 0 | BG27: 0 | BN27: 0 | BO27: 0 | BP27: 0 | BQ27: 0 | BR27: 0 | BS27: 0 | BT27: 0 | BU27: 0 | BV27: 0 | BW27: 0 | BX27: 0 | BY27: 0 | BZ27: 0 | CA27: 0 | CB27: 0 | CC27: 0 | CD27: 0 | CE27: 0 | CF27: 0 | CG27: 0 | CH27: 0 | CI27: 0 | CJ27: 0 | CK27: 0 | FN27: 47
F28: =マスタ変更!F30 -> 脳梗塞 | I28: =マスタ変更!I30 -> 心臓疾患 | L28: =マスタ変更!L30 -> 糖尿病 | O28: =マスタ変更!O30 -> 癌 | R28: =マスタ変更!R30 -> 認知症 | U28: =マスタ変更!U30 -> 脳挫傷 | X28: =マスタ変更!X30 -> 緑内障 | AA28: =マスタ変更!AA30 -> 大腿部骨折 | AJ28: =$F$28 -> 脳梗塞 | AM28: =$I$28 -> 心臓疾患 | AP28: =$L$28 -> 糖尿病 | AS28: =$O$28 -> 癌 | AV28: =$R$28 -> 認知症 | AY28: =$U$28 -> 脳挫傷 | BB28: =$X$28 -> 緑内障 | BE28: =$AA$28 -> 大腿部骨折 | BN28: 脳梗塞 | BQ28: 心臓疾患 | BT28: 糖尿病 | BW28: 癌 | BZ28: 認知症 | CC28: 脳挫傷 | CF28: 緑内障 | CI28: 大腿部骨折 | DR28: =IF($D$2="",0,VLOOKUP($D$2,記録台帳!$B$4:$LD$505,$ET$28)) -> 0 | DU28: =IF($D$2="",0,VLOOKUP($D$2,記録台帳!$B$4:$LD$505,$EW$28)) -> 0 | DX28: =IF($D$2="",0,VLOOKUP($D$2,記録台帳!$B$4:$LD$505,$EZ$28)) -> 0 | EA28: =IF($D$2="",0,VLOOKUP($D$2,記録台帳!$B$4:$LD$505,$FC$28)) -> 0 | ED28: =IF($D$2="",0,VLOOKUP($D$2,記録台帳!$B$4:$LD$505,$FF$28)) -> 0 | EG28: =IF($D$2="",0,VLOOKUP($D$2,記録台帳!$B$4:$LD$505,189)) -> 0 | EJ28: =IF($D$2="",0,VLOOKUP($D$2,記録台帳!$B$4:$LD$505,$FL$28)) -> 0 | EM28: =IF($D$2="",0,VLOOKUP($D$2,記録台帳!$B$4:$LD$505,191)) -> 0 | ET28: 184 | EW28: 185 | EZ28: 186 | FC28: 187 | FF28: 188 | FI28: 189 | FL28: 190 | FO28: 191
F29: =マスタ変更!F31 -> 脳内出血 | I29: =マスタ変更!I31 -> 呼吸器系疾患 | L29: =マスタ変更!L31 -> 腎臓疾患 | O29: =マスタ変更!O31 -> リューマチ | R29: =マスタ変更!R31 -> うつ病 | U29: =マスタ変更!U31 -> 胆石 | X29: =マスタ変更!X31 -> 白内障 | AA29: =マスタ変更!AA31 -> 脊髄等損傷 | AJ29: =$F$29 -> 脳内出血 | AM29: =$I$29 -> 呼吸器系疾患 | AP29: =$L$29 -> 腎臓疾患 | AS29: =$O$29 -> リューマチ | AV29: =$R$29 -> うつ病 | AY29: =$U$29 -> 胆石 | BB29: =$X$29 -> 白内障 | BE29: =$AA$29 -> 脊髄等損傷 | BN29: 脳内出血 | BQ29: 呼吸器系疾患 | BT29: 腎臓疾患 | BW29: リューマチ | BZ29: うつ病 | CC29: 胆石 | CF29: 白内障 | CI29: 脊髄等損傷 | DR29: =IF($D$2="",0,VLOOKUP($D$2,記録台帳!$B$4:$LD$505,$ET$29)) -> 0 | DU29: =IF($D$2="",0,VLOOKUP($D$2,記録台帳!$B$4:$LD$505,$EW$29)) -> 0 | DX29: =IF($D$2="",0,VLOOKUP($D$2,記録台帳!$B$4:$LD$505,$EZ$29)) -> 0 | EA29: =IF($D$2="",0,VLOOKUP($D$2,記録台帳!$B$4:$LD$505,$FC$29)) -> 0 | ED29: =IF($D$2="",0,VLOOKUP($D$2,記録台帳!$B$4:$LD$505,$FF$29)) -> 0 | EG29: =IF($D$2="",0,VLOOKUP($D$2,記録台帳!$B$4:$LD$505,$FI$29)) -> 0 | EJ29: =IF($D$2="",0,VLOOKUP($D$2,記録台帳!$B$4:$LD$505,$FL$29)) -> 0 | EM29: =IF($D$2="",0,VLOOKUP($D$2,記録台帳!$B$4:$LD$505,198)) -> 0 | ET29: 192 | EW29: 193 | EZ29: 194 | FC29: 195 | FF29: 196 | FI29: 197 | FL29: 198 | FO29: 199
F30: =マスタ変更!F32 -> 高血圧症 | I30: =マスタ変更!I32 -> 喘息 | L30: =マスタ変更!L32 -> 肝炎・肝硬変 | O30: =マスタ変更!O32 -> パーキンソン | R30: =マスタ変更!R32 -> 統合失調症 | U30: =マスタ変更!U32 -> 尿管結石等 | X30: =マスタ変更!X32 -> 結核 | AA30: =マスタ変更!AA32 -> 変形性膝関節症 | AJ30: =$F$30 -> 高血圧症 | AM30: =$I$30 -> 喘息 | AP30: =$L$30 -> 肝炎・肝硬変 | AS30: =$O$30 -> パーキンソン | AV30: =$R$30 -> 統合失調症 | AY30: =$U$30 -> 尿管結石等 | BB30: =$X$30 -> 結核 | BE30: =$AA$30 -> 変形性膝関節症 | BN30: 高血圧症 | BQ30: 喘息 | BT30: 肝炎・肝硬変 | BW30: パーキンソン | BZ30: 統合失調症 | CC30: 尿管結石等 | CF30: 結核 | CI30: 変形性膝関節症 | DR30: =IF($D$2="",0,VLOOKUP($D$2,記録台帳!$B$4:$LD$505,$ET$30)) -> 0 | DU30: =IF($D$2="",0,VLOOKUP($D$2,記録台帳!$B$4:$LD$505,$EW$30)) -> 0 | DX30: =IF($D$2="",0,VLOOKUP($D$2,記録台帳!$B$4:$LD$505,$EZ$30)) -> 0 | EA30: =IF($D$2="",0,VLOOKUP($D$2,記録台帳!$B$4:$LD$505,$FC$30)) -> 0 | ED30: =IF($D$2="",0,VLOOKUP($D$2,記録台帳!$B$4:$LD$505,$FF$30)) -> 0 | EG30: =IF($D$2="",0,VLOOKUP($D$2,記録台帳!$B$4:$LD$505,$FI$30)) -> 0 | EJ30: =IF($D$2="",0,VLOOKUP($D$2,記録台帳!$B$4:$LD$505,$FL$30)) -> 0 | EM30: =IF($D$2="",0,VLOOKUP($D$2,記録台帳!$B$4:$LD$505,207)) -> 0 | ET30: 200 | EW30: 201 | EZ30: 202 | FC30: 203 | FF30: 204 | FI30: 205 | FL30: 206 | FO30: 207
C31: =マスタ変更!C12 -> 医療関連 | F31: =マスタ変更!F12 -> インシュリン投与 | G31: 0 | H31: 0 | I31: =マスタ変更!I12 -> 在宅酸素療法 | J31: 0 | K31: 0 | L31: =マスタ変更!L12 -> 胃瘻 | M31: 0 | N31: 0 | O31: =マスタ変更!O12 -> 喀痰吸引 | P31: 0 | Q31: 0 | R31: =マスタ変更!R12 -> 褥瘡処置 | S31: 0 | T31: 0 | U31: 部位等 | W31: =IF($D$2="",0,VLOOKUP($D$2,記録台帳!$B$4:$GB$505,FK31)) -> 0 | X31: =IF($D$2="",0,VLOOKUP($D$2,記録台帳!$B$4:$GB$505,FL31)) -> 0 | Y31: =IF($D$2="",0,VLOOKUP($D$2,記録台帳!$B$4:$GB$505,FM31)) -> 0 | Z31: =IF($D$2="",0,VLOOKUP($D$2,記録台帳!$B$4:$GB$505,FN31)) -> 0 | AA31: =IF($D$2="",0,VLOOKUP($D$2,記録台帳!$B$4:$GB$505,FO31)) -> 0 | AB31: =IF($D$2="",0,VLOOKUP($D$2,記録台帳!$B$4:$GB$505,FP31)) -> 0 | AC31: =IF($D$2="",0,VLOOKUP($D$2,記録台帳!$B$4:$GB$505,FQ31)) -> 0 | AG31: =$C$31 -> 医療関連 | AJ31: =$F$31 -> インシュリン投与 | AK31: =G31 -> 0 | AL31: =H31 -> 0 | AM31: =$I$31 -> 在宅酸素療法 | AN31: =J31 -> 0 | AO31: =K31 -> 0 | AP31: =$L$31 -> 胃瘻 | AQ31: =M31 -> 0 | AR31: =N31 -> 0 | AS31: =$O$31 -> 喀痰吸引 | AT31: =P31 -> 0 | AU31: =Q31 -> 0 | AV31: =$R$31 -> 褥瘡処置 | AW31: =S31 -> 0 | AX31: =T31 -> 0 | AY31: 部位等 | BA31: =$W$31 -> 0 | BB31: =X31 -> 0 | BC31: 0 | BD31: 0 | BE31: 0 | BF31: 0 | BG31: 0 | BK31: 医療関連 | BN31: インシュリン投与 | BO31: 0 | BP31: 0 | BQ31: 在宅酸素療法 | BR31: 0 | BS31: 0 | BT31: 胃瘻 | BU31: 0 | BV31: 0 | BW31: 喀痰吸引 | BX31: 0 | BY31: 0 | BZ31: 褥瘡処置 | CA31: 0 | CB31: 0 | CC31: 部位等 | CE31: 0 | CF31: 0 | CG31: 0 | CH31: 0 | CI31: 0 | CJ31: 0 | CK31: 0 | DR31: =IF($D$2="",0,VLOOKUP($D$2,記録台帳!$B$4:$GB$505,$ET$31)) -> 0 | DU31: =IF($D$2="",0,VLOOKUP($D$2,記録台帳!$B$4:$GB$505,$EW$31)) -> 0 | DX31: =IF($D$2="",0,VLOOKUP($D$2,記録台帳!$B$4:$GB$505,$EZ$31)) -> 0 | EA31: =IF($D$2="",0,VLOOKUP($D$2,記録台帳!$B$4:$GB$505,$FC$31)) -> 0 | ED31: =IF($D$2="",0,VLOOKUP($D$2,記録台帳!$B$4:$GB$505,$FF$31)) -> 0 | EQ31: 医療関連 （複数選択可） | ET31: 48 | EU31: 0 | EV31: 0 | EW31: 49 | EX31: 0 | EY31: 0 | EZ31: 50 | FA31: 0 | FB31: 0 | FC31: 51 | FD31: 0 | FE31: 0 | FF31: 52 | FG31: 0 | FH31: 0 | FI31: 部位等 | FK31: 53 | FL31: 0 | FM31: 0 | FN31: 0 | FO31: 0 | FP31: 0 | FQ31: 0 | FS31: =配点表!C8 -> 2 | FV31: =配点表!D8 -> 2 | FY31: =配点表!E8 -> 3 | GB31: =配点表!F8 -> 2 | GE31: =配点表!G8 -> 1
F32: =マスタ変更!F13 -> 人工肛門処置 | I32: =マスタ変更!I13 -> 腸瘻 | L32: =マスタ変更!L13 -> 膀胱洗浄 | O32: =マスタ変更!O13 -> 導尿 | R32: =マスタ変更!R13 -> ＩＶＨ | U32: =マスタ変更!U13 -> 透析 | X32: =マスタ変更!X13 -> 尿カテーテル | AA32: =マスタ変更!AA13 -> 看取り | AJ32: =$F$32 -> 人工肛門処置 | AM32: =$I$32 -> 腸瘻 | AP32: =$L$32 -> 膀胱洗浄 | AS32: =$O$32 -> 導尿 | AV32: =$R$32 -> ＩＶＨ | AY32: =$U$32 -> 透析 | BB32: =$X$32 -> 尿カテーテル | BE32: =$AA$32 -> 看取り | BN32: 人工肛門処置 | BQ32: 腸瘻 | BT32: 膀胱洗浄 | BW32: 導尿 | BZ32: ＩＶＨ | CC32: 透析 | CF32: 尿カテーテル | CI32: 看取り | DR32: =IF($D$2="",0,VLOOKUP($D$2,記録台帳!$B$4:$LD$505,$ET$32)) -> 0 | DU32: =IF($D$2="",0,VLOOKUP($D$2,記録台帳!$B$4:$LD$505,$EW$32)) -> 0 | DX32: =IF($D$2="",0,VLOOKUP($D$2,記録台帳!$B$4:$LD$505,$EZ$32)) -> 0 | EA32: =IF($D$2="",0,VLOOKUP($D$2,記録台帳!$B$4:$LD$505,$FC$32)) -> 0 | ED32: =IF($D$2="",0,VLOOKUP($D$2,記録台帳!$B$4:$LD$505,$FF$32)) -> 0 | EG32: =IF($D$2="",0,VLOOKUP($D$2,記録台帳!$B$4:$LD$505,$FI$32)) -> 0 | EJ32: =IF($D$2="",0,VLOOKUP($D$2,記録台帳!$B$4:$LD$505,$FL$32)) -> 0 | EM32: =IF($D$2="",0,VLOOKUP($D$2,記録台帳!$B$4:$LD$505,215)) -> 0 | ET32: 208 | EW32: 209 | EZ32: 210 | FC32: 211 | FF32: 212 | FI32: 213 | FL32: 214 | FO32: 215 | FS32: =配点表!I8 -> 1 | FV32: =配点表!J8 -> 2 | FY32: =配点表!K8 -> 2 | GB32: =配点表!L8 -> 3 | GE32: =配点表!M8 -> 4 | GH32: =配点表!N8 -> 4 | GK32: =配点表!O8 -> 1 | GN32: =配点表!P8 -> 4
C33: 経済状況 | E33: 本人月収 | J33: 1ヶ月に本人と親族が 支出できる限界金額 | O33: 特別な 事情 | Q33: =IF($D$2="",0,VLOOKUP($D$2,記録台帳!$B$4:$GB$505,FE33)) -> 0 | R33: =IF($D$2="",0,VLOOKUP($D$2,記録台帳!$B$4:$GB$505,FF33)) -> 0 | S33: =IF($D$2="",0,VLOOKUP($D$2,記録台帳!$B$4:$GB$505,FG33)) -> 0 | T33: =IF($D$2="",0,VLOOKUP($D$2,記録台帳!$B$4:$GB$505,FH33)) -> 0 | U33: =IF($D$2="",0,VLOOKUP($D$2,記録台帳!$B$4:$GB$505,FI33)) -> 0 | V33: =IF($D$2="",0,VLOOKUP($D$2,記録台帳!$B$4:$GB$505,FJ33)) -> 0 | W33: =IF($D$2="",0,VLOOKUP($D$2,記録台帳!$B$4:$GB$505,FK33)) -> 0 | X33: =IF($D$2="",0,VLOOKUP($D$2,記録台帳!$B$4:$GB$505,FL33)) -> 0 | Y33: =IF($D$2="",0,VLOOKUP($D$2,記録台帳!$B$4:$GB$505,FM33)) -> 0 | Z33: =IF($D$2="",0,VLOOKUP($D$2,記録台帳!$B$4:$GB$505,FN33)) -> 0 | AA33: =IF($D$2="",0,VLOOKUP($D$2,記録台帳!$B$4:$GB$505,FO33)) -> 0 | AB33: =IF($D$2="",0,VLOOKUP($D$2,記録台帳!$B$4:$GB$505,FP33)) -> 0 | AC33: =IF($D$2="",0,VLOOKUP($D$2,記録台帳!$B$4:$GB$505,FQ33)) -> 0 | AG33: 経済状況 | AI33: 本人月収 | AN33: 1ヶ月に本人と親族が 支出できる限界金額 | AS33: 特別な 事情 | AU33: =$Q$33 -> 0 | AV33: =R33 -> 0 | AW33: 0 | AX33: 0 | AY33: 0 | AZ33: 0 | BA33: 0 | BB33: 0 | BC33: 0 | BD33: 0 | BE33: 0 | BF33: 0 | BG33: 0 | BK33: 経済状況 | BM33: 本人月収 | BR33: 1ヶ月に本人と親族が 支出できる限界金額 | BW33: 特別な 事情 | BY33: 0 | BZ33: 0 | CA33: 0 | CB33: 0 | CC33: 0 | CD33: 0 | CE33: 0 | CF33: 0 | CG33: 0 | CH33: 0 | CI33: 0 | CJ33: 0 | CK33: 0 | EQ33: 経済状況 | ES33: 本人月収 | EX33: 1ヶ月に本人と親族が 支出できる限界金額 | FC33: 特別な 事情 | FE33: 167 | FF33: 0 | FG33: 0 | FH33: 0 | FI33: 0 | FJ33: 0 | FK33: 0 | FL33: 0 | FM33: 0 | FN33: 0 | FO33: 0 | FP33: 0 | FQ33: 0
E34: =IF($D$2="",0,VLOOKUP($D$2,記録台帳!$B$4:$GB$505,ES34)) -> 0 | F34: =IF($D$2="",0,VLOOKUP($D$2,記録台帳!$B$4:$GB$505,ET34)) -> 0 | G34: =IF($D$2="",0,VLOOKUP($D$2,記録台帳!$B$4:$GB$505,EU34)) -> 0 | H34: =IF($D$2="",0,VLOOKUP($D$2,記録台帳!$B$4:$GB$505,EV34)) -> 0 | I34: 円 | J34: =IF($D$2="",0,VLOOKUP($D$2,記録台帳!$B$4:$GB$505,EX34)) -> 0 | K34: =IF($D$2="",0,VLOOKUP($D$2,記録台帳!$B$4:$GB$505,EY34)) -> 0 | L34: =IF($D$2="",0,VLOOKUP($D$2,記録台帳!$B$4:$GB$505,EZ34)) -> 0 | M34: =IF($D$2="",0,VLOOKUP($D$2,記録台帳!$B$4:$GB$505,FA34)) -> 0 | N34: 円 | Q34: =IF($D$2="",0,VLOOKUP($D$2,記録台帳!$B$4:$GB$505,FE34)) -> 0 | R34: =IF($D$2="",0,VLOOKUP($D$2,記録台帳!$B$4:$GB$505,FF34)) -> 0 | S34: =IF($D$2="",0,VLOOKUP($D$2,記録台帳!$B$4:$GB$505,FG34)) -> 0 | T34: =IF($D$2="",0,VLOOKUP($D$2,記録台帳!$B$4:$GB$505,FH34)) -> 0 | U34: =IF($D$2="",0,VLOOKUP($D$2,記録台帳!$B$4:$GB$505,FI34)) -> 0 | V34: =IF($D$2="",0,VLOOKUP($D$2,記録台帳!$B$4:$GB$505,FJ34)) -> 0 | W34: =IF($D$2="",0,VLOOKUP($D$2,記録台帳!$B$4:$GB$505,FK34)) -> 0 | X34: =IF($D$2="",0,VLOOKUP($D$2,記録台帳!$B$4:$GB$505,FL34)) -> 0 | Y34: =IF($D$2="",0,VLOOKUP($D$2,記録台帳!$B$4:$GB$505,FM34)) -> 0 | Z34: =IF($D$2="",0,VLOOKUP($D$2,記録台帳!$B$4:$GB$505,FN34)) -> 0 | AA34: =IF($D$2="",0,VLOOKUP($D$2,記録台帳!$B$4:$GB$505,FO34)) -> 0 | AB34: =IF($D$2="",0,VLOOKUP($D$2,記録台帳!$B$4:$GB$505,FP34)) -> 0 | AC34: =IF($D$2="",0,VLOOKUP($D$2,記録台帳!$B$4:$GB$505,FQ34)) -> 0 | AI34: =$E$34 -> 0 | AJ34: =F34 -> 0 | AK34: =G34 -> 0 | AL34: =H34 -> 0 | AM34: 円 | AN34: =$J$34 -> 0 | AO34: =K34 -> 0 | AP34: =L34 -> 0 | AQ34: =M34 -> 0 | AR34: 円 | AU34: =Q34 -> 0 | AV34: 0 | AW34: 0 | AX34: 0 | AY34: 0 | AZ34: 0 | BA34: 0 | BB34: 0 | BC34: 0 | BD34: 0 | BE34: 0 | BF34: 0 | BG34: 0 | BM34: 0 | BN34: 0 | BO34: 0 | BP34: 0 | BQ34: 円 | BR34: 0 | BS34: 0 | BT34: 0 | BU34: 0 | BV34: 円 | BY34: 0 | BZ34: 0 | CA34: 0 | CB34: 0 | CC34: 0 | CD34: 0 | CE34: 0 | CF34: 0 | CG34: 0 | CH34: 0 | CI34: 0 | CJ34: 0 | CK34: 0 | ES34: 165 | ET34: 0 | EU34: 0 | EV34: 0 | EW34: 円 | EX34: 166 | EY34: 0 | EZ34: 0 | FA34: 0 | FB34: 円 | FE34: 0 | FF34: 0 | FG34: 0 | FH34: 0 | FI34: 0 | FJ34: 0 | FK34: 0 | FL34: 0 | FM34: 0 | FN34: 0 | FO34: 0 | FP34: 0 | FQ34: 0
C35: =E8 -> 0 | I35: 様 | S35: 身体・精神に関する情報
C36: =マスタ変更!C14 -> 筋力低下 麻痺等 | F36: =マスタ変更!F14 -> 右手 | H36: =マスタ変更!H14 -> - | I36: =マスタ変更!I14 -> 弱 | J36: =マスタ変更!J14 -> 中 | K36: =マスタ変更!K14 -> 強 | L36: =マスタ変更!L14 -> 左手 | N36: =マスタ変更!N14 -> - | O36: =マスタ変更!O14 -> 弱 | P36: =マスタ変更!P14 -> 中 | Q36: =マスタ変更!Q14 -> 強 | R36: =マスタ変更!R14 -> 右足 | T36: =マスタ変更!T14 -> - | U36: =マスタ変更!U14 -> 弱 | V36: =マスタ変更!V14 -> 中 | W36: =マスタ変更!W14 -> 強 | X36: =マスタ変更!X14 -> 左足 | Z36: =マスタ変更!Z14 -> - | AA36: =マスタ変更!AA14 -> 弱 | AB36: =マスタ変更!AB14 -> 中 | AC36: =マスタ変更!AC14 -> 強 | AG36: =$C$36 -> 筋力低下 麻痺等 | AJ36: =$F$36 -> 右手 | AL36: =$H$36 -> - | AM36: =$I$36 -> 弱 | AN36: =$J$36 -> 中 | AO36: =$K$36 -> 強 | AP36: =$L$36 -> 左手 | AR36: =$H$36 -> - | AS36: =$I$36 -> 弱 | AT36: =$J$36 -> 中 | AU36: =$K$36 -> 強 | AV36: =$R$36 -> 右足 | AX36: =$H$36 -> - | AY36: =$I$36 -> 弱 | AZ36: =$J$36 -> 中 | BA36: =$K$36 -> 強 | BB36: =$X$36 -> 左足 | BD36: =$Z$36 -> - | BE36: =$AA$36 -> 弱 | BF36: =$AB$36 -> 中 | BG36: =$AC$36 -> 強 | BK36: 筋力低下 麻痺等 | BN36: 右手 | BP36: - | BQ36: 弱 | BR36: 中 | BS36: 強 | BT36: 左手 | BV36: - | BW36: 弱 | BX36: 中 | BY36: 強 | BZ36: 右足 | CB36: - | CC36: 弱 | CD36: 中 | CE36: 強 | CF36: 左足 | CH36: - | CI36: 弱 | CJ36: 中 | CK36: 強 | DT36: =IF($D$2="",0,VLOOKUP($D$2,記録台帳!$B$4:$GB$505,$EV$36)) -> 0 | DU36: =IF($D$2="",0,VLOOKUP($D$2,記録台帳!$B$4:$GB$505,$EW$36)) -> 0 | DV36: =IF($D$2="",0,VLOOKUP($D$2,記録台帳!$B$4:$GB$505,$EX$36)) -> 0 | DW36: =IF($D$2="",0,VLOOKUP($D$2,記録台帳!$B$4:$GB$505,$EY$36)) -> 0 | DZ36: =IF($D$2="",0,VLOOKUP($D$2,記録台帳!$B$4:$GB$505,$FB$36)) -> 0 | EA36: =IF($D$2="",0,VLOOKUP($D$2,記録台帳!$B$4:$GB$505,$FC$36)) -> 0 | EB36: =IF($D$2="",0,VLOOKUP($D$2,記録台帳!$B$4:$GB$505,$FD$36)) -> 0 | EC36: =IF($D$2="",0,VLOOKUP($D$2,記録台帳!$B$4:$GB$505,$FD$36)) -> 0 | EF36: =IF($D$2="",0,VLOOKUP($D$2,記録台帳!$B$4:$GB$505,$FH$36)) -> 0 | EG36: =IF($D$2="",0,VLOOKUP($D$2,記録台帳!$B$4:$GB$505,$FI$36)) -> 0 | EH36: =IF($D$2="",0,VLOOKUP($D$2,記録台帳!$B$4:$GB$505,$FJ$36)) -> 0 | EI36: =IF($D$2="",0,VLOOKUP($D$2,記録台帳!$B$4:$GB$505,$FK$36)) -> 0 | EL36: =IF($D$2="",0,VLOOKUP($D$2,記録台帳!$B$4:$GB$505,$FN$36)) -> 0 | EM36: =IF($D$2="",0,VLOOKUP($D$2,記録台帳!$B$4:$GB$505,$FO$36)) -> 0 | EN36: =IF($D$2="",0,VLOOKUP($D$2,記録台帳!$B$4:$GB$505,$FP$36)) -> 0 | EO36: =IF($D$2="",0,VLOOKUP($D$2,記録台帳!$B$4:$GB$505,$FQ$36)) -> 0 | EQ36: 筋力低下 麻痺等 | ET36: 右手 | EV36: 54 | EW36: 55 | EX36: 56 | EY36: 57 | EZ36: 左手 | FB36: 58 | FC36: 59 | FD36: 60 | FE36: 61 | FF36: 右足 | FH36: 62 | FI36: 63 | FJ36: 64 | FK36: 65 | FL36: 左足 | FN36: 66 | FO36: 67 | FP36: 68 | FQ36: 69 | FU36: =配点表!D11 -> 0 | FV36: =配点表!E11 -> 2 | FW36: =配点表!F11 -> 3 | FX36: =配点表!G11 -> 4 | GA36: =配点表!I11 -> 0 | GB36: =配点表!J11 -> 1 | GC36: =配点表!K11 -> 2 | GD36: =配点表!L11 -> 3 | GG36: =配点表!N11 -> 0 | GH36: =配点表!O11 -> 2 | GI36: =配点表!P11 -> 4 | GJ36: =配点表!Q11 -> 6 | GM36: =配点表!S11 -> 0 | GN36: =配点表!T11 -> 2 | GO36: =配点表!U11 -> 4 | GP36: =配点表!V11 -> 6
C37: =マスタ変更!C15 -> 歩行・立位 | F37: =マスタ変更!F15 -> 安定歩行 | G37: 0 | H37: 0 | I37: =マスタ変更!I15 -> なんとか歩く | J37: 0 | K37: 0 | L37: =マスタ変更!L15 -> つかまり立つ 支えれば歩く | M37: 0 | N37: 0 | O37: =マスタ変更!O15 -> つかまれば 移乗できる | P37: 0 | Q37: 0 | R37: =マスタ変更!R15 -> 支持すれば 立てる | S37: 0 | T37: 0 | U37: =マスタ変更!U15 -> 引き上げて なんとか立つ | V37: 0 | W37: 0 | X37: =マスタ変更!X15 -> 保持して やっと立つ | Y37: 0 | Z37: 0 | AA37: =マスタ変更!AA15 -> できない | AB37: 0 | AC37: 0 | AG37: =$C$37 -> 歩行・立位 | AJ37: =$F$37 -> 安定歩行 | AK37: =G37 -> 0 | AL37: 0 | AM37: =$I$37 -> なんとか歩く | AN37: =J37 -> 0 | AO37: 0 | AP37: =$L$37 -> つかまり立つ 支えれば歩く | AQ37: =M37 -> 0 | AR37: 0 | AS37: =O$37 -> つかまれば 移乗できる | AT37: =P37 -> 0 | AU37: =Q37 -> 0 | AV37: =$R$37 -> 支持すれば 立てる | AW37: =S37 -> 0 | AX37: 0 | AY37: =$U$37 -> 引き上げて なんとか立つ | AZ37: =V37 -> 0 | BA37: 0 | BB37: =$X$37 -> 保持して やっと立つ | BC37: =Y37 -> 0 | BD37: =Z37 -> 0 | BE37: =$AA$37 -> できない | BF37: =AB37 -> 0 | BG37: =AC37 -> 0 | BK37: 歩行・立位 | BN37: 安定歩行 | BO37: 0 | BP37: 0 | BQ37: なんとか歩く | BR37: 0 | BS37: 0 | BT37: つかまり立つ 支えれば歩く | BU37: 0 | BV37: 0 | BW37: つかまれば 移乗できる | BX37: 0 | BY37: 0 | BZ37: 支持すれば 立てる | CA37: 0 | CB37: 0 | CC37: 引き上げて なんとか立つ | CD37: 0 | CE37: 0 | CF37: 保持して やっと立つ | CG37: 0 | CH37: 0 | CI37: できない | CJ37: 0 | CK37: 0 | DR37: =IF($D$2="",0,VLOOKUP($D$2,記録台帳!$B$4:$GB$505,$ET$37)) -> 0 | DU37: =IF($D$2="",0,VLOOKUP($D$2,記録台帳!$B$4:$GB$505,$EW$37)) -> 0 | DX37: =IF($D$2="",0,VLOOKUP($D$2,記録台帳!$B$4:$GB$505,$EZ$37)) -> 0 | EA37: =IF($D$2="",0,VLOOKUP($D$2,記録台帳!$B$4:$GB$505,$FC$37)) -> 0 | ED37: =IF($D$2="",0,VLOOKUP($D$2,記録台帳!$B$4:$GB$505,$FF$37)) -> 0 | EG37: =IF($D$2="",0,VLOOKUP($D$2,記録台帳!$B$4:$GB$505,$FI$37)) -> 0 | EJ37: =IF($D$2="",0,VLOOKUP($D$2,記録台帳!$B$4:$GB$505,$FL$37)) -> 0 | EM37: =IF($D$2="",0,VLOOKUP($D$2,記録台帳!$B$4:$GB$505,$FO$37)) -> 0 | EQ37: 移動の 能力・手段 | ET37: 70 | EU37: 0 | EV37: 0 | EW37: =ET37+1 -> 71 | EX37: 0 | EY37: 0 | EZ37: =EW37+1 -> 72 | FA37: 0 | FB37: 0 | FC37: =EZ37+1 -> 73 | FD37: 0 | FE37: 0 | FF37: =FC37+1 -> 74 | FG37: 0 | FH37: 0 | FI37: =FF37+1 -> 75 | FJ37: 0 | FK37: 0 | FL37: =FI37+1 -> 76 | FM37: 0 | FN37: 0 | FO37: =FL37+1 -> 77 | FP37: 0 | FQ37: 0 | FS37: =配点表!C14 -> 0 | FV37: =配点表!D14 -> 2 | FY37: =配点表!E14 -> 4 | GB37: =配点表!F14 -> 6 | GE37: =配点表!G14 -> 8 | GH37: =配点表!H14 -> 10 | GK37: =配点表!I14 -> 12 | GN37: =配点表!J14 -> 10
C38: =マスタ変更!C16 -> 尿意 | F38: =マスタ変更!F16 -> ある | G38: 0 | H38: 0 | I38: =マスタ変更!I16 -> 曖昧 | J38: 0 | K38: 0 | L38: =マスタ変更!L16 -> なし | M38: 0 | N38: 0 | O38: =マスタ変更!O16 -> 便意 | P38: 0 | Q38: 0 | R38: =マスタ変更!R16 -> ある | S38: 0 | T38: 0 | U38: =マスタ変更!U16 -> 曖昧 | V38: 0 | W38: 0 | X38: =マスタ変更!X16 -> なし | Y38: 0 | Z38: 0 | AA38: =マスタ変更!AA16 -> 人工肛門 尿カテーテル | AB38: 0 | AC38: 0 | AG38: =$C$38 -> 尿意 | AJ38: =$F$38 -> ある | AK38: 0 | AL38: 0 | AM38: =$I$38 -> 曖昧 | AN38: 0 | AO38: 0 | AP38: =$L$38 -> なし | AQ38: 0 | AR38: 0 | AS38: =$O$38 -> 便意 | AV38: =$R$38 -> ある | AW38: 0 | AX38: 0 | AY38: =$U$38 -> 曖昧 | AZ38: 0 | BA38: 0 | BB38: =$X$38 -> なし | BC38: =Y38 -> 0 | BD38: =Z38 -> 0 | BE38: =$AA$38 -> 人工肛門 尿カテーテル | BF38: =AB38 -> 0 | BG38: =AC38 -> 0 | BK38: 尿意 | BN38: ある | BO38: 0 | BP38: 0 | BQ38: 曖昧 | BR38: 0 | BS38: 0 | BT38: なし | BU38: 0 | BV38: 0 | BW38: 便意 | BZ38: ある | CA38: 0 | CB38: 0 | CC38: 曖昧 | CD38: 0 | CE38: 0 | CF38: なし | CG38: 0 | CH38: 0 | CI38: 人工肛門 尿カテーテル | CJ38: 0 | CK38: 0 | DR38: =IF($D$2="",0,VLOOKUP($D$2,記録台帳!$B$4:$GB$505,$ET$38)) -> 0 | DU38: =IF($D$2="",0,VLOOKUP($D$2,記録台帳!$B$4:$GB$505,$EW$38)) -> 0 | DX38: =IF($D$2="",0,VLOOKUP($D$2,記録台帳!$B$4:$GB$505,$EZ$38)) -> 0 | ED38: =IF($D$2="",0,VLOOKUP($D$2,記録台帳!$B$4:$GB$505,$FF$38)) -> 0 | EG38: =IF($D$2="",0,VLOOKUP($D$2,記録台帳!$B$4:$GB$505,$FI$38)) -> 0 | EJ38: =IF($D$2="",0,VLOOKUP($D$2,記録台帳!$B$4:$GB$505,$FL$38)) -> 0 | EK38: =IF($D$2="",0,VLOOKUP($D$2,記録台帳!$B$4:$GB$505,FV38)) -> 0 | EM38: =IF($D$2="",0,VLOOKUP($D$2,記録台帳!$B$4:$GB$505,$FO$38)) -> 0 | EQ38: 尿意 | ET38: 78 | EU38: 0 | EV38: 0 | EW38: =ET38+1 -> 79 | EX38: 0 | EY38: 0 | EZ38: =EW38+1 -> 80 | FA38: 0 | FB38: 0 | FC38: 便意 | FF38: 81 | FG38: 0 | FH38: 0 | FI38: =FF38+1 -> 82 | FJ38: 0 | FK38: 0 | FL38: =FI38+1 -> 83 | FM38: 0 | FN38: 0 | FO38: =FL38+1 -> 84 | FP38: 0 | FQ38: 0 | FS38: =配点表!C17 -> 0 | FV38: =配点表!D17 -> 1 | FY38: =配点表!E17 -> 2 | GE38: =配点表!G17 -> 0 | GH38: =配点表!H17 -> 2 | GK38: =配点表!I17 -> 4 | GN38: =配点表!J17 -> 1
C39: =マスタ変更!C17 -> 排泄（日中） | F39: =マスタ変更!F17 -> 自分で行く | G39: 0 | H39: 0 | I39: =マスタ変更!I17 -> 失敗あるが 自分でする | J39: 0 | K39: 0 | L39: =マスタ変更!L17 -> 脱衣介助 一部介助 | M39: 0 | N39: 0 | O39: =マスタ変更!O17 -> お尻を拭く 体の支持 | P39: 0 | Q39: 0 | R39: =マスタ変更!R17 -> 抱えて移乗 ほぼ全介助 | S39: 0 | T39: 0 | U39: =マスタ変更!U17 -> 寝たまま おむつ交換 | V39: 0 | W39: 0 | X39: 介助 頻度 | Z39: 日中 | AA39: =IF($D$2="",0,VLOOKUP($D$2,記録台帳!$B$4:$GB$505,FO39)) -> 0 | AB39: =IF($D$2="",0,VLOOKUP($D$2,記録台帳!$B$4:$GB$505,FP39)) -> 0 | AC39: 回 | AG39: =$C$39 -> 排泄（日中） | AJ39: =$F$39 -> 自分で行く | AK39: 0 | AL39: 0 | AM39: =$I$39 -> 失敗あるが 自分でする | AN39: 0 | AO39: 0 | AP39: =$L$39 -> 脱衣介助 一部介助 | AQ39: 0 | AR39: 0 | AS39: =$O$39 -> お尻を拭く 体の支持 | AT39: =P39 -> 0 | AU39: 0 | AV39: =$R$39 -> 抱えて移乗 ほぼ全介助 | AW39: 0 | AX39: 0 | AY39: =$U$39 -> 寝たまま おむつ交換 | AZ39: 0 | BA39: 0 | BB39: 介助 頻度 | BD39: 日中 | BE39: =$AA$39 -> 0 | BG39: 回 | BK39: 排泄（日中） | BN39: 自分で行く | BO39: 0 | BP39: 0 | BQ39: 失敗あるが 自分でする | BR39: 0 | BS39: 0 | BT39: 脱衣介助 一部介助 | BU39: 0 | BV39: 0 | BW39: お尻を拭く 体の支持 | BX39: 0 | BY39: 0 | BZ39: 抱えて移乗 ほぼ全介助 | CA39: 0 | CB39: 0 | CC39: 寝たまま おむつ交換 | CD39: 0 | CE39: 0 | CF39: 介助 頻度 | CH39: 日中 | CI39: 0 | CK39: 回 | DR39: =IF($D$2="",0,VLOOKUP($D$2,記録台帳!$B$4:$GB$505,$ET$39)) -> 0 | DU39: =IF($D$2="",0,VLOOKUP($D$2,記録台帳!$B$4:$GB$505,$EW$39)) -> 0 | DX39: =IF($D$2="",0,VLOOKUP($D$2,記録台帳!$B$4:$GB$505,$EZ$39)) -> 0 | EA39: =IF($D$2="",0,VLOOKUP($D$2,記録台帳!$B$4:$GB$505,$FC$39)) -> 0 | ED39: =IF($D$2="",0,VLOOKUP($D$2,記録台帳!$B$4:$GB$505,$FF$39)) -> 0 | EG39: =IF($D$2="",0,VLOOKUP($D$2,記録台帳!$B$4:$GB$505,$FI$39)) -> 0 | EQ39: 排泄（日中） | ET39: 85 | EU39: 0 | EV39: 0 | EW39: =ET39+1 -> 86 | EX39: 0 | EY39: 0 | EZ39: =EW39+1 -> 87 | FA39: 0 | FB39: 0 | FC39: =EZ39+1 -> 88 | FD39: 0 | FE39: 0 | FF39: =FC39+1 -> 89 | FG39: 0 | FH39: 0 | FI39: =FF39+1 -> 90 | FJ39: 0 | FK39: 0 | FL39: 介助 頻度 | FN39: 日中 | FO39: 91 | FP39: 0 | FQ39: 回 | FS39: =配点表!C20 -> 0 | FV39: =配点表!D20 -> 2 | FY39: =配点表!E20 -> 4 | GB39: =配点表!F20 -> 6 | GE39: =配点表!G20 -> 10 | GH39: =配点表!H20 -> 8
C40: =マスタ変更!C18 -> 排泄（夜間） | F40: =マスタ変更!F18 -> 自分で行く | G40: 0 | H40: 0 | I40: =マスタ変更!I18 -> 失敗あるが 自分でする | J40: 0 | K40: 0 | L40: =マスタ変更!L18 -> 脱衣介助 一部介助 | M40: 0 | N40: 0 | O40: =マスタ変更!O18 -> お尻を拭く 体の支持 | P40: 0 | Q40: 0 | R40: =マスタ変更!R18 -> 抱えて移乗 ほぼ全介助 | S40: 0 | T40: 0 | U40: =マスタ変更!U18 -> 寝たまま おむつ交換 | V40: 0 | W40: 0 | X40: 介助 頻度 | Z40: 夜間 | AA40: =IF($D$2="",0,VLOOKUP($D$2,記録台帳!$B$4:$GB$505,FO40)) -> 0 | AB40: =IF($D$2="",0,VLOOKUP($D$2,記録台帳!$B$4:$GB$505,FP40)) -> 0 | AC40: 回 | AG40: =$C$40 -> 排泄（夜間） | AJ40: =$F$40 -> 自分で行く | AK40: 0 | AL40: 0 | AM40: =$I$40 -> 失敗あるが 自分でする | AN40: 0 | AO40: 0 | AP40: =$L$40 -> 脱衣介助 一部介助 | AQ40: 0 | AR40: 0 | AS40: =$O$40 -> お尻を拭く 体の支持 | AT40: 0 | AU40: 0 | AV40: =$R$40 -> 抱えて移乗 ほぼ全介助 | AW40: 0 | AX40: 0 | AY40: =$U$40 -> 寝たまま おむつ交換 | AZ40: 0 | BA40: 0 | BB40: 介助 頻度 | BD40: 夜間 | BE40: =$AA$40 -> 0 | BF40: =AB40 -> 0 | BG40: 回 | BK40: 排泄（夜間） | BN40: 自分で行く | BO40: 0 | BP40: 0 | BQ40: 失敗あるが 自分でする | BR40: 0 | BS40: 0 | BT40: 脱衣介助 一部介助 | BU40: 0 | BV40: 0 | BW40: お尻を拭く 体の支持 | BX40: 0 | BY40: 0 | BZ40: 抱えて移乗 ほぼ全介助 | CA40: 0 | CB40: 0 | CC40: 寝たまま おむつ交換 | CD40: 0 | CE40: 0 | CF40: 介助 頻度 | CH40: 夜間 | CI40: 0 | CJ40: 0 | CK40: 回 | DR40: =IF($D$2="",0,VLOOKUP($D$2,記録台帳!$B$4:$GB$505,$ET$40)) -> 0 | DU40: =IF($D$2="",0,VLOOKUP($D$2,記録台帳!$B$4:$GB$505,$EW$40)) -> 0 | DX40: =IF($D$2="",0,VLOOKUP($D$2,記録台帳!$B$4:$GB$505,$EZ$40)) -> 0 | EA40: =IF($D$2="",0,VLOOKUP($D$2,記録台帳!$B$4:$GB$505,$FC$40)) -> 0 | ED40: =IF($D$2="",0,VLOOKUP($D$2,記録台帳!$B$4:$GB$505,$FF$40)) -> 0 | EG40: =IF($D$2="",0,VLOOKUP($D$2,記録台帳!$B$4:$GB$505,$FI$40)) -> 0 | EQ40: 排泄（夜間） | ET40: 92 | EU40: 0 | EV40: 0 | EW40: =ET40+1 -> 93 | EX40: 0 | EY40: 0 | EZ40: =EW40+1 -> 94 | FA40: 0 | FB40: 0 | FC40: =EZ40+1 -> 95 | FD40: 0 | FE40: 0 | FF40: =FC40+1 -> 96 | FG40: 0 | FH40: 0 | FI40: =FF40+1 -> 97 | FJ40: 0 | FK40: 0 | FL40: 介助 頻度 | FN40: 夜間 | FO40: 98 | FP40: 0 | FQ40: 回 | FS40: =配点表!C23 -> 0 | FV40: =配点表!D23 -> 3 | FY40: =配点表!E23 -> 5 | GB40: =配点表!F23 -> 7 | GE40: =配点表!G23 -> 11 | GH40: =配点表!H23 -> 9
C41: =マスタ変更!C19 -> 食事介助 | F41: =マスタ変更!F19 -> 常食 | G41: 0 | H41: 0 | I41: =マスタ変更!I19 -> 刻み食 柔らか食 | J41: 0 | K41: 0 | L41: =マスタ変更!L19 -> ミキサー食 | M41: 0 | N41: 0 | O41: =マスタ変更!O19 -> 経管栄養 | P41: 0 | Q41: 0 | R41: =マスタ変更!R19 -> 半介助 | S41: 0 | T41: 0 | U41: =マスタ変更!U19 -> ほぼ全介助 | X41: 直接介助に かかる時間 | AA41: =IF($D$2="",0,VLOOKUP($D$2,記録台帳!$B$4:$GB$505,FO41)) -> 0 | AB41: =IF($D$2="",0,VLOOKUP($D$2,記録台帳!$B$4:$GB$505,FP41)) -> 0 | AC41: 分 | AG41: =$C$41 -> 食事介助 | AJ41: =$F$41 -> 常食 | AK41: 0 | AL41: 0 | AM41: =$I$41 -> 刻み食 柔らか食 | AN41: 0 | AO41: 0 | AP41: =$L$41 -> ミキサー食 | AQ41: 0 | AR41: 0 | AS41: =$O$41 -> 経管栄養 | AT41: 0 | AU41: 0 | AV41: =$R$41 -> 半介助 | AW41: 0 | AX41: 0 | AY41: =$U$41 -> ほぼ全介助 | AZ41: 0 | BA41: 0 | BB41: 直接介助に かかる時間 | BE41: =$AA$41 -> 0 | BF41: =AB41 -> 0 | BG41: 分 | BK41: 食事介助 | BN41: 常食 | BO41: 0 | BP41: 0 | BQ41: 刻み食 柔らか食 | BR41: 0 | BS41: 0 | BT41: ミキサー食 | BU41: 0 | BV41: 0 | BW41: 経管栄養 | BX41: 0 | BY41: 0 | BZ41: 半介助 | CA41: 0 | CB41: 0 | CC41: ほぼ全介助 | CD41: 0 | CE41: 0 | CF41: 直接介助に かかる時間 | CI41: 0 | CJ41: 0 | CK41: 分 | DR41: =IF($D$2="",0,VLOOKUP($D$2,記録台帳!$B$4:$GB$505,$ET$41)) -> 0 | DU41: =IF($D$2="",0,VLOOKUP($D$2,記録台帳!$B$4:$GB$505,$EW$41)) -> 0 | DX41: =IF($D$2="",0,VLOOKUP($D$2,記録台帳!$B$4:$GB$505,$EZ$41)) -> 0 | EA41: =IF($D$2="",0,VLOOKUP($D$2,記録台帳!$B$4:$GB$505,$FC$41)) -> 0 | ED41: =IF($D$2="",0,VLOOKUP($D$2,記録台帳!$B$4:$GB$505,$FF$41)) -> 0 | EG41: =IF($D$2="",0,VLOOKUP($D$2,記録台帳!$B$4:$GB$505,$FI$41)) -> 0 | EQ41: 食事介助 | ET41: 99 | EU41: 0 | EV41: 0 | EW41: 100 | EX41: 0 | EY41: 0 | EZ41: 101 | FA41: 0 | FB41: 0 | FC41: 102 | FD41: 0 | FE41: 0 | FF41: 103 | FG41: 0 | FH41: 0 | FI41: 104 | FJ41: 0 | FK41: 0 | FL41: 直接介助に かかる時間 | FO41: 105 | FP41: 0 | FQ41: 分 | FS41: =配点表!C26 -> 0 | FV41: =配点表!D26 -> 1 | FY41: =配点表!E26 -> 2 | GB41: =配点表!F26 -> 3 | GE41: =配点表!G26 -> 4 | GH41: =配点表!H26 -> 5
C42: =マスタ変更!C20 -> 物盗られ妄想 被害妄想 | F42: =マスタ変更!F20 -> ときどき | H42: =マスタ変更!H20 -> よくある | J42: =マスタ変更!J20 -> 耐え難い | L42: =マスタ変更!L20 -> 幻覚 幻聴 | O42: =マスタ変更!O20 -> ときどき | Q42: =マスタ変更!Q20 -> よくある | S42: =マスタ変更!S20 -> 耐え難い | U42: =マスタ変更!U20 -> 異食・収集 | X42: =マスタ変更!X20 -> ときどき | Z42: =マスタ変更!Z20 -> よくある | AB42: =マスタ変更!AB20 -> 耐え難い | AG42: =$C$42 -> 物盗られ妄想 被害妄想 | AJ42: =$F$42 -> ときどき | AK42: =G42 -> 0 | AL42: =$H$42 -> よくある | AM42: =I42 -> 0 | AN42: =$J$42 -> 耐え難い | AO42: =K42 -> 0 | AP42: =$L$42 -> 幻覚 幻聴 | AS42: =$O$42 -> ときどき | AT42: =P42 -> 0 | AU42: =$Q$42 -> よくある | AV42: =R42 -> 0 | AW42: =$S$42 -> 耐え難い | AX42: =T42 -> 0 | AY42: =$U$42 -> 異食・収集 | BB42: =$X$42 -> ときどき | BC42: =Y42 -> 0 | BD42: =$Z$42 -> よくある | BE42: =AA42 -> 0 | BF42: =$AB$42 -> 耐え難い | BG42: =AC42 -> 0 | BK42: 物盗られ妄想 被害妄想 | BN42: ときどき | BO42: 0 | BP42: よくある | BQ42: 0 | BR42: 耐え難い | BS42: 0 | BT42: 幻覚 幻聴 | BW42: ときどき | BX42: 0 | BY42: よくある | BZ42: 0 | CA42: 耐え難い | CB42: 0 | CC42: 異食・収集 | CF42: ときどき | CG42: 0 | CH42: よくある | CI42: 0 | CJ42: 耐え難い | CK42: 0 | DR42: =IF($D$2="",0,VLOOKUP($D$2,記録台帳!$B$4:$GB$505,$ET$42)) -> 0 | DT42: =IF($D$2="",0,VLOOKUP($D$2,記録台帳!$B$4:$GB$505,$EV$42)) -> 0 | DV42: =IF($D$2="",0,VLOOKUP($D$2,記録台帳!$B$4:$GB$505,$EX$42)) -> 0 | EA42: =IF($D$2="",0,VLOOKUP($D$2,記録台帳!$B$4:$GB$505,$FC$42)) -> 0 | EC42: =IF($D$2="",0,VLOOKUP($D$2,記録台帳!$B$4:$GB$505,$FE$42)) -> 0 | EE42: =IF($D$2="",0,VLOOKUP($D$2,記録台帳!$B$4:$GB$505,$FG$42)) -> 0 | EJ42: =IF($D$2="",0,VLOOKUP($D$2,記録台帳!$B$4:$GB$505,$FL$42)) -> 0 | EL42: =IF($D$2="",0,VLOOKUP($D$2,記録台帳!$B$4:$GB$505,$FN$42)) -> 0 | EN42: =IF($D$2="",0,VLOOKUP($D$2,記録台帳!$B$4:$GB$505,$FP$42)) -> 0 | EQ42: 物盗られ妄想 被害妄想 | ET42: 106 | EU42: 0 | EV42: =ET42+1 -> 107 | EW42: 0 | EX42: =EV42+1 -> 108 | EY42: 0 | EZ42: 幻覚 幻聴 | FC42: 109 | FD42: 0 | FE42: =FC42+1 -> 110 | FF42: 0 | FG42: =FE42+1 -> 111 | FH42: 0 | FI42: 作話 流言 | FL42: 112 | FM42: 0 | FN42: =FL42+1 -> 113 | FO42: 0 | FP42: =FN42+1 -> 114 | FQ42: 0 | FS42: =配点表!C29 -> 2 | FU42: =配点表!D29 -> 3 | FW42: =配点表!E29 -> 4 | GB42: =配点表!G29 -> 2 | GD42: =配点表!H29 -> 4 | GF42: =配点表!I29 -> 6 | GK42: =配点表!K29 -> 1 | GM42: =配点表!L29 -> 3 | GO42: =配点表!M29 -> 5
C43: =マスタ変更!C21 -> 精神科症状 うつなど | F43: =マスタ変更!F21 -> ときどき | H43: =マスタ変更!H21 -> よくある | J43: =マスタ変更!J21 -> 耐え難い | L43: =マスタ変更!L21 -> 不眠行動 昼夜逆転 | O43: =マスタ変更!O21 -> ときどき | Q43: =マスタ変更!Q21 -> よくある | S43: =マスタ変更!S21 -> 耐え難い | U43: =マスタ変更!U21 -> 激しい抵抗 暴力行為 | X43: =マスタ変更!X21 -> ときどき | Z43: =マスタ変更!Z21 -> よくある | AB43: =マスタ変更!AB21 -> 耐え難い | AG43: =$C$43 -> 精神科症状 うつなど | AJ43: =$F$43 -> ときどき | AK43: 0 | AL43: =$H$43 -> よくある | AM43: =I43 -> 0 | AN43: =$J$43 -> 耐え難い | AO43: 0 | AP43: =$L$43 -> 不眠行動 昼夜逆転 | AS43: =$O$43 -> ときどき | AT43: 0 | AU43: =$Q$43 -> よくある | AV43: =R43 -> 0 | AW43: =$S$43 -> 耐え難い | AX43: 0 | AY43: =$U$43 -> 激しい抵抗 暴力行為 | BB43: =$X$43 -> ときどき | BC43: 0 | BD43: =$Z$43 -> よくある | BE43: =AA43 -> 0 | BF43: =$AB$43 -> 耐え難い | BG43: 0 | BK43: 精神科症状 うつなど | BN43: ときどき | BO43: 0 | BP43: よくある | BQ43: 0 | BR43: 耐え難い | BS43: 0 | BT43: 不眠行動 昼夜逆転 | BW43: ときどき | BX43: 0 | BY43: よくある | BZ43: 0 | CA43: 耐え難い | CB43: 0 | CC43: 激しい抵抗 暴力行為 | CF43: ときどき | CG43: 0 | CH43: よくある | CI43: 0 | CJ43: 耐え難い | CK43: 0 | DR43: =IF($D$2="",0,VLOOKUP($D$2,記録台帳!$B$4:$GB$505,$ET$43)) -> 0 | DT43: =IF($D$2="",0,VLOOKUP($D$2,記録台帳!$B$4:$GB$505,$EV$43)) -> 0 | DV43: =IF($D$2="",0,VLOOKUP($D$2,記録台帳!$B$4:$GB$505,$EX$43)) -> 0 | EA43: =IF($D$2="",0,VLOOKUP($D$2,記録台帳!$B$4:$GB$505,$FC$43)) -> 0 | EC43: =IF($D$2="",0,VLOOKUP($D$2,記録台帳!$B$4:$GB$505,$FE$43)) -> 0 | EE43: =IF($D$2="",0,VLOOKUP($D$2,記録台帳!$B$4:$GB$505,$FG$43)) -> 0 | EJ43: =IF($D$2="",0,VLOOKUP($D$2,記録台帳!$B$4:$GB$505,$FL$43)) -> 0 | EL43: =IF($D$2="",0,VLOOKUP($D$2,記録台帳!$B$4:$GB$505,$FN$43)) -> 0 | EN43: =IF($D$2="",0,VLOOKUP($D$2,記録台帳!$B$4:$GB$505,$FP$43)) -> 0 | EQ43: 情緒不安定 感情失禁 | ET43: 115 | EU43: 0 | EV43: =ET43+1 -> 116 | EW43: 0 | EX43: =EV43+1 -> 117 | EY43: 0 | EZ43: 不眠行動 昼夜逆転 | FC43: 118 | FD43: 0 | FE43: =FC43+1 -> 119 | FF43: 0 | FG43: =FE43+1 -> 120 | FH43: 0 | FI43: 暴言・暴行 | FL43: 121 | FM43: 0 | FN43: =FL43+1 -> 122 | FO43: 0 | FP43: =FN43+1 -> 123 | FQ43: 0 | FS43: =配点表!C32 -> 1 | FU43: =配点表!D32 -> 3 | FW43: =配点表!E32 -> 5 | GB43: =配点表!G32 -> 1 | GD43: =配点表!H32 -> 2 | GF43: =配点表!I32 -> 3 | GK43: =配点表!K32 -> 1 | GM43: =配点表!L32 -> 3 | GO43: =配点表!M32 -> 5
C44: =マスタ変更!C22 -> 同じ話や 行動繰り返し | F44: =マスタ変更!F22 -> ときどき | H44: =マスタ変更!H22 -> よくある | J44: =マスタ変更!J22 -> 耐え難い | L44: =マスタ変更!L22 -> 大声 不快な音 | O44: =マスタ変更!O22 -> ときどき | Q44: =マスタ変更!Q22 -> よくある | S44: =マスタ変更!S22 -> 耐え難い | U44: =マスタ変更!U22 -> 徘徊 外に出たがる | X44: =マスタ変更!X22 -> ときどき | Z44: =マスタ変更!Z22 -> よくある | AB44: =マスタ変更!AB22 -> 耐え難い | AG44: =$C$44 -> 同じ話や 行動繰り返し | AJ44: =$F$44 -> ときどき | AK44: 0 | AL44: =$H$44 -> よくある | AM44: =I44 -> 0 | AN44: =$J$44 -> 耐え難い | AO44: 0 | AP44: =$L$44 -> 大声 不快な音 | AS44: =$O$44 -> ときどき | AT44: 0 | AU44: =$Q$44 -> よくある | AV44: =R44 -> 0 | AW44: =$S$44 -> 耐え難い | AX44: 0 | AY44: =$U$44 -> 徘徊 外に出たがる | BB44: =$X$44 -> ときどき | BC44: 0 | BD44: =$Z$44 -> よくある | BE44: =AA44 -> 0 | BF44: =$AB$44 -> 耐え難い | BG44: 0 | BK44: 同じ話や 行動繰り返し | BN44: ときどき | BO44: 0 | BP44: よくある | BQ44: 0 | BR44: 耐え難い | BS44: 0 | BT44: 大声 不快な音 | BW44: ときどき | BX44: 0 | BY44: よくある | BZ44: 0 | CA44: 耐え難い | CB44: 0 | CC44: 徘徊 外に出たがる | CF44: ときどき | CG44: 0 | CH44: よくある | CI44: 0 | CJ44: 耐え難い | CK44: 0 | DR44: =IF($D$2="",0,VLOOKUP($D$2,記録台帳!$B$4:$GB$505,$ET$44)) -> 0 | DT44: =IF($D$2="",0,VLOOKUP($D$2,記録台帳!$B$4:$GB$505,$EV$44)) -> 0 | DV44: =IF($D$2="",0,VLOOKUP($D$2,記録台帳!$B$4:$GB$505,$EX$44)) -> 0 | EA44: =IF($D$2="",0,VLOOKUP($D$2,記録台帳!$B$4:$GB$505,$FC$44)) -> 0 | EC44: =IF($D$2="",0,VLOOKUP($D$2,記録台帳!$B$4:$GB$505,$FE$44)) -> 0 | EE44: =IF($D$2="",0,VLOOKUP($D$2,記録台帳!$B$4:$GB$505,$FG$44)) -> 0 | EJ44: =IF($D$2="",0,VLOOKUP($D$2,記録台帳!$B$4:$GB$505,$FL$44)) -> 0 | EL44: =IF($D$2="",0,VLOOKUP($D$2,記録台帳!$B$4:$GB$505,$FN$44)) -> 0 | EN44: =IF($D$2="",0,VLOOKUP($D$2,記録台帳!$B$4:$GB$505,$FP$44)) -> 0 | EQ44: 同じ話や 行動繰り返し | ET44: 124 | EU44: 0 | EV44: 125 | EW44: 0 | EX44: 126 | EY44: 0 | EZ44: 大声 不快な音 | FC44: 127 | FD44: 0 | FE44: =FC44+1 -> 128 | FF44: 0 | FG44: =FE44+1 -> 129 | FH44: 0 | FI44: 徘徊 外に出たがる | FL44: 130 | FM44: 0 | FN44: 131 | FO44: 0 | FP44: 132 | FQ44: 0 | FS44: =配点表!C35 -> 1 | FU44: =配点表!D35 -> 3 | FW44: =配点表!E35 -> 5 | GB44: =配点表!G35 -> 1 | GD44: =配点表!H35 -> 3 | GF44: =配点表!I35 -> 5 | GK44: =配点表!K35 -> 3 | GM44: =配点表!L35 -> 6 | GO44: =配点表!M35 -> 9
C45: =マスタ変更!C23 -> 不潔行為 弄便・放尿 | F45: =マスタ変更!F23 -> ときどき | H45: =マスタ変更!H23 -> よくある | J45: =マスタ変更!J23 -> 耐え難い | L45: =マスタ変更!L23 -> 危険行為 火の不始末 | O45: =マスタ変更!O23 -> ときどき | Q45: =マスタ変更!Q23 -> よくある | S45: =マスタ変更!S23 -> 耐え難い | U45: =マスタ変更!U23 -> セクハラ行為 いじる・壊す | X45: =マスタ変更!X23 -> ときどき | Z45: =マスタ変更!Z23 -> よくある | AB45: =マスタ変更!AB23 -> 耐え難い | AG45: =$C$45 -> 不潔行為 弄便・放尿 | AJ45: =$F$45 -> ときどき | AK45: 0 | AL45: =$H$45 -> よくある | AM45: =I45 -> 0 | AN45: =$J$45 -> 耐え難い | AO45: 0 | AP45: =$L$45 -> 危険行為 火の不始末 | AS45: =$O$45 -> ときどき | AT45: 0 | AU45: =$Q$45 -> よくある | AV45: =R45 -> 0 | AW45: =$S$45 -> 耐え難い | AX45: 0 | AY45: =$U$45 -> セクハラ行為 いじる・壊す | BB45: =$X$45 -> ときどき | BC45: 0 | BD45: =$Z$45 -> よくある | BE45: =AA45 -> 0 | BF45: =$AB$45 -> 耐え難い | BG45: 0 | BK45: 不潔行為 弄便・放尿 | BN45: ときどき | BO45: 0 | BP45: よくある | BQ45: 0 | BR45: 耐え難い | BS45: 0 | BT45: 危険行為 火の不始末 | BW45: ときどき | BX45: 0 | BY45: よくある | BZ45: 0 | CA45: 耐え難い | CB45: 0 | CC45: セクハラ行為 いじる・壊す | CF45: ときどき | CG45: 0 | CH45: よくある | CI45: 0 | CJ45: 耐え難い | CK45: 0 | DR45: =IF($D$2="",0,VLOOKUP($D$2,記録台帳!$B$4:$GB$505,$ET$45)) -> 0 | DT45: =IF($D$2="",0,VLOOKUP($D$2,記録台帳!$B$4:$GB$505,$EV$45)) -> 0 | DV45: =IF($D$2="",0,VLOOKUP($D$2,記録台帳!$B$4:$GB$505,$EX$45)) -> 0 | EA45: =IF($D$2="",0,VLOOKUP($D$2,記録台帳!$B$4:$GB$505,$FC$45)) -> 0 | EC45: =IF($D$2="",0,VLOOKUP($D$2,記録台帳!$B$4:$GB$505,$FE$45)) -> 0 | EE45: =IF($D$2="",0,VLOOKUP($D$2,記録台帳!$B$4:$GB$505,$FG$45)) -> 0 | EJ45: =IF($D$2="",0,VLOOKUP($D$2,記録台帳!$B$4:$GB$505,$FL$45)) -> 0 | EL45: =IF($D$2="",0,VLOOKUP($D$2,記録台帳!$B$4:$GB$505,$FN$45)) -> 0 | EN45: =IF($D$2="",0,VLOOKUP($D$2,記録台帳!$B$4:$GB$505,$FP$45)) -> 0 | EQ45: 不潔行為 弄便・放尿 | ET45: 133 | EU45: 0 | EV45: 134 | EW45: 0 | EX45: 135 | EY45: 0 | EZ45: ひどい 物忘れ | FC45: 136 | FD45: 0 | FE45: 137 | FF45: 0 | FG45: 138 | FH45: 0 | FI45: 嚥下 | FL45: 139 | FM45: 0 | FN45: 140 | FO45: 0 | FP45: 141 | FQ45: 0 | FS45: =配点表!C38 -> 2 | FU45: =配点表!D38 -> 4 | FW45: =配点表!E38 -> 6 | GB45: =配点表!G38 -> 1 | GD45: =配点表!H38 -> 2 | GF45: =配点表!I38 -> 4 | GK45: =配点表!K38 -> 1 | GM45: =配点表!L38 -> 2 | GO45: =配点表!M38 -> 4
C46: =マスタ変更!C24 -> その他の問題 | F46: =IF($D$2="",0,VLOOKUP($D$2,記録台帳!$B$4:$GB$505,ET46)) -> 0 | AG46: =$C$46 -> その他の問題 | AJ46: =$F$46 -> 0 | AK46: 0 | AL46: =H46 -> 0 | AM46: =I46 -> 0 | AN46: =J46 -> 0 | AO46: 0 | AP46: =L46 -> 0 | AQ46: =M46 -> 0 | AR46: =N46 -> 0 | AS46: =O46 -> 0 | AT46: 0 | AU46: =Q46 -> 0 | AV46: =R46 -> 0 | AW46: =S46 -> 0 | AX46: 0 | AY46: =U46 -> 0 | AZ46: =V46 -> 0 | BA46: =W46 -> 0 | BB46: =X46 -> 0 | BC46: 0 | BD46: =Z46 -> 0 | BE46: =AA46 -> 0 | BF46: =AB46 -> 0 | BG46: 0 | BK46: その他の問題 | BN46: 0 | BO46: 0 | BP46: 0 | BQ46: 0 | BR46: 0 | BS46: 0 | BT46: 0 | BU46: 0 | BV46: 0 | BW46: 0 | BX46: 0 | BY46: 0 | BZ46: 0 | CA46: 0 | CB46: 0 | CC46: 0 | CD46: 0 | CE46: 0 | CF46: 0 | CG46: 0 | CH46: 0 | CI46: 0 | CJ46: 0 | CK46: 0 | EQ46: その他の問題 | ET46: 142 | EU46: 0 | EV46: 0 | EW46: 0 | EX46: 0 | EY46: 0 | EZ46: 0 | FA46: 0 | FB46: 0 | FC46: 0 | FD46: 0 | FE46: 0 | FF46: 0 | FG46: 0 | FH46: 0 | FI46: 0 | FJ46: 0 | FK46: 0 | FL46: 0 | FM46: 0 | FN46: 0 | FO46: 0 | FP46: 0 | FQ46: 0
C47: =マスタ変更!C25 -> 日中の 過ごし方 | F47: =マスタ変更!F25 -> 近所なら 自由に行動 | G47: 0 | H47: 0 | I47: =マスタ変更!I25 -> 家の中なら 自由に行動 | J47: 0 | K47: 0 | L47: =マスタ変更!L25 -> 起きて生活 屋外は補助 | M47: 0 | N47: 0 | O47: =マスタ変更!O25 -> 伝い歩き 寝たり起きたり | P47: 0 | Q47: 0 | R47: =マスタ変更!R25 -> 介助あれば 起きて生活 | S47: 0 | T47: 0 | U47: =マスタ変更!U25 -> 介助により 寝たり起きたり | V47: 0 | W47: 0 | X47: =マスタ変更!X25 -> 寝室中心 の生活 | Y47: 0 | Z47: 0 | AA47: =マスタ変更!AA25 -> 離床しない | AB47: 0 | AC47: 0 | AG47: =$C$47 -> 日中の 過ごし方 | AJ47: =$F$47 -> 近所なら 自由に行動 | AK47: 0 | AL47: =H47 -> 0 | AM47: =$I$47 -> 家の中なら 自由に行動 | AN47: =J47 -> 0 | AO47: 0 | AP47: =$L$47 -> 起きて生活 屋外は補助 | AQ47: =M47 -> 0 | AR47: 0 | AS47: =$O$47 -> 伝い歩き 寝たり起きたり | AT47: 0 | AU47: =Q47 -> 0 | AV47: =$R$47 -> 介助あれば 起きて生活 | AW47: =S47 -> 0 | AX47: 0 | AY47: =$U$47 -> 介助により 寝たり起きたり | AZ47: =V47 -> 0 | BA47: =W47 -> 0 | BB47: =$X$47 -> 寝室中心 の生活 | BC47: 0 | BD47: =Z47 -> 0 | BE47: =$AA$47 -> 離床しない | BF47: =AB47 -> 0 | BG47: 0 | BK47: 日中の 過ごし方 | BN47: 近所なら 自由に行動 | BO47: 0 | BP47: 0 | BQ47: 家の中なら 自由に行動 | BR47: 0 | BS47: 0 | BT47: 起きて生活 屋外は補助 | BU47: 0 | BV47: 0 | BW47: 伝い歩き 寝たり起きたり | BX47: 0 | BY47: 0 | BZ47: 介助あれば 起きて生活 | CA47: 0 | CB47: 0 | CC47: 介助により 寝たり起きたり | CD47: 0 | CE47: 0 | CF47: 寝室中心 の生活 | CG47: 0 | CH47: 0 | CI47: 離床しない | CJ47: 0 | CK47: 0 | DR47: =IF($D$2="",0,VLOOKUP($D$2,記録台帳!$B$4:$GB$505,$ET$47)) -> 0 | DU47: =IF($D$2="",0,VLOOKUP($D$2,記録台帳!$B$4:$GB$505,$EW$47)) -> 0 | DX47: =IF($D$2="",0,VLOOKUP($D$2,記録台帳!$B$4:$GB$505,$EZ$47)) -> 0 | EA47: =IF($D$2="",0,VLOOKUP($D$2,記録台帳!$B$4:$GB$505,$FC$47)) -> 0 | ED47: =IF($D$2="",0,VLOOKUP($D$2,記録台帳!$B$4:$GB$505,$FF$47)) -> 0 | EG47: =IF($D$2="",0,VLOOKUP($D$2,記録台帳!$B$4:$GB$505,$FI$47)) -> 0 | EJ47: =IF($D$2="",0,VLOOKUP($D$2,記録台帳!$B$4:$GB$505,$FL$47)) -> 0 | EM47: =IF($D$2="",0,VLOOKUP($D$2,記録台帳!$B$4:$GB$505,$FO$47)) -> 0 | EQ47: 日中の 過ごし方 | ET47: 143 | EU47: 0 | EV47: 0 | EW47: =ET47+1 -> 144 | EX47: 0 | EY47: 0 | EZ47: =EW47+1 -> 145 | FA47: 0 | FB47: 0 | FC47: =EZ47+1 -> 146 | FD47: 0 | FE47: 0 | FF47: =FC47+1 -> 147 | FG47: 0 | FH47: 0 | FI47: =FF47+1 -> 148 | FJ47: 0 | FK47: 0 | FL47: =FI47+1 -> 149 | FM47: 0 | FN47: 0 | FO47: =FL47+1 -> 150 | FP47: 0 | FQ47: 0 | FS47: =配点表!C41 -> 0 | FV47: =配点表!D41 -> 1 | FY47: =配点表!E41 -> 1 | GB47: =配点表!F41 -> 2 | GE47: =配点表!G41 -> 3 | GH47: =配点表!H41 -> 4 | GK47: =配点表!I41 -> 5 | GN47: =配点表!J41 -> 6
C48: =マスタ変更!C26 -> 聴力 | F48: =マスタ変更!F26 -> 問題なし | G48: 0 | H48: 0 | I48: =マスタ変更!I26 -> 遠い | J48: 0 | K48: 0 | L48: =マスタ変更!L26 -> ひどく遠い | M48: 0 | N48: 0 | O48: =マスタ変更!O26 -> 聴力なし 確認できない | P48: 0 | Q48: 0 | R48: =マスタ変更!R26 -> 視力 | S48: 0 | T48: 0 | U48: =マスタ変更!U26 -> 年齢相応 | V48: 0 | W48: 0 | X48: =マスタ変更!X26 -> かなり悪い 半盲 | Y48: 0 | Z48: 0 | AA48: =マスタ変更!AA26 -> 失明 | AB48: 0 | AC48: 0 | AG48: =$C$48 -> 聴力 | AJ48: =$F$48 -> 問題なし | AK48: 0 | AL48: =H48 -> 0 | AM48: =$I$48 -> 遠い | AN48: =J48 -> 0 | AO48: 0 | AP48: =$L$48 -> ひどく遠い | AQ48: 0 | AR48: 0 | AS48: =$O$48 -> 聴力なし 確認できない | AT48: 0 | AU48: =Q48 -> 0 | AV48: =$R$48 -> 視力 | AY48: =$U$48 -> 年齢相応 | AZ48: =V48 -> 0 | BA48: =W48 -> 0 | BB48: =$X$48 -> かなり悪い 半盲 | BC48: 0 | BD48: =Z48 -> 0 | BE48: =$AA$48 -> 失明 | BF48: =AB48 -> 0 | BG48: 0 | BK48: 聴力 | BN48: 問題なし | BO48: 0 | BP48: 0 | BQ48: 遠い | BR48: 0 | BS48: 0 | BT48: ひどく遠い | BU48: 0 | BV48: 0 | BW48: 聴力なし 確認できない | BX48: 0 | BY48: 0 | BZ48: 視力 | CC48: 年齢相応 | CD48: 0 | CE48: 0 | CF48: かなり悪い 半盲 | CG48: 0 | CH48: 0 | CI48: 失明 | CJ48: 0 | CK48: 0 | DR48: =IF($D$2="",0,VLOOKUP($D$2,記録台帳!$B$4:$GB$505,$ET$48)) -> 0 | DU48: =IF($D$2="",0,VLOOKUP($D$2,記録台帳!$B$4:$GB$505,$EW$48)) -> 0 | DX48: =IF($D$2="",0,VLOOKUP($D$2,記録台帳!$B$4:$GB$505,$EZ$48)) -> 0 | EA48: =IF($D$2="",0,VLOOKUP($D$2,記録台帳!$B$4:$GB$505,$FC$48)) -> 0 | EG48: =IF($D$2="",0,VLOOKUP($D$2,記録台帳!$B$4:$GB$505,$FI$48)) -> 0 | EJ48: =IF($D$2="",0,VLOOKUP($D$2,記録台帳!$B$4:$GB$505,$FL$48)) -> 0 | EM48: =IF($D$2="",0,VLOOKUP($D$2,記録台帳!$B$4:$GB$505,$FO$48)) -> 0 | EQ48: 意志疎通 | ET48: 151 | EU48: 0 | EV48: 0 | EW48: 152 | EX48: 0 | EY48: 0 | EZ48: 153 | FA48: 0 | FB48: 0 | FC48: 154 | FD48: 0 | FE48: 0 | FF48: 視力 | FI48: 155 | FJ48: 0 | FK48: 0 | FL48: 156 | FM48: 0 | FN48: 0 | FO48: 157 | FP48: 0 | FQ48: 0 | FS48: =配点表!C44 -> 0 | FV48: =配点表!D44 -> 1 | FY48: =配点表!E44 -> 2 | GB48: =配点表!F44 -> 3 | GH48: =配点表!H44 -> 0 | GK48: =配点表!I44 -> 2 | GN48: =配点表!J44 -> 6
C49: =マスタ変更!C27 -> 意思疎通 | F49: =マスタ変更!F27 -> 問題なし | G49: 0 | H49: 0 | I49: =マスタ変更!I27 -> なんとか通じる | J49: 0 | K49: 0 | L49: =マスタ変更!L27 -> かなり厳しい | M49: 0 | N49: 0 | O49: =マスタ変更!O27 -> ほぼ不可能 | P49: 0 | Q49: 0 | R49: =マスタ変更!R27 -> 錯乱状態 | S49: 0 | T49: 0 | U49: 身長 | X49: =IF($D$2="",0,VLOOKUP($D$2,記録台帳!$B$4:$GB$505,FL49)) -> 0 | Y49: =IF($D$2="",0,VLOOKUP($D$2,記録台帳!$B$4:$GB$505,FM49)) -> 0 | Z49: =IF($D$2="",0,VLOOKUP($D$2,記録台帳!$B$4:$GB$505,FN49)) -> 0 | AA49: =IF($D$2="",0,VLOOKUP($D$2,記録台帳!$B$4:$GB$505,FO49)) -> 0 | AB49: ｃｍ | AG49: =$C$49 -> 意思疎通 | AJ49: =$F$49 -> 問題なし | AK49: 0 | AL49: =H49 -> 0 | AM49: =$I$49 -> なんとか通じる | AN49: =J49 -> 0 | AO49: 0 | AP49: =$L$49 -> かなり厳しい | AQ49: 0 | AR49: 0 | AS49: =$O$49 -> ほぼ不可能 | AT49: 0 | AU49: =Q49 -> 0 | AV49: =$R$49 -> 錯乱状態 | AW49: =S49 -> 0 | AX49: =T49 -> 0 | AY49: 身長 | BB49: =$X$49 -> 0 | BC49: 0 | BD49: =Z49 -> 0 | BE49: =AA49 -> 0 | BF49: ｃｍ | BK49: 意思疎通 | BN49: 問題なし | BO49: 0 | BP49: 0 | BQ49: なんとか通じる | BR49: 0 | BS49: 0 | BT49: かなり厳しい | BU49: 0 | BV49: 0 | BW49: ほぼ不可能 | BX49: 0 | BY49: 0 | BZ49: 錯乱状態 | CA49: 0 | CB49: 0 | CC49: 身長 | CF49: 0 | CG49: 0 | CH49: 0 | CI49: 0 | CJ49: ｃｍ | DR49: =IF($D$2="",0,VLOOKUP($D$2,記録台帳!$B$4:$GB$505,$ET$49)) -> 0 | DU49: =IF($D$2="",0,VLOOKUP($D$2,記録台帳!$B$4:$GB$505,$EW$49)) -> 0 | DX49: =IF($D$2="",0,VLOOKUP($D$2,記録台帳!$B$4:$GB$505,$EZ$49)) -> 0 | EA49: =IF($D$2="",0,VLOOKUP($D$2,記録台帳!$B$4:$GB$505,$FC$49)) -> 0 | ED49: =IF($D$2="",0,VLOOKUP($D$2,記録台帳!$B$4:$GB$505,$FF$49)) -> 0 | EQ49: 聴力 | ET49: 158 | EU49: 0 | EV49: 0 | EW49: 159 | EX49: 0 | EY49: 0 | EZ49: 160 | FA49: 0 | FB49: 0 | FC49: 161 | FD49: 0 | FE49: 0 | FF49: =FC49+1 -> 162 | FG49: 0 | FH49: 0 | FI49: 身長 | FL49: 163 | FM49: 0 | FN49: 0 | FO49: 0 | FP49: ｃｍ | FS49: =配点表!C47 -> 0 | FV49: =配点表!D47 -> 1 | FY49: =配点表!E47 -> 2 | GB49: =配点表!F47 -> 3 | GE49: =配点表!G47 -> 4
C50: =マスタ変更!C28 -> 0 | F50: =マスタ変更!F28 -> 0 | G50: 0 | H50: 0 | I50: =マスタ変更!I28 -> 0 | J50: 0 | K50: 0 | L50: =マスタ変更!L28 -> 0 | M50: 0 | N50: 0 | O50: =マスタ変更!O28 -> 0 | P50: 0 | Q50: 0 | R50: =マスタ変更!R28 -> 0 | S50: 0 | T50: 0 | U50: 体重 | X50: =IF($D$2="",0,VLOOKUP($D$2,記録台帳!$B$4:$GB$505,FL50)) -> 0 | Y50: =IF($D$2="",0,VLOOKUP($D$2,記録台帳!$B$4:$GB$505,FM50)) -> 0 | Z50: =IF($D$2="",0,VLOOKUP($D$2,記録台帳!$B$4:$GB$505,FN50)) -> 0 | AA50: =IF($D$2="",0,VLOOKUP($D$2,記録台帳!$B$4:$GB$505,FO50)) -> 0 | AB50: Ｋｇ | AG50: =C50 -> 0 | AJ50: =F50 -> 0 | AK50: 0 | AL50: =H50 -> 0 | AM50: =I50 -> 0 | AN50: =J50 -> 0 | AO50: 0 | AP50: =L50 -> 0 | AQ50: 0 | AR50: 0 | AS50: =O50 -> 0 | AT50: 0 | AU50: =Q50 -> 0 | AV50: =R50 -> 0 | AW50: =S50 -> 0 | AX50: =T50 -> 0 | AY50: 体重 | BB50: =$X$50 -> 0 | BC50: 0 | BD50: =Z50 -> 0 | BE50: =AA50 -> 0 | BF50: Ｋｇ | BK50: 0 | BN50: 0 | BO50: 0 | BP50: 0 | BQ50: 0 | BR50: 0 | BS50: 0 | BT50: 0 | BU50: 0 | BV50: 0 | BW50: 0 | BX50: 0 | BY50: 0 | BZ50: 0 | CA50: 0 | CB50: 0 | CC50: 体重 | CF50: 0 | CG50: 0 | CH50: 0 | CI50: 0 | CJ50: Ｋｇ | CO50: 0 | ET50: 0 | EU50: 0 | EV50: 0 | EW50: 1 | EX50: 0 | EY50: 0 | EZ50: 2 | FA50: 0 | FB50: 0 | FC50: 3 | FD50: 0 | FE50: 0 | FF50: 4 | FG50: 0 | FH50: 0 | FI50: 体重 | FL50: 164 | FM50: 0 | FN50: 0 | FO50: 0 | FP50: Ｋｇ
C51: 申し込み済施設 | F51: =IF($D$2="",0,VLOOKUP($D$2,記録台帳!$B$4:$GB$505,ET51)) -> 0 | G51: =IF($D$2="",0,VLOOKUP($D$2,記録台帳!$B$4:$GB$505,EU51)) -> 0 | H51: =IF($D$2="",0,VLOOKUP($D$2,記録台帳!$B$4:$GB$505,EV51)) -> 0 | I51: =IF($D$2="",0,VLOOKUP($D$2,記録台帳!$B$4:$GB$505,EW51)) -> 0 | J51: =IF($D$2="",0,VLOOKUP($D$2,記録台帳!$B$4:$GB$505,EX51)) -> 0 | K51: =IF($D$2="",0,VLOOKUP($D$2,記録台帳!$B$4:$GB$505,EY51)) -> 0 | L51: =IF($D$2="",0,VLOOKUP($D$2,記録台帳!$B$4:$GB$505,EZ51)) -> 0 | M51: =IF($D$2="",0,VLOOKUP($D$2,記録台帳!$B$4:$GB$505,FA51)) -> 0 | N51: =IF($D$2="",0,VLOOKUP($D$2,記録台帳!$B$4:$GB$505,FB51)) -> 0 | O51: =IF($D$2="",0,VLOOKUP($D$2,記録台帳!$B$4:$GB$505,FC51)) -> 0 | P51: =IF($D$2="",0,VLOOKUP($D$2,記録台帳!$B$4:$GB$505,FD51)) -> 0 | Q51: =IF($D$2="",0,VLOOKUP($D$2,記録台帳!$B$4:$GB$505,FE51)) -> 0 | R51: =IF($D$2="",0,VLOOKUP($D$2,記録台帳!$B$4:$GB$505,FF51)) -> 0 | S51: =IF($D$2="",0,VLOOKUP($D$2,記録台帳!$B$4:$GB$505,FG51)) -> 0 | T51: =IF($D$2="",0,VLOOKUP($D$2,記録台帳!$B$4:$GB$505,FH51)) -> 0 | U51: =IF($D$2="",0,VLOOKUP($D$2,記録台帳!$B$4:$GB$505,FI51)) -> 0 | V51: =IF($D$2="",0,VLOOKUP($D$2,記録台帳!$B$4:$GB$505,FJ51)) -> 0 | W51: =IF($D$2="",0,VLOOKUP($D$2,記録台帳!$B$4:$GB$505,FK51)) -> 0 | X51: =IF($D$2="",0,VLOOKUP($D$2,記録台帳!$B$4:$GB$505,FL51)) -> 0 | Y51: =IF($D$2="",0,VLOOKUP($D$2,記録台帳!$B$4:$GB$505,FM51)) -> 0 | Z51: =IF($D$2="",0,VLOOKUP($D$2,記録台帳!$B$4:$GB$505,FN51)) -> 0 | AA51: =IF($D$2="",0,VLOOKUP($D$2,記録台帳!$B$4:$GB$505,FO51)) -> 0 | AB51: =IF($D$2="",0,VLOOKUP($D$2,記録台帳!$B$4:$GB$505,FP51)) -> 0 | AC51: =IF($D$2="",0,VLOOKUP($D$2,記録台帳!$B$4:$GB$505,FQ51)) -> 0 | AG51: 申し込み済施設 | AJ51: =$F$51 -> 0 | AM51: =$I$51 -> 0 | AP51: =$L$51 -> 0 | AS51: =$O$51 -> 0 | AV51: =$R$51 -> 0 | AY51: =$U$51 -> 0 | BB51: =$X$51 -> 0 | BE51: =$AA$51 -> 0 | BK51: 申し込み済施設 | BN51: 0 | BQ51: 0 | BT51: 0 | BW51: 0 | BZ51: 0 | CC51: 0 | CF51: 0 | CI51: 0 | EQ51: 申し込み済施設 | ET51: 168 | EW51: =ET51+1 -> 169 | EX51: 0 | EY51: 0 | EZ51: =EW51+1 -> 170 | FA51: 0 | FB51: 0 | FC51: =EZ51+1 -> 171 | FD51: 0 | FE51: 0 | FF51: =FC51+1 -> 172 | FG51: 0 | FH51: 0 | FI51: =FF51+1 -> 173 | FJ51: 0 | FK51: 0 | FL51: =FI51+1 -> 174 | FM51: 0 | FN51: 0 | FO51: =FL51+1 -> 175 | FP51: 0 | FQ51: 0
C52: 申し込み予定施設 | F52: =IF($D$2="",0,VLOOKUP($D$2,記録台帳!$B$4:$GB$505,ET52)) -> 0 | G52: =IF($D$2="",0,VLOOKUP($D$2,記録台帳!$B$4:$GB$505,EU52)) -> 0 | H52: =IF($D$2="",0,VLOOKUP($D$2,記録台帳!$B$4:$GB$505,EV52)) -> 0 | I52: =IF($D$2="",0,VLOOKUP($D$2,記録台帳!$B$4:$GB$505,EW52)) -> 0 | J52: =IF($D$2="",0,VLOOKUP($D$2,記録台帳!$B$4:$GB$505,EX52)) -> 0 | K52: =IF($D$2="",0,VLOOKUP($D$2,記録台帳!$B$4:$GB$505,EY52)) -> 0 | L52: =IF($D$2="",0,VLOOKUP($D$2,記録台帳!$B$4:$GB$505,EZ52)) -> 0 | M52: =IF($D$2="",0,VLOOKUP($D$2,記録台帳!$B$4:$GB$505,FA52)) -> 0 | N52: =IF($D$2="",0,VLOOKUP($D$2,記録台帳!$B$4:$GB$505,FB52)) -> 0 | O52: =IF($D$2="",0,VLOOKUP($D$2,記録台帳!$B$4:$GB$505,FC52)) -> 0 | P52: =IF($D$2="",0,VLOOKUP($D$2,記録台帳!$B$4:$GB$505,FD52)) -> 0 | Q52: =IF($D$2="",0,VLOOKUP($D$2,記録台帳!$B$4:$GB$505,FE52)) -> 0 | R52: =IF($D$2="",0,VLOOKUP($D$2,記録台帳!$B$4:$GB$505,FF52)) -> 0 | S52: =IF($D$2="",0,VLOOKUP($D$2,記録台帳!$B$4:$GB$505,FG52)) -> 0 | T52: =IF($D$2="",0,VLOOKUP($D$2,記録台帳!$B$4:$GB$505,FH52)) -> 0 | U52: =IF($D$2="",0,VLOOKUP($D$2,記録台帳!$B$4:$GB$505,FI52)) -> 0 | V52: =IF($D$2="",0,VLOOKUP($D$2,記録台帳!$B$4:$GB$505,FJ52)) -> 0 | W52: =IF($D$2="",0,VLOOKUP($D$2,記録台帳!$B$4:$GB$505,FK52)) -> 0 | X52: =IF($D$2="",0,VLOOKUP($D$2,記録台帳!$B$4:$GB$505,FL52)) -> 0 | Y52: =IF($D$2="",0,VLOOKUP($D$2,記録台帳!$B$4:$GB$505,FM52)) -> 0 | Z52: =IF($D$2="",0,VLOOKUP($D$2,記録台帳!$B$4:$GB$505,FN52)) -> 0 | AA52: =IF($D$2="",0,VLOOKUP($D$2,記録台帳!$B$4:$GB$505,FO52)) -> 0 | AB52: =IF($D$2="",0,VLOOKUP($D$2,記録台帳!$B$4:$GB$505,FP52)) -> 0 | AC52: =IF($D$2="",0,VLOOKUP($D$2,記録台帳!$B$4:$GB$505,FQ52)) -> 0 | AG52: 申し込み予定施設 | AJ52: =$F$52 -> 0 | AM52: =$I$52 -> 0 | AP52: =$L$52 -> 0 | AS52: =$O$52 -> 0 | AV52: =$R$52 -> 0 | AY52: =$U$52 -> 0 | BB52: =$X$52 -> 0 | BE52: =$AA$52 -> 0 | BK52: 申し込み予定施設 | BN52: 0 | BQ52: 0 | BT52: 0 | BW52: 0 | BZ52: 0 | CC52: 0 | CF52: 0 | CI52: 0 | EQ52: 申し込み予定施設 | ET52: 176 | EW52: 177 | EX52: 0 | EY52: 0 | EZ52: 178 | FA52: 0 | FB52: 0 | FC52: 179 | FD52: 0 | FE52: 0 | FF52: 180 | FG52: 0 | FH52: 0 | FI52: 181 | FJ52: 0 | FK52: 0 | FL52: 182 | FM52: 0 | FN52: 0 | FO52: 183 | FP52: 0 | FQ52: 0
C53: 1 本人の状況評価（最高点２６点） | M53: 要介護 | O53: =M10 -> 0 | Y53: 判定 | AA53: =IF(O53=5,14,IF(O53=4,12,IF(O53=3,10,IF(OR(O53=2,O53=1),6,0)))) -> 0 | AG53: 1 本人の状況評価（最高点２６点） | AQ53: 介護度 | AS53: =AQ10 -> 0 | BC53: 判定 | BE53: =IF(AS53=5,14,IF(AS53=4,12,IF(AS53=3,10,IF(OR(AS53=2,AS53=1),6,0)))) -> 0 | BK53: 1 本人の状況評価（最高点１４点） | BU53: 介護度 | BW53: =BU10 -> 0 | CG53: 判定 | CI53: =IF(BW53=5,14,IF(BW53=4,12,IF(BW53=3,10,IF(OR(BW53=2,BW53=1),6,0)))) -> 0
C54: ２ 認知症によるBPSD（最高点１２点） | M54: =IF($D$2="","□",VLOOKUP($D$2,記録台帳!$B$4:$IV$505,216)) -> □ | N54: 非常に多い | P54: =IF($D$2="","□",VLOOKUP($D$2,記録台帳!$B$4:$IV$505,217)) -> □ | Q54: やや多い | S54: =IF($D$2="","□",VLOOKUP($D$2,記録台帳!$B$4:$IV$505,218)) -> □ | T54: 少しあり | V54: =IF($D$2="","□",VLOOKUP($D$2,記録台帳!$B$4:$IV$505,219)) -> □ | W54: なし | AA54: =IF(M54="■",12,IF(P54="■",8,IF(S54="■",4,0))) -> 0 | AG54: ２ 認知症によるBPSD（最高点１２点） | AQ54: =$M$54 -> □ | AR54: 非常に多い | AT54: =$P$54 -> □ | AU54: やや多い | AW54: =$S$54 -> □ | AX54: 少しあり | AZ54: =$V$54 -> □ | BA54: なし | BE54: =IF(AQ54="■",12,IF(AT54="■",8,IF(AW54="■",4,0))) -> 0 | BK54: ２ 認知症によるBPSD（最高点１２点） | BU54: □ | BV54: 非常に多い | BX54: □ | BY54: やや多い | CA54: □ | CB54: 少しあり | CD54: □ | CE54: なし | CI54: =IF(BU54="■",12,IF(BX54="■",8,IF(CA54="■",4,0))) -> 0
C55: ３ 在宅サービス利用度（最高点２０点） | M55: =IF($D$2="","□",VLOOKUP($D$2,記録台帳!$B$4:$IV$505,220)) -> □ | N55: ６０％以上 | P55: =IF($D$2="","□",VLOOKUP($D$2,記録台帳!$B$4:$IV$505,221)) -> □ | Q55: ５０％以上 | S55: =IF($D$2="","□",VLOOKUP($D$2,記録台帳!$B$4:$IV$505,222)) -> □ | T55: ３０％以上 | V55: =IF($D$2="","□",VLOOKUP($D$2,記録台帳!$B$4:$IV$505,223)) -> □ | W55: ３０％未満 | AA55: =IF(M55="■",20,IF(P55="■",16,IF(S55="■",12,IF(V55="■",8,0)))) -> 0 | AG55: ３ 在宅サービス利用度（最高点２０点） | AQ55: =$M$55 -> □ | AR55: ６０％以上 | AT55: =$P$55 -> □ | AU55: ５０％以上 | AW55: =$S$55 -> □ | AX55: ３０％以上 | AZ55: =$V$55 -> □ | BA55: ３０％未満 | BE55: =IF(AQ55="■",20,IF(AT55="■",16,IF(AW55="■",12,IF(AZ55="■",8,0)))) -> 0 | BK55: ３ 在宅サービス利用度（最高点２０点） | BU55: □ | BV55: ６０％以上 | BX55: □ | BY55: ５０％以上 | CA55: □ | CB55: ３０％以上 | CD55: □ | CE55: ３０％未満 | CI55: =IF(BU55="■",20,IF(BX55="■",16,IF(CA55="■",12,IF(CD55="■",8,0)))) -> 0 | FS55: =FS31*CS31 -> 0 | FV55: =FV31*CV31 -> 0 | FY55: =FY31*CY31 -> 0 | GB55: =GB31*DB31 -> 0 | GE55: =GE31*DE31 -> 0
C56: ４ 主たる介護者・家族等の状況の評価（最高点５４点） | AG56: ４ 主たる介護者・家族等の状況の評価（最高点５４点） | BK56: ４ 主たる介護者・家族等の状況の評価 | FS56: =FS32*CS32 -> 0 | FV56: =FV32*CV32 -> 0 | FY56: =FY32*CY32 -> 0 | GB56: =GB32*DB32 -> 0 | GE56: =GE32*DE32 -> 0 | GH56: =GH32*DH32 -> 0 | GK56: =GK32*DK32 -> 0 | GN56: =GN35*DN35 -> 0
C57: ①主たる介護者の年齢 | M57: =IF($D$2="","□",VLOOKUP($D$2,記録台帳!$B$4:$IV$505,224)) -> □ | N57: ７０歳以上 | P57: =IF($D$2="","□",VLOOKUP($D$2,記録台帳!$B$4:$IV$505,225)) -> □ | Q57: ６０歳以上 | S57: =IF($D$2="","□",VLOOKUP($D$2,記録台帳!$B$4:$IV$505,226)) -> □ | T57: ６０歳未満 | AA57: =IF(M57="■",6,IF(P57="■",4,IF(S57="■",2,0))) -> 0 | AG57: ①主たる介護者の年齢 | AQ57: =$M$57 -> □ | AR57: ７０歳以上 | AT57: =$P$57 -> □ | AU57: ６０歳以上 | AW57: =$S$57 -> □ | AX57: ６０歳未満 | BK57: ①主たる介護者の年齢（最高点６点） | BU57: □ | BV57: ７０歳以上 | BX57: □ | BY57: ６０歳以上 | CA57: □ | CB57: ６０歳未満 | CI57: =IF(BU57="■",6,IF(BX57="■",4,IF(CA57="■",2,0))) -> 0 | FU57: =FU36*CU36 -> 0 | FV57: =FV36*CV36 -> 0 | FW57: =FW36*CW36 -> 0 | FX57: =FX36*CX36 -> 0 | GA57: =GA36*DA36 -> 0 | GB57: =GB36*DB36 -> 0 | GC57: =GC36*DC36 -> 0 | GD57: =GD36*DD36 -> 0 | GG57: =GG36*DG36 -> 0 | GH57: =GH36*DH36 -> 0 | GI57: =GI36*DI36 -> 0 | GJ57: =GJ36*DJ36 -> 0 | GM57: =GM36*DM36 -> 0 | GN57: =GN36*DN36 -> 0 | GO57: =GO36*DO36 -> 0 | GP57: =GP36*DP36 -> 0
C58: ②介護者の介護負担 | M58: =IF($D$2="","□",VLOOKUP($D$2,記録台帳!$B$4:$IV$505,227)) -> □ | N58: 重い | P58: =IF($D$2="","□",VLOOKUP($D$2,記録台帳!$B$4:$IV$505,228)) -> □ | Q58: やや重い | S58: =IF($D$2="","□",VLOOKUP($D$2,記録台帳!$B$4:$IV$505,229)) -> □ | T58: 軽い | V58: =IF($D$2="","□",VLOOKUP($D$2,記録台帳!$B$4:$IV$505,230)) -> □ | W58: なし | AA58: =IF(M58="■",6,IF(P58="■",4,IF(S58="■",2,0))) -> 0 | AG58: ②介護者の介護負担 | AQ58: =$M$58 -> □ | AR58: 重い | AT58: =$P$58 -> □ | AU58: やや重い | AW58: =$S$58 -> □ | AX58: 軽い | AZ58: =$V$58 -> □ | BA58: なし | BK58: ②介護者の介護負担（最高点６点） | BU58: □ | BV58: 重い | BX58: □ | BY58: やや重い | CA58: □ | CB58: 軽い | CD58: □ | CE58: なし | CI58: =IF(BU58="■",6,IF(BX58="■",4,IF(CA58="■",2,0))) -> 0 | FS58: =FS37*CS37 -> 0 | FV58: =FV37*CV37 -> 0 | FY58: =FY37*CY37 -> 0 | GB58: =GB37*DB37 -> 0 | GE58: =GE37*DE37 -> 0 | GH58: =GH37*DH37 -> 0 | GI58: =GI37*DI37 -> 0 | GK58: =GK37*DK37 -> 0 | GL58: =GL37*DL37 -> 0 | GN58: =GN37*DN37 -> 0 | GO58: =GO37*DO37 -> 0
C59: ③介護者の障害や疾病 | M59: =IF($D$2="","□",VLOOKUP($D$2,記録台帳!$B$4:$IV$505,231)) -> □ | N59: 介護困難 | P59: =IF($D$2="","□",VLOOKUP($D$2,記録台帳!$B$4:$IV$505,232)) -> □ | Q59: 多少困難 | S59: =IF($D$2="","□",VLOOKUP($D$2,記録台帳!$B$4:$IV$505,233)) -> □ | T59: 介護可能 | V59: =IF($D$2="","□",VLOOKUP($D$2,記録台帳!$B$4:$IV$505,234)) -> □ | W59: なし | AA59: =IF(M59="■",6,IF(P59="■",4,IF(S59="■",2,0))) -> 0 | AG59: ③介護者の障害や疾病 | AQ59: =$M$59 -> □ | AR59: 介護困難 | AT59: =$P$59 -> □ | AU59: 多少困難 | AW59: =$S$59 -> □ | AX59: 介護可能 | AZ59: =$V$59 -> □ | BA59: なし | BK59: ③介護者の障害や疾病（最高点６点） | BU59: □ | BV59: 介護困難 | BX59: □ | BY59: 多少困難 | CA59: □ | CB59: 介護可能 | CD59: □ | CE59: なし | CI59: =IF(BU59="■",6,IF(BX59="■",4,IF(CA59="■",2,0))) -> 0 | FS59: 0 | FV59: =FV38*CV38 -> 0 | FY59: =FY38*CY38 -> 0 | GE59: =GE38*DE38 -> 0 | GH59: =GH38*DH38 -> 0 | GK59: =GK38*DK38 -> 0 | GN59: =GN38*DN38 -> 0 | GO59: =GO38*DO38 -> 0
C60: ④介護者の就労状況 | M60: =IF($D$2="","□",VLOOKUP($D$2,記録台帳!$B$4:$IV$505,235)) -> □ | N60: フルタイム 高齢無職 | P60: =IF($D$2="","□",VLOOKUP($D$2,記録台帳!$B$4:$IV$505,236)) -> □ | Q60: ４時間以上 | S60: =IF($D$2="","□",VLOOKUP($D$2,記録台帳!$B$4:$IV$505,237)) -> □ | T60: ４時間未満 | V60: =IF($D$2="","□",VLOOKUP($D$2,記録台帳!$B$4:$IV$505,238)) -> □ | W60: なし | AA60: =IF(M60="■",6,IF(P60="■",4,IF(S60="■",2,0))) -> 0 | AG60: ④介護者の就労 | AQ60: =$M$60 -> □ | AR60: フルタイム 高齢無職 | AT60: =$P$60 -> □ | AU60: ４時間以上 | AW60: =$S$60 -> □ | AX60: ４時間未満 | AZ60: =$V$60 -> □ | BA60: なし | BK60: ④介護者の就労（最高点６点） | BU60: □ | BV60: フルタイム 高齢無職 | BX60: □ | BY60: ４時間以上 | CA60: □ | CB60: ４時間未満 | CD60: □ | CE60: なし | CI60: =IF(BU60="■",6,IF(BX60="■",4,IF(CA60="■",2,0))) -> 0 | FS60: 0 | FV60: =FV39*CV39 -> 0 | FY60: =FY39*CY39 -> 0 | GB60: =GB39*DB39 -> 0 | GE60: =GE39*DE39 -> 0 | GH60: =GH39*DH39 -> 0 | GI60: =GI39*DI39 -> 0 | GN60: =IF(CI39="",0,MIN(CI39,5)) -> 0
C61: ⑤介護者が育児、家族が病気（自動補正あり：最高６点） | M61: =IF($D$2="","□",VLOOKUP($D$2,記録台帳!$B$4:$IV$505,239)) -> □ | N61: 常時介護 | P61: =IF($D$2="","□",VLOOKUP($D$2,記録台帳!$B$4:$IV$505,240)) -> □ | Q61: 半日程度 | S61: =IF($D$2="","□",VLOOKUP($D$2,記録台帳!$B$4:$IV$505,241)) -> □ | T61: 随時 | V61: =IF($D$2="","□",VLOOKUP($D$2,記録台帳!$B$4:$IV$505,242)) -> □ | W61: なし | AA61: =IF(OR(M61="■",DR15=1),6,IF(P61="■",4,IF(S61="■",2,0))) -> 0 | AG61: ⑤介護者が育児、家族が病気 | AQ61: =$M$61 -> □ | AR61: 常時介助 | AT61: =$P$61 -> □ | AU61: 半日程度 | AW61: =$S$61 -> □ | AX61: 随時 | AZ61: =$V$61 -> □ | BA61: なし | BK61: ⑤介護者が育児、家族が病気（自動補正あり：最高６点） | BU61: □ | BV61: 常時介助 | BX61: □ | BY61: 半日程度 | CA61: □ | CB61: 随時 | CD61: □ | CE61: なし | CI61: =IF(OR(BU61="■",DG13=1),6,IF(BX61="■",4,IF(CA61="■",2,0))) -> 0 | FS61: 0 | FV61: =FV40*CV40 -> 0 | FY61: =FY40*CY40 -> 0 | GB61: 0 | GE61: =GE40*DE40 -> 0 | GH61: =GH40*DH40 -> 0 | GN61: =IF(CI40="",0,MIN(CI40*3,9)) -> 0
C62: ⑥介護者の介護のかかわり方 | M62: =IF($D$2="","□",VLOOKUP($D$2,記録台帳!$B$4:$IV$505,243)) -> □ | N62: 介護拒否 | P62: =IF($D$2="","□",VLOOKUP($D$2,記録台帳!$B$4:$IV$505,244)) -> □ | Q62: 非常に消極的 | S62: =IF($D$2="","□",VLOOKUP($D$2,記録台帳!$B$4:$IV$505,245)) -> □ | T62: やや消極的 | V62: =IF($D$2="","□",VLOOKUP($D$2,記録台帳!$B$4:$IV$505,246)) -> □ | W62: ふつう | AA62: =IF(M62="■",6,IF(P62="■",4,IF(S62="■",2,0))) -> 0 | AG62: ⑥介護者の介護のかかわり方 | AQ62: =$M$62 -> □ | AR62: 介護 していない | AT62: =$P$62 -> □ | AU62: 介護者の 関わり希薄 | AW62: =$S$62 -> □ | AX62: 直接介護に やや消極的 | AZ62: =$V$62 -> □ | BA62: しっかり関わっている | BK62: ⑥介護者の介護のかかわり方（自動補正あり：最高６点） | BU62: □ | BV62: 介護 していない | BX62: □ | BY62: 介護者の 関わり希薄 | CA62: □ | CB62: 直接介護に やや消極的 | CD62: □ | CE62: しっかり関わっている | CI62: =IF(OR(BU62="■",DG13=1),6,IF(BX62="■",4,IF(CA62="■",2,0))) -> 0 | CS62: 1 | CT62: 居宅 | CU62: 介護度 | CV62: 性別 | CW62: 生活保護 | CX62: 施設 | CY62: 病院 | CZ62: 地域 | DA62: 施設 | FS62: 0 | FV62: =FV41*CV41 -> 0 | FY62: =FY41*CY41 -> 0 | GB62: 0 | GE62: =GE41*DE41 -> 0 | GH62: =GH41*DH41 -> 0 | GN62: =IF(CI41/10>60,6,ROUND(CI41/10,0)) -> 0
C63: ⑦他の同居介護補助者 | M63: =IF($D$2="","□",VLOOKUP($D$2,記録台帳!$B$4:$IV$505,247)) -> □ | N63: ほとんどなし | P63: =IF($D$2="","□",VLOOKUP($D$2,記録台帳!$B$4:$IV$505,248)) -> □ | Q63: 随時あり | S63: =IF($D$2="","□",VLOOKUP($D$2,記録台帳!$B$4:$IV$505,249)) -> □ | T63: 常時あり | AA63: =IF(M63="■",6,IF(P63="■",4,IF(S63="■",2,0))) -> 0 | AG63: ⑦他の同居介護補助者 | AQ63: =$M$63 -> □ | AR63: ほとんどなし | AT63: =$P$63 -> □ | AU63: 随時あり | AW63: =$S$63 -> □ | AX63: 常時あり | BK63: ⑦他の同居介護補助者（最高点６点） | BU63: □ | BV63: ほとんどなし | BX63: □ | BY63: 随時あり | CA63: □ | CB63: 常時あり | CI63: =IF(BU63="■",6,IF(BX63="■",4,IF(CA63="■",2,0))) -> 0 | CS63: 2 | CT63: 病院 | CU63: =統計!U3 -> 申請中 | CV63: =統計!W3 -> 男 | CW63: =統計!Y3 -> 妻 | CX63: =統計!AA3 -> 自宅介護 | CY63: =統計!AC3 -> 辰巳病院 | CZ63: =統計!AE3 -> 市原市 | DA63: =統計!AG3 -> 辰巳萬緑苑 | FS63: 0 | FU63: =FU42*CU42 -> 0 | FW63: =FW42*CW42 -> 0 | GB63: 0 | GD63: =GD42*DD42 -> 0 | GF63: =GF42*DF42 -> 0 | GK63: =GK42*DK42 -> 0 | GM63: =GM42*DM42 -> 0 | GO63: =GO42*DO42 -> 0
C64: ⑧別居血縁者の介護協力 | M64: =IF($D$2="","□",VLOOKUP($D$2,記録台帳!$B$4:$IV$505,250)) -> □ | N64: ほとんどなし | P64: =IF($D$2="","□",VLOOKUP($D$2,記録台帳!$B$4:$IV$505,251)) -> □ | Q64: 随時あり | S64: =IF($D$2="","□",VLOOKUP($D$2,記録台帳!$B$4:$IV$505,252)) -> □ | T64: 常時あり | AA64: =IF(M64="■",6,IF(P64="■",4,IF(S64="■",2,0))) -> 0 | AG64: ⑧別居血縁者の介護協力 | AQ64: =$M$64 -> □ | AR64: ほとんどなし | AT64: =$P$64 -> □ | AU64: 随時あり | AW64: =$S$64 -> □ | AX64: 常時あり | BK64: ⑧別居血縁者の介護協力（最高点６点） | BU64: □ | BV64: ほとんどなし | BX64: □ | BY64: 随時あり | CA64: □ | CB64: 常時あり | CI64: =IF(BU64="■",6,IF(BX64="■",4,IF(CA64="■",2,0))) -> 0 | CS64: 3 | CT64: 老人保健施設 | CU64: =統計!U4 -> 要支援１ | CV64: =統計!W4 -> 女 | CW64: =統計!Y4 -> 夫 | CX64: =統計!AA4 -> 辰巳病院 | CY64: =統計!AC4 -> 労災病院 | CZ64: =統計!AE4 -> 千葉市 | DA64: =統計!AG4 -> ナーシング・ヴィラ | FS64: 0 | FU64: =FU43*CU43 -> 0 | FW64: =FW43*CW43 -> 0 | GB64: 0 | GD64: =GD43*DD43 -> 0 | GF64: =GF43*DF43 -> 0 | GK64: =GK43*DK43 -> 0 | GM64: =GM43*DM43 -> 0 | GO64: =GO43*DO43 -> 0
C65: ⑨近隣者等の介護協力 | M65: =IF($D$2="","□",VLOOKUP($D$2,記録台帳!$B$4:$IV$505,253)) -> □ | N65: ほとんどなし | P65: =IF($D$2="","□",VLOOKUP($D$2,記録台帳!$B$4:$IV$505,254)) -> □ | Q65: 随時あり | S65: =IF($D$2="","□",VLOOKUP($D$2,記録台帳!$B$4:$IV$505,255)) -> □ | T65: 常時あり | AA65: =IF(M65="■",6,IF(P65="■",4,IF(S65="■",2,0))) -> 0 | AG65: ⑨近隣者等の介護協力 | AQ65: =$M$65 -> □ | AR65: ほとんどなし | AT65: =$P$65 -> □ | AU65: 随時あり | AW65: =$S$65 -> □ | AX65: 常時あり | BK65: ⑨近隣者等の介護協力（最高点６点） | BU65: □ | BV65: ほとんどなし | BX65: □ | BY65: 随時あり | CA65: □ | CB65: 常時あり | CI65: =IF(BU65="■",6,IF(BX65="■",4,IF(CA65="■",2,0))) -> 0 | CS65: 4 | CT65: 療養病床 | CU65: =統計!U5 -> 要支援２ | CV65: =統計!W5 -> 0 | CW65: =統計!Y5 -> 長男 | CX65: =統計!AA5 -> 辰巳彩風苑 | CY65: =統計!AC5 -> 長谷川病院 | CZ65: =統計!AE5 -> 木更津市 | DA65: =統計!AG5 -> 杏の里 | FS65: 0 | FU65: =FU44*CU44 -> 0 | FW65: =FW44*CW44 -> 0 | GB65: 0 | GD65: =GD44*DD44 -> 0 | GF65: =GF44*DF44 -> 0 | GK65: =GK44*DK44 -> 0 | GM65: =GM44*DM44 -> 0 | GO65: =GO44*DO44 -> 0
C66: ⑩独居高齢者の調整加点 | I66: =IF($DR$13=1,42-SUM(AA57:AC63),0) -> 0 | X66: 合計 | AA66: =SUM(AA53:AC65)+I66 -> 0 | AG66: ⑩独居高齢者の調整加点 | BK66: ⑩独居高齢者の調整加点 | BQ66: =IF($DC$13=1,42-SUM(CI57:CK63),0) -> 0 | CI66: =SUM(CI53:CK65)+BQ66 -> 0 | CS66: 5 | CT66: 養護老人ホーム | CU66: =統計!U6 -> 1 | CV66: =統計!W6 -> 0 | CW66: =統計!Y6 -> 次男 | CX66: =統計!AA6 -> 辰巳ナーシング・ヴィラ | CY66: =統計!AC6 -> 鑓田病院 | CZ66: =統計!AE6 -> 袖ヶ浦市 | DA66: =統計!AG6 -> ふるさと苑 | FS66: 0 | FU66: =FU45*CU45 -> 0 | FW66: =FW45*CW45 -> 0 | GB66: 0 | GD66: =GD45*DD45 -> 0 | GF66: =GF45*DF45 -> 0 | GK66: =GK45*DK45 -> 0 | GM66: =GM45*DM45 -> 0 | GO66: =GO45*DO45 -> 0
CS67: 6 | CT67: その他 | CU67: =統計!U7 -> 2 | CV67: =統計!W7 -> 0 | CW67: =統計!Y7 -> 三男 | CX67: =統計!AA7 -> 杏の里 | CY67: =統計!AC7 -> 帝京病院 | CZ67: =統計!AE7 -> 長柄町 | DA67: =統計!AG7 -> 第２ふるさと苑
C68: 千葉県の基準による点数 | I68: =IF($D$2="","",VLOOKUP($D$2,記録台帳!$B$4:$IW$505,3)) ->  | CS68: 7 | CU68: =統計!U8 -> 3 | CV68: =統計!W8 -> 0 | CW68: =統計!Y8 -> 長女 | CX68: =統計!AA8 -> 労災病院 | CY68: =統計!AC8 -> 白金整形外科 | CZ68: =統計!AE8 -> 茂原市 | DA68: =統計!AG8 -> 清流園 | FS68: =FS47*CS47 -> 0 | FV68: =FV47*CV47 -> 0 | FY68: =FY47*CY47 -> 0 | GB68: =GB47*DB47 -> 0 | GE68: =GE47*DE47 -> 0 | GH68: =GH47*DH47 -> 0 | GI68: =GI47*DI47 -> 0 | GK68: =GK47*DK47 -> 0 | GL68: =GL47*DL47 -> 0 | GN68: =GN47*DN47 -> 0 | GO68: =GO47*DO47 -> 0
C69: 千葉県の基準による優先順位 | I69: =IF($D$2="","",VLOOKUP($D$2,記録台帳!$B$4:$IW$505,2)) ->  | CS69: 8 | CU69: =統計!U9 -> 4 | CV69: =統計!W9 -> 0 | CW69: =統計!Y9 -> 次女 | CX69: =統計!AA9 -> 長谷川病院 | CY69: =統計!AC9 -> 辰巳台クリニック | CZ69: =統計!AE9 -> 君津市 | DA69: =統計!AG9 -> あじさい苑 | FS69: =FS48*CS48 -> 0 | FV69: =FV48*CV48 -> 0 | FY69: =FY48*CY48 -> 0 | GB69: =GB48*DB48 -> 0 | GH69: =GH48*DH48 -> 0 | GI69: =GI48*DI48 -> 0 | GK69: =GK48*DK48 -> 0 | GL69: =GL48*DL48 -> 0 | GN69: =GN48*DN48 -> 0 | GO69: =GO48*DO48 -> 0
C70: 独自の基準による困難点数 | I70: =IF($D$2="","",VLOOKUP($D$2,記録台帳!$B$4:$IW$505,256)) ->  | CS70: 9 | CU70: =統計!U10 -> 5 | CV70: =統計!W10 -> 0 | CW70: =統計!Y10 -> 三女 | CX70: =統計!AA10 -> 鑓田病院 | CY70: =統計!AC10 -> ケアハウス辰巳彩風苑 | CZ70: =統計!AE10 -> 富津市 | DA70: =統計!AG10 -> リハパーク菊間 | FS70: =FS49*CS49 -> 0 | FV70: =FV49*CV49 -> 0 | FY70: =FY49*CY49 -> 0 | GB70: =GB49*DB49 -> 0 | GE70: =GE49*DE49 -> 0
C71: 独自の基準による優先順位 | I71: =IF(I70="",0,RANK(I70,記録台帳!IW5:IW505)) -> 0 | CS71: 10 | CU71: =統計!U11 -> 0 | CV71: =統計!W11 -> 0 | CW71: =統計!Y11 -> 孫 | CX71: =統計!AA11 -> 帝京病院 | CY71: =統計!AC11 -> 0 | CZ71: =統計!AE11 -> 勝浦市 | DA71: =統計!AG11 -> 春 | FS71: =FS50*CS50 -> 0 | GK71: =IF(OR(CF50="",CF50=0),0,IF(CF50>=50,ROUNDUP((CF50-50)/10,0),0)) -> 0
CS72: 11 | CU72: =統計!U12 -> 0 | CV72: =統計!W12 -> 0 | CW72: =統計!Y12 -> 妹 | CX72: =統計!AA12 -> 白金整形外科 | CY72: =統計!AC12 -> 0 | CZ72: =統計!AE12 -> 船橋市 | DA72: =統計!AG12 -> 市原園
CS73: 12 | CU73: =統計!U13 -> 0 | CV73: =統計!W13 -> 0 | CW73: =統計!Y13 -> 甥 | CX73: =統計!AA13 -> 0 | CY73: =統計!AC13 -> 0 | CZ73: =統計!AE13 -> 市川市 | DA73: =統計!AG13 -> トータス
CS74: 13 | CU74: =統計!U14 -> 0 | CV74: =統計!W14 -> 0 | CW74: =統計!Y14 -> 姪 | CX74: =統計!AA14 -> 0 | CY74: =統計!AC14 -> 0 | CZ74: =統計!AE14 -> 松戸市 | DA74: =統計!AG14 -> クレイン
CS75: 14 | CU75: =統計!U15 -> 0 | CV75: =統計!W15 -> 0 | CW75: =統計!Y15 -> 0 | CX75: =統計!AA15 -> 0 | CY75: =統計!AC15 -> 0 | CZ75: =統計!AE15 -> 浦安市 | DA75: =統計!AG15 -> なんな苑
CS76: 15 | CU76: =統計!U16 -> 0 | CV76: =統計!W16 -> 0 | CW76: =統計!Y16 -> 0 | CX76: =統計!AA16 -> 0 | CY76: =統計!AC16 -> 0 | CZ76: =統計!AE16 -> 0 | DA76: =統計!AG16 -> ユーアイ倶楽部
CO77: =BM129 -> 0
CO78: =BM131 -> 0
CO79: =BM133 -> 0
CO80: =BM135 -> 0
CO81: =BM137 -> 0
CO82: =BM139 -> 0
CO83: =BM141 -> 0
CO84: =BM143 -> 0
CO85: =BM145 -> 0

Sheet 記録台帳
B1: 50音順 | D1: 50音順 | F1: 申込順 | H1: 点数順 | J1: 施設順 | O1: 削除番号 | S1: 削除理由 | U1: 削除する待機者
B2: =NOW() -> 2014-11-02T18:12:19.670 | E2: 特別養護老人ホーム辰巳萬緑苑入居待機者名簿 | Q2: 削除 | U2: =IF(O2="","",VLOOKUP(O2,B4:F505,5)) ->  | GC2: 脳梗塞 | GD2: 心臓疾患 | GE2: 糖尿病 | GF2: 癌 | GG2: 認知症 | GH2: 脳挫傷 | GI2: 緑内障 | GJ2: 大腿部骨折 | GK2: 脳内出血 | GL2: 呼吸器系疾患 | GM2: 腎臓疾患 | GN2: リューマチ | GO2: うつ病 | GP2: 胆石 | GQ2: 白内障 | GR2: 脊髄等損傷 | GS2: 高血圧症 | GT2: 喘息 | GU2: 肝炎・肝硬変 | GV2: パーキンソン | GW2: 統合失調症 | GX2: 尿管結石等 | GY2: 結核 | GZ2: 変形性膝関節症 | HA2: 人工肛門処置 | HB2: 腸瘻 | HC2: 膀胱洗浄 | HD2: 導尿 | HE2: ＩＶＨ | HF2: 透析 | HG2: 尿カテーテル | HH2: 看取り | HI2: 216 | HJ2: 217 | HK2: 218 | HL2: 219 | HM2: 220 | HN2: 221 | HO2: 222 | HP2: 223 | HQ2: 224 | HR2: 225 | HS2: 226 | HT2: 227 | HU2: 228 | HV2: 229 | HW2: 230 | HX2: 231 | HY2: 232 | HZ2: 233 | IA2: 234 | IB2: 235 | IC2: 236 | ID2: 237 | IE2: 238 | IF2: 239 | IG2: 240 | IH2: 241 | II2: 242 | IJ2: 243 | IK2: 244 | IL2: 245 | IM2: 246 | IN2: 247 | IO2: 248 | IP2: 249 | IQ2: 250 | IR2: 251 | IS2: 252 | IT2: 253 | IU2: 254 | IV2: 255
B4: 番号 | C4: 順位 | D4: 総合点 | E4: 受付年月日 | F4: 本人氏名 | G4: フリガナ | H4: 性別 | I4: 〒 | J4: 住所 | K4: 電話 | L4: 生 年 月 日 | M4: 介護度 | N4: 介護保険証被保険者番号 | O4: 保険者市町村名 | P4: 連絡先 家族氏名 | Q4: 予備 | R4: 続柄 | S4: 〒 | T4: 住所 | U4: 電話 | V4: 携帯 | W4: 概況報告 | X4: 独居 | Y4: 自宅 介護 | Z4: 施設 入所 入院中 | AA4: 施設 入所 入院中 | AB4: 予備 | AC4: 介護者 なし | AD4: 主介護者 高齢障害 疾病など | AE4: 就労 のため 介護困難 | AF4: 身体的 精神的 負担大 | AG4: 居住環境 事情から 介護困難 | AH4: 退去を 求められ ている | AI4: 障害者 複数世帯 | AJ4: 介護（協力）者の人数・続柄・頻度など | AK4: 同居家族が介護協力困難である具体的理由 | AL4: 非同居家族が介護協力困難である具体的理由・居住地 | AM4: 居宅介護支援事業所 | AN4: ショートステイ | AO4: 事業所名 | AP4: デイケア・デイサービス | AQ4: 事業所名 | AR4: 訪問看護・ヘルパー | AS4: 事業所名 | AT4: その他 | AU4: 既往歴 持病・障害 入院経緯 | AV4: 主事病院 | AW4: インシュリン投与 | AX4: 在宅酸素療法 | AY4: 経管栄養 | AZ4: 喀痰吸引 | BA4: 褥瘡処置 | BB4: 部位等 | BC4: - | BD4: 弱 | BE4: 中 | BF4: 強 | BG4: - | BH4: 弱 | BI4: 中 | BJ4: 強 | BK4: - | BL4: 弱 | BM4: 中 | BN4: 強 | BO4: - | BP4: 弱 | BQ4: 中 | BR4: 強 | BS4: 安定歩行 | BT4: シルバーカー 歩行器 | BU4: つきそい支持 手引き歩行 | BV4: 車椅子自力 移譲・移動 | BW4: 移乗支援 自力移動 | BX4: 抱えて移乗 自力移動 | BY4: 抱えて移乗 移動介助 | BZ4: 寝たきり ストレッチャー | CA4: ある | CB4: なし | CC4: 曖昧 | CD4: ある | CE4: なし | CF4: 曖昧 | CG4: 人工肛門 尿カテーテル | CH4: =マスタ変更!F17 -> 自分で行く | CI4: =マスタ変更!I17 -> 失敗あるが 自分でする | CJ4: =マスタ変更!L17 -> 脱衣介助 一部介助 | CK4: =マスタ変更!O17 -> お尻を拭く 体の支持 | CL4: =マスタ変更!R17 -> 抱えて移乗 ほぼ全介助 | CM4: =マスタ変更!U17 -> 寝たまま おむつ交換 | CN4: 介助 頻度 | CO4: 自分で行く | CP4: 失敗はあるが 自分でする | CQ4: 脱衣介助 一部介助 | CR4: お尻を拭く 体の支持 | CS4: 抱えて移乗 ほぼ全介助 | CT4: 寝たまま おむつ交換 | CU4: 介助 頻度 | CV4: 常食 | CW4: おかゆ 柔らか食 | CX4: ミキサー食 | CY4: 経管栄養 | CZ4: 半介助 | DA4: ほぼ全介助 | DB4: 直接介助に かかる時間 | DC4: ときどき | DD4: よくある | DE4: 耐え難い | DF4: ときどき | DG4: よくある | DH4: 耐え難い | DI4: ときどき | DJ4: よくある | DK4: 耐え難い | DL4: ときどき | DM4: よくある | DN4: 耐え難い | DO4: ときどき | DP4: よくある | DQ4: 耐え難い | DR4: ときどき | DS4: よくある | DT4: 耐え難い | DU4: ときどき | DV4: よくある | DW4: 耐え難い | DX4: ときどき | DY4: よくある | DZ4: 耐え難い | EA4: ときどき | EB4: よくある | EC4: 耐え難い | ED4: ときどき | EE4: よくある | EF4: 耐え難い | EG4: ときどき | EH4: よくある | EI4: 耐え難い | EJ4: 良い | EK4: やや悪い | EL4: 悪い | EM4: その他の問題 | EN4: 近所なら 自由に行動 | EO4: 家の中なら 自由に行動 | EP4: 起きて生活 屋外は補助 | EQ4: 伝い歩き 寝たり起きたり | ER4: 介助あれば 起きて生活 | ES4: 介助により 寝たり起きたり | ET4: 寝室中心 の生活 | EU4: 離床しない | EV4: 問題なし | EW4: 遠い | EX4: ひどく遠い | EY4: 聴力なし 確認できない | EZ4: 年齢相応 | FA4: かなり悪い 半盲 | FB4: 失明 | FC4: 問題なし | FD4: なんとか通じる | FE4: かなり厳しい | FF4: ほぼ不可能 | FG4: 錯乱状態 | FH4: 身長 | FI4: 体重 | FJ4: 本人月収 | FK4: 1ヶ月に本人と親族が 支出できる限界金額 | FL4: 特別な 事情 | FM4: 申し込み済施設1 | FN4: 申し込み済施設2 | FO4: 申し込み済施設3 | FP4: 申し込み済施設4 | FQ4: 申し込み済施設5 | FR4: 申し込み済施設6 | FS4: 申し込み済施設7 | FT4: 申し込み済施設8 | FU4: 申し込み予定施設1 | FV4: 申し込み予定施設2 | FW4: 申し込み予定施設3 | FX4: 申し込み予定施設4 | FY4: 申し込み予定施設5 | FZ4: 申し込み予定施設6 | GA4: 申し込み予定施設7 | GB4: 申し込み予定施設8 | GC4: =マスタ変更!F30 -> 脳梗塞 | GD4: =マスタ変更!I30 -> 心臓疾患 | GE4: =マスタ変更!L30 -> 糖尿病 | GF4: =マスタ変更!O30 -> 癌 | GG4: =マスタ変更!R30 -> 認知症 | GH4: =マスタ変更!U30 -> 脳挫傷 | GI4: =マスタ変更!X30 -> 緑内障 | GJ4: =マスタ変更!AA30 -> 大腿部骨折 | GK4: =マスタ変更!F31 -> 脳内出血 | GL4: =マスタ変更!I31 -> 呼吸器系疾患 | GM4: =マスタ変更!L31 -> 腎臓疾患 | GN4: =マスタ変更!O31 -> リューマチ | GO4: =マスタ変更!R31 -> うつ病 | GP4: =マスタ変更!U31 -> 胆石 | GQ4: =マスタ変更!X31 -> 白内障 | GR4: =マスタ変更!AA31 -> 脊髄等損傷 | GS4: =マスタ変更!F32 -> 高血圧症 | GT4: =マスタ変更!I32 -> 喘息 | GU4: =マスタ変更!L32 -> 肝炎・肝硬変 | GV4: =マスタ変更!O32 -> パーキンソン | GW4: =マスタ変更!R32 -> 統合失調症 | GX4: =マスタ変更!U32 -> 尿管結石等 | GY4: =マスタ変更!X32 -> 結核 | GZ4: =マスタ変更!AA32 -> 変形性膝関節症 | HA4: =マスタ変更!F13 -> 人工肛門処置 | HB4: =マスタ変更!I13 -> 腸瘻 | HC4: =マスタ変更!L13 -> 膀胱洗浄 | HD4: =マスタ変更!O13 -> 導尿 | HE4: =マスタ変更!R13 -> ＩＶＨ | HF4: =マスタ変更!U13 -> 透析 | HG4: =マスタ変更!X13 -> 尿カテーテル | HH4: =マスタ変更!AA13 -> 看取り | HI4: 非常に多い | HJ4: =記入用!Q54 -> やや多い | HK4: =記入用!T54 -> 少しあり | HL4: =記入用!W54 -> なし | HM4: =記入用!N55 -> ６０％以上 | HN4: =記入用!Q55 -> ５０％以上 | HO4: =記入用!T55 -> ３０％以上 | HP4: =記入用!W55 -> ３０％未満 | HQ4: =記入用!N57 -> ７０歳以上 | HR4: =記入用!Q57 -> ６０歳以上 | HS4: =記入用!T57 -> ６０歳未満 | HT4: =記入用!N58 -> 重い | HU4: =記入用!Q58 -> やや重い | HV4: =記入用!T58 -> 軽い | HW4: =記入用!W58 -> なし | HX4: =記入用!N59 -> 介護困難 | HY4: =記入用!Q59 -> 多少困難 | HZ4: =記入用!T59 -> 介護可能 | IA4: =記入用!W59 -> なし | IB4: =記入用!N60 -> フルタイム 高齢無職 | IC4: =記入用!Q60 -> ４時間以上 | ID4: =記入用!T60 -> ４時間未満 | IE4: =記入用!W60 -> なし | IF4: =記入用!N61 -> 常時介護 | IG4: =記入用!Q61 -> 半日程度 | IH4: =記入用!T61 -> 随時 | II4: =記入用!W61 -> なし | IJ4: =記入用!N62 -> 介護拒否 | IK4: =記入用!Q62 -> 非常に消極的 | IL4: =記入用!CB62 -> 直接介護に やや消極的 | IM4: =記入用!CE62 -> しっかり関わっている | IN4: =記入用!BV63 -> ほとんどなし | IO4: =記入用!BY63 -> 随時あり | IP4: =記入用!CB63 -> 常時あり | IQ4: =IN4 -> ほとんどなし | IR4: 随時あり | IS4: 常時あり | IT4: ほとんどなし | IU4: 随時あり | IV4: 常時あり | IW4: 独自点数
IY5: 死亡
IY6: 施設入所
IY7: 重複
IY8: 申込取り下げ
IY9: 転居
IY10: 連絡不能
IY11: その他
W580: =IF(E580="",0,(NOW()-E580)/(NOW()-MIN($E$5:$E$1004))*20) -> 00:00:00 | X580: =IF(OR(N580="自立",N580="要支援",N580="未申請"),0,N580)+(IF(OR(O580="自立",O580="要支援"),0,O580))*2 -> 0 | Y580: =P580*(P580-1) -> 0 | Z580: =Q580*4 -> 0 | AA580: =IF(R580="",0,((5-R580)*6)) -> 0 | AB580: =IF(L580="市原市",5)+IF(M580="○",3) -> 0
W581: 00:00:00 | X581: 0 | Y581: =P581*(P581-1) -> 0 | Z581: =Q581*4 -> 0 | AA581: =IF(R581="",0,((5-R581)*6)) -> 0 | AB581: =IF(L581="市原市",5)+IF(M581="○",3) -> 0
W582: 00:00:00 | X582: 0 | Y582: 0 | Z582: 0 | AA582: 0 | AB582: 0
W583: 00:00:00 | X583: 0 | Y583: 0 | Z583: 0 | AA583: 0 | AB583: 0
W584: 00:00:00 | X584: 0 | Y584: 0 | Z584: 0 | AA584: 0 | AB584: 0
W585: 00:00:00 | X585: 0 | Y585: 0 | Z585: 0 | AA585: 0 | AB585: 0
W586: 00:00:00 | X586: 0 | Y586: 0 | Z586: 0 | AA586: 0 | AB586: 0
W587: 00:00:00 | X587: 0 | Y587: 0 | Z587: 0 | AA587: 0 | AB587: 0
W588: 00:00:00 | X588: 0 | Y588: 0 | Z588: 0 | AA588: 0 | AB588: 0
W589: 00:00:00 | X589: 0 | Y589: 0 | Z589: 0 | AA589: 0 | AB589: 0
W590: 00:00:00 | X590: 0 | Y590: 0 | Z590: 0 | AA590: 0 | AB590: 0
W591: 00:00:00 | X591: 0 | Y591: 0 | Z591: 0 | AA591: 0 | AB591: 0
W592: 00:00:00 | X592: 0 | Y592: 0 | Z592: 0 | AA592: 0 | AB592: 0
W593: 00:00:00 | X593: 0 | Y593: 0 | Z593: 0 | AA593: 0 | AB593: 0
W594: 00:00:00 | X594: 0 | Y594: 0 | Z594: 0 | AA594: 0 | AB594: 0
W595: 00:00:00 | X595: 0 | Y595: 0 | Z595: 0 | AA595: 0 | AB595: 0
W596: 00:00:00 | X596: 0 | Y596: 0 | Z596: 0 | AA596: 0 | AB596: 0
W597: 00:00:00 | X597: 0 | Y597: 0 | Z597: 0 | AA597: 0 | AB597: 0
W598: 00:00:00 | X598: 0 | Y598: 0 | Z598: 0 | AA598: 0 | AB598: 0
W599: 00:00:00 | X599: 0 | Y599: 0 | Z599: 0 | AA599: 0 | AB599: 0
W600: 00:00:00 | X600: 0 | Y600: 0 | Z600: 0 | AA600: 0 | AB600: 0
W601: 00:00:00 | X601: 0 | Y601: 0 | Z601: 0 | AA601: 0 | AB601: 0
W602: 00:00:00 | X602: 0 | Y602: 0 | Z602: 0 | AA602: 0 | AB602: 0
W603: 00:00:00 | X603: 0 | Y603: 0 | Z603: 0 | AA603: 0 | AB603: 0
W604: 00:00:00 | X604: 0 | Y604: 0 | Z604: 0 | AA604: 0 | AB604: 0
W605: 00:00:00 | X605: 0 | Y605: 0 | Z605: 0 | AA605: 0 | AB605: 0
W606: 00:00:00 | X606: 0 | Y606: 0 | Z606: 0 | AA606: 0 | AB606: 0
W607: =IF(E607="",0,(NOW()-E607)/(NOW()-MIN($E$5:$E$1004))*20) -> 00:00:00 | X607: 0 | Y607: 0 | Z607: 0 | AA607: 0 | AB607: 0
W608: 00:00:00 | X608: 0 | Y608: 0 | Z608: 0 | AA608: 0 | AB608: 0
W609: 00:00:00 | X609: 0 | Y609: 0 | Z609: 0 | AA609: 0 | AB609: 0
W610: 00:00:00 | X610: 0 | Y610: 0 | Z610: 0 | AA610: 0 | AB610: 0
W611: 00:00:00 | X611: 0 | Y611: 0 | Z611: 0 | AA611: 0 | AB611: 0
W612: 00:00:00 | X612: 0 | Y612: 0 | Z612: 0 | AA612: 0 | AB612: 0
W613: 00:00:00 | X613: 0 | Y613: 0 | Z613: 0 | AA613: 0 | AB613: 0
W614: 00:00:00 | X614: 0 | Y614: 0 | Z614: 0 | AA614: 0 | AB614: 0
W615: 00:00:00 | X615: 0 | Y615: 0 | Z615: 0 | AA615: 0 | AB615: 0
W616: 00:00:00 | X616: 0 | Y616: 0 | Z616: 0 | AA616: 0 | AB616: 0
W617: 00:00:00 | X617: 0 | Y617: 0 | Z617: 0 | AA617: 0 | AB617: 0
W618: 00:00:00 | X618: 0 | Y618: 0 | Z618: 0 | AA618: 0 | AB618: 0
W619: 00:00:00 | X619: 0 | Y619: 0 | Z619: 0 | AA619: 0 | AB619: 0
W620: 00:00:00 | X620: 0 | Y620: 0 | Z620: 0 | AA620: 0 | AB620: 0
W621: 00:00:00 | X621: 0 | Y621: 0 | Z621: 0 | AA621: 0 | AB621: 0
W622: 00:00:00 | X622: 0 | Y622: 0 | Z622: 0 | AA622: 0 | AB622: 0
W623: 00:00:00 | X623: 0 | Y623: 0 | Z623: 0 | AA623: 0 | AB623: 0
W624: 00:00:00 | X624: 0 | Y624: 0 | Z624: 0 | AA624: 0 | AB624: 0
W625: 00:00:00 | X625: 0 | Y625: 0 | Z625: 0 | AA625: 0 | AB625: 0
W626: 00:00:00 | X626: =IF(OR(N626="自立",N626="要支援",N626="未申請"),0,N626)+(IF(OR(O626="自立",O626="要支援"),0,O626))*2 -> 0 | Y626: 0 | Z626: 0 | AA626: 0 | AB626: 0
W627: 00:00:00 | X627: 0 | Y627: 0 | Z627: 0 | AA627: 0 | AB627: 0
W628: 00:00:00 | X628: 0 | Y628: 0 | Z628: 0 | AA628: 0 | AB628: 0
W629: 00:00:00 | X629: 0 | Y629: 0 | Z629: 0 | AA629: 0 | AB629: 0
W630: 00:00:00 | X630: 0 | Y630: 0 | Z630: 0 | AA630: 0 | AB630: 0
W631: 00:00:00 | X631: 0 | Y631: 0 | Z631: 0 | AA631: 0 | AB631: 0
W632: 00:00:00 | X632: 0 | Y632: 0 | Z632: 0 | AA632: 0 | AB632: 0
W633: 00:00:00 | X633: 0 | Y633: 0 | Z633: 0 | AA633: 0 | AB633: 0
W634: 00:00:00 | X634: 0 | Y634: 0 | Z634: 0 | AA634: 0 | AB634: 0
W635: 00:00:00 | X635: 0 | Y635: 0 | Z635: 0 | AA635: 0 | AB635: 0
W636: 00:00:00 | X636: 0 | Y636: 0 | Z636: 0 | AA636: 0 | AB636: 0
W637: 00:00:00 | X637: 0 | Y637: 0 | Z637: 0 | AA637: 0 | AB637: 0
W638: 00:00:00 | X638: 0 | Y638: 0 | Z638: 0 | AA638: 0 | AB638: 0
W639: 00:00:00 | X639: 0 | Y639: 0 | Z639: 0 | AA639: 0 | AB639: 0
W640: 00:00:00 | X640: 0 | Y640: 0 | Z640: 0 | AA640: 0 | AB640: 0
W641: 00:00:00 | X641: 0 | Y641: 0 | Z641: 0 | AA641: 0 | AB641: 0
W642: 00:00:00 | X642: 0 | Y642: 0 | Z642: 0 | AA642: 0 | AB642: 0
W643: 00:00:00 | X643: 0 | Y643: 0 | Z643: 0 | AA643: 0 | AB643: 0
W644: 00:00:00 | X644: 0 | Y644: 0 | Z644: 0 | AA644: 0 | AB644: 0
W645: 00:00:00 | X645: 0 | Y645: =P645*(P645-1) -> 0 | Z645: =Q645*4 -> 0 | AA645: =IF(R645="",0,((5-R645)*6)) -> 0 | AB645: =IF(L645="市原市",5)+IF(M645="○",3) -> 0
W646: 00:00:00 | X646: 0 | Y646: 0 | Z646: 0 | AA646: 0 | AB646: 0
W647: 00:00:00 | X647: 0 | Y647: 0 | Z647: 0 | AA647: 0 | AB647: 0
W648: 00:00:00 | X648: 0 | Y648: 0 | Z648: 0 | AA648: 0 | AB648: 0
W649: 00:00:00 | X649: 0 | Y649: 0 | Z649: 0 | AA649: 0 | AB649: 0
W650: 00:00:00 | X650: 0 | Y650: 0 | Z650: 0 | AA650: 0 | AB650: 0
W651: 00:00:00 | X651: 0 | Y651: 0 | Z651: 0 | AA651: 0 | AB651: 0
W652: 00:00:00 | X652: 0 | Y652: 0 | Z652: 0 | AA652: 0 | AB652: 0
W653: 00:00:00 | X653: 0 | Y653: 0 | Z653: 0 | AA653: 0 | AB653: 0
W654: 00:00:00 | X654: 0 | Y654: 0 | Z654: 0 | AA654: 0 | AB654: 0
W655: 00:00:00 | X655: 0 | Y655: 0 | Z655: 0 | AA655: 0 | AB655: 0
W656: 00:00:00 | X656: 0 | Y656: 0 | Z656: 0 | AA656: 0 | AB656: 0
W657: 00:00:00 | X657: 0 | Y657: 0 | Z657: 0 | AA657: 0 | AB657: 0
W658: 00:00:00 | X658: 0 | Y658: 0 | Z658: 0 | AA658: 0 | AB658: 0
W659: 00:00:00 | X659: 0 | Y659: 0 | Z659: 0 | AA659: 0 | AB659: 0
W660: 00:00:00 | X660: 0 | Y660: 0 | Z660: 0 | AA660: 0 | AB660: 0
W661: 00:00:00 | X661: 0 | Y661: 0 | Z661: 0 | AA661: 0 | AB661: 0
W662: 00:00:00 | X662: 0 | Y662: 0 | Z662: 0 | AA662: 0 | AB662: 0
W663: 00:00:00 | X663: 0 | Y663: 0 | Z663: 0 | AA663: 0 | AB663: 0
W664: 00:00:00 | X664: 0 | Y664: 0 | Z664: 0 | AA664: 0 | AB664: 0
W665: 00:00:00 | X665: 0 | Y665: 0 | Z665: 0 | AA665: 0 | AB665: 0
W666: 00:00:00 | X666: 0 | Y666: 0 | Z666: 0 | AA666: 0 | AB666: 0
W667: 00:00:00 | X667: 0 | Y667: 0 | Z667: 0 | AA667: 0 | AB667: 0
W668: 00:00:00 | X668: 0 | Y668: 0 | Z668: 0 | AA668: 0 | AB668: 0
W669: 00:00:00 | X669: 0 | Y669: 0 | Z669: 0 | AA669: 0 | AB669: 0
W670: 00:00:00 | X670: 0 | Y670: 0 | Z670: 0 | AA670: 0 | AB670: 0
W671: =IF(E671="",0,(NOW()-E671)/(NOW()-MIN($E$5:$E$1004))*20) -> 00:00:00 | X671: 0 | Y671: 0 | Z671: 0 | AA671: 0 | AB671: 0
W672: 00:00:00 | X672: 0 | Y672: 0 | Z672: 0 | AA672: 0 | AB672: 0
W673: 00:00:00 | X673: 0 | Y673: 0 | Z673: 0 | AA673: 0 | AB673: 0
W674: 00:00:00 | X674: 0 | Y674: 0 | Z674: 0 | AA674: 0 | AB674: 0
W675: 00:00:00 | X675: 0 | Y675: 0 | Z675: 0 | AA675: 0 | AB675: 0
W676: 00:00:00 | X676: 0 | Y676: 0 | Z676: 0 | AA676: 0 | AB676: 0
W677: 00:00:00 | X677: 0 | Y677: 0 | Z677: 0 | AA677: 0 | AB677: 0
W678: 00:00:00 | X678: 0 | Y678: 0 | Z678: 0 | AA678: 0 | AB678: 0
W679: 00:00:00 | X679: 0 | Y679: 0 | Z679: 0 | AA679: 0 | AB679: 0
W680: 00:00:00 | X680: 0 | Y680: 0 | Z680: 0 | AA680: 0 | AB680: 0
W681: 00:00:00 | X681: 0 | Y681: 0 | Z681: 0 | AA681: 0 | AB681: 0
W682: 00:00:00 | X682: 0 | Y682: 0 | Z682: 0 | AA682: 0 | AB682: 0
W683: 00:00:00 | X683: 0 | Y683: 0 | Z683: 0 | AA683: 0 | AB683: 0
W684: 00:00:00 | X684: 0 | Y684: 0 | Z684: 0 | AA684: 0 | AB684: 0
W685: 00:00:00 | X685: 0 | Y685: 0 | Z685: 0 | AA685: 0 | AB685: 0
W686: 00:00:00 | X686: 0 | Y686: 0 | Z686: 0 | AA686: 0 | AB686: 0
W687: 00:00:00 | X687: 0 | Y687: 0 | Z687: 0 | AA687: 0 | AB687: 0
W688: 00:00:00 | X688: 0 | Y688: 0 | Z688: 0 | AA688: 0 | AB688: 0
W689: 00:00:00 | X689: 0 | Y689: 0 | Z689: 0 | AA689: 0 | AB689: 0
W690: 00:00:00 | X690: =IF(OR(N690="自立",N690="要支援",N690="未申請"),0,N690)+(IF(OR(O690="自立",O690="要支援"),0,O690))*2 -> 0 | Y690: 0 | Z690: 0 | AA690: 0 | AB690: 0
W691: 00:00:00 | X691: 0 | Y691: 0 | Z691: 0 | AA691: 0 | AB691: 0
W692: 00:00:00 | X692: 0 | Y692: 0 | Z692: 0 | AA692: 0 | AB692: 0
W693: 00:00:00 | X693: 0 | Y693: 0 | Z693: 0 | AA693: 0 | AB693: 0
W694: 00:00:00 | X694: 0 | Y694: 0 | Z694: 0 | AA694: 0 | AB694: 0
W695: 00:00:00 | X695: 0 | Y695: 0 | Z695: 0 | AA695: 0 | AB695: 0
W696: 00:00:00 | X696: 0 | Y696: 0 | Z696: 0 | AA696: 0 | AB696: 0
W697: 00:00:00 | X697: 0 | Y697: 0 | Z697: 0 | AA697: 0 | AB697: 0
W698: 00:00:00 | X698: 0 | Y698: 0 | Z698: 0 | AA698: 0 | AB698: 0
W699: 00:00:00 | X699: 0 | Y699: 0 | Z699: 0 | AA699: 0 | AB699: 0
W700: 00:00:00 | X700: 0 | Y700: 0 | Z700: 0 | AA700: 0 | AB700: 0
W701: 00:00:00 | X701: 0 | Y701: 0 | Z701: 0 | AA701: 0 | AB701: 0
W702: 00:00:00 | X702: 0 | Y702: 0 | Z702: 0 | AA702: 0 | AB702: 0
W703: 00:00:00 | X703: 0 | Y703: 0 | Z703: 0 | AA703: 0 | AB703: 0
W704: 00:00:00 | X704: 0 | Y704: 0 | Z704: 0 | AA704: 0 | AB704: 0
W705: 00:00:00 | X705: 0 | Y705: 0 | Z705: 0 | AA705: 0 | AB705: 0
W706: 00:00:00 | X706: 0 | Y706: 0 | Z706: 0 | AA706: 0 | AB706: 0
W707: 00:00:00 | X707: 0 | Y707: 0 | Z707: 0 | AA707: 0 | AB707: 0
W708: 00:00:00 | X708: 0 | Y708: 0 | Z708: 0 | AA708: 0 | AB708: 0
W709: 00:00:00 | X709: 0 | Y709: =P709*(P709-1) -> 0 | Z709: =Q709*4 -> 0 | AA709: =IF(R709="",0,((5-R709)*6)) -> 0 | AB709: =IF(L709="市原市",5)+IF(M709="○",3) -> 0
W710: 00:00:00 | X710: 0 | Y710: 0 | Z710: 0 | AA710: 0 | AB710: 0
W711: 00:00:00 | X711: 0 | Y711: 0 | Z711: 0 | AA711: 0 | AB711: 0
W712: 00:00:00 | X712: 0 | Y712: 0 | Z712: 0 | AA712: 0 | AB712: 0
W713: 00:00:00 | X713: 0 | Y713: 0 | Z713: 0 | AA713: 0 | AB713: 0
W714: 00:00:00 | X714: 0 | Y714: 0 | Z714: 0 | AA714: 0 | AB714: 0
W715: 00:00:00 | X715: 0 | Y715: 0 | Z715: 0 | AA715: 0 | AB715: 0
W716: 00:00:00 | X716: 0 | Y716: 0 | Z716: 0 | AA716: 0 | AB716: 0
W717: 00:00:00 | X717: 0 | Y717: 0 | Z717: 0 | AA717: 0 | AB717: 0
W718: 00:00:00 | X718: 0 | Y718: 0 | Z718: 0 | AA718: 0 | AB718: 0
W719: 00:00:00 | X719: 0 | Y719: 0 | Z719: 0 | AA719: 0 | AB719: 0
W720: 00:00:00 | X720: 0 | Y720: 0 | Z720: 0 | AA720: 0 | AB720: 0
W721: 00:00:00 | X721: 0 | Y721: 0 | Z721: 0 | AA721: 0 | AB721: 0
W722: 00:00:00 | X722: 0 | Y722: 0 | Z722: 0 | AA722: 0 | AB722: 0
W723: 00:00:00 | X723: 0 | Y723: 0 | Z723: 0 | AA723: 0 | AB723: 0
W724: 00:00:00 | X724: 0 | Y724: 0 | Z724: 0 | AA724: 0 | AB724: 0
W725: 00:00:00 | X725: 0 | Y725: 0 | Z725: 0 | AA725: 0 | AB725: 0
W726: 00:00:00 | X726: 0 | Y726: 0 | Z726: 0 | AA726: 0 | AB726: 0
W727: 00:00:00 | X727: 0 | Y727: 0 | Z727: 0 | AA727: 0 | AB727: 0
W728: 00:00:00 | X728: 0 | Y728: 0 | Z728: 0 | AA728: 0 | AB728: 0
W729: 00:00:00 | X729: 0 | Y729: 0 | Z729: 0 | AA729: 0 | AB729: 0
W730: 00:00:00 | X730: 0 | Y730: 0 | Z730: 0 | AA730: 0 | AB730: 0
W731: 00:00:00 | X731: 0 | Y731: 0 | Z731: 0 | AA731: 0 | AB731: 0
W732: 00:00:00 | X732: 0 | Y732: 0 | Z732: 0 | AA732: 0 | AB732: 0
W733: 00:00:00 | X733: 0 | Y733: 0 | Z733: 0 | AA733: 0 | AB733: 0
W734: 00:00:00 | X734: 0 | Y734: 0 | Z734: 0 | AA734: 0 | AB734: 0
W735: =IF(E735="",0,(NOW()-E735)/(NOW()-MIN($E$5:$E$1004))*20) -> 00:00:00 | X735: 0 | Y735: 0 | Z735: 0 | AA735: 0 | AB735: 0
W736: 00:00:00 | X736: 0 | Y736: 0 | Z736: 0 | AA736: 0 | AB736: 0
W737: 00:00:00 | X737: 0 | Y737: 0 | Z737: 0 | AA737: 0 | AB737: 0
W738: 00:00:00 | X738: 0 | Y738: 0 | Z738: 0 | AA738: 0 | AB738: 0
W739: 00:00:00 | X739: 0 | Y739: 0 | Z739: 0 | AA739: 0 | AB739: 0
W740: 00:00:00 | X740: 0 | Y740: 0 | Z740: 0 | AA740: 0 | AB740: 0
W741: 00:00:00 | X741: 0 | Y741: 0 | Z741: 0 | AA741: 0 | AB741: 0
W742: 00:00:00 | X742: 0 | Y742: 0 | Z742: 0 | AA742: 0 | AB742: 0
W743: 00:00:00 | X743: 0 | Y743: 0 | Z743: 0 | AA743: 0 | AB743: 0
W744: 00:00:00 | X744: 0 | Y744: 0 | Z744: 0 | AA744: 0 | AB744: 0
W745: 00:00:00 | X745: 0 | Y745: 0 | Z745: 0 | AA745: 0 | AB745: 0
W746: 00:00:00 | X746: 0 | Y746: 0 | Z746: 0 | AA746: 0 | AB746: 0
W747: 00:00:00 | X747: 0 | Y747: 0 | Z747: 0 | AA747: 0 | AB747: 0
W748: 00:00:00 | X748: 0 | Y748: 0 | Z748: 0 | AA748: 0 | AB748: 0
W749: 00:00:00 | X749: 0 | Y749: 0 | Z749: 0 | AA749: 0 | AB749: 0
W750: 00:00:00 | X750: 0 | Y750: 0 | Z750: 0 | AA750: 0 | AB750: 0
W751: 00:00:00 | X751: 0 | Y751: 0 | Z751: 0 | AA751: 0 | AB751: 0
W752: 00:00:00 | X752: 0 | Y752: 0 | Z752: 0 | AA752: 0 | AB752: 0
W753: 00:00:00 | X753: 0 | Y753: 0 | Z753: 0 | AA753: 0 | AB753: 0
W754: 00:00:00 | X754: =IF(OR(N754="自立",N754="要支援",N754="未申請"),0,N754)+(IF(OR(O754="自立",O754="要支援"),0,O754))*2 -> 0 | Y754: 0 | Z754: 0 | AA754: 0 | AB754: 0
W755: 00:00:00 | X755: 0 | Y755: 0 | Z755: 0 | AA755: 0 | AB755: 0
W756: 00:00:00 | X756: 0 | Y756: 0 | Z756: 0 | AA756: 0 | AB756: 0
W757: 00:00:00 | X757: 0 | Y757: 0 | Z757: 0 | AA757: 0 | AB757: 0
W758: 00:00:00 | X758: 0 | Y758: 0 | Z758: 0 | AA758: 0 | AB758: 0
W759: 00:00:00 | X759: 0 | Y759: 0 | Z759: 0 | AA759: 0 | AB759: 0
W760: 00:00:00 | X760: 0 | Y760: 0 | Z760: 0 | AA760: 0 | AB760: 0
W761: 00:00:00 | X761: 0 | Y761: 0 | Z761: 0 | AA761: 0 | AB761: 0
W762: 00:00:00 | X762: 0 | Y762: 0 | Z762: 0 | AA762: 0 | AB762: 0
W763: 00:00:00 | X763: 0 | Y763: 0 | Z763: 0 | AA763: 0 | AB763: 0
W764: 00:00:00 | X764: 0 | Y764: 0 | Z764: 0 | AA764: 0 | AB764: 0
W765: 00:00:00 | X765: 0 | Y765: 0 | Z765: 0 | AA765: 0 | AB765: 0
W766: 00:00:00 | X766: 0 | Y766: 0 | Z766: 0 | AA766: 0 | AB766: 0
W767: 00:00:00 | X767: 0 | Y767: 0 | Z767: 0 | AA767: 0 | AB767: 0
W768: 00:00:00 | X768: 0 | Y768: 0 | Z768: 0 | AA768: 0 | AB768: 0
W769: 00:00:00 | X769: 0 | Y769: 0 | Z769: 0 | AA769: 0 | AB769: 0
... 235 more rows

Sheet 統計
B2: 保険市町村 | F2: =MAX(記録台帳!B5:B505) -> 0 | H2: 人数 | K2: 県内 | M2: 県外 | O2: 合計 | T2: 番号 | U2: 介護度マスタ | W2: 性別マスタ | Y2: 介護者マスタ | AA2: 施設マスタ | AC2: 病院マスタ | AE2: 地域マスタ | AG2: 申込マスタ
B3: 県内 | C3: 市原市 | H3: =COUNTIF(記録台帳!$O$5:$O$505,統計!C3) -> 0 | K3: =SUM(H3:I32) -> 0 | M3: =SUM(H33:I62) -> 0 | O3: =SUM(K3:N3) -> 0 | T3: 1 | U3: 申請中 | W3: 男 | Y3: 妻 | AA3: 自宅介護 | AC3: 辰巳病院 | AE3: 市原市 | AG3: 辰巳萬緑苑
C4: 千葉市 | H4: =COUNTIF(記録台帳!$M$5:$M$505,統計!C4) -> 0 | K4: =IF(F2-O3=0,"","未登録市町村あり") ->  | T4: 2 | U4: 要支援１ | W4: 女 | Y4: 夫 | AA4: 辰巳病院 | AC4: 労災病院 | AE4: 千葉市 | AG4: ナーシング・ヴィラ
C5: 木更津市 | H5: =COUNTIF(記録台帳!$M$5:$M$505,統計!C5) -> 0 | T5: 3 | U5: 要支援２ | Y5: 長男 | AA5: 辰巳彩風苑 | AC5: 長谷川病院 | AE5: 木更津市 | AG5: 杏の里
C6: 袖ヶ浦市 | H6: =COUNTIF(記録台帳!$O$5:$O$505,統計!C6) -> 0 | T6: 4 | U6: 1 | Y6: 次男 | AA6: 辰巳ナーシング・ヴィラ | AC6: 鑓田病院 | AE6: 袖ヶ浦市 | AG6: ふるさと苑
C7: 長柄町 | H7: =COUNTIF(記録台帳!$O$5:$O$505,統計!C7) -> 0 | T7: 5 | U7: 2 | Y7: 三男 | AA7: 杏の里 | AC7: 帝京病院 | AE7: 長柄町 | AG7: 第２ふるさと苑
C8: 茂原市 | H8: =COUNTIF(記録台帳!$O$5:$O$505,統計!C8) -> 0 | T8: 6 | U8: 3 | Y8: 長女 | AA8: 労災病院 | AC8: 白金整形外科 | AE8: 茂原市 | AG8: 清流園
C9: 君津市 | H9: =COUNTIF(記録台帳!$O$5:$O$505,統計!C9) -> 0 | T9: 7 | U9: 4 | Y9: 次女 | AA9: 長谷川病院 | AC9: 辰巳台クリニック | AE9: 君津市 | AG9: あじさい苑
C10: 富津市 | H10: =COUNTIF(記録台帳!$O$5:$O$505,統計!C10) -> 0 | T10: 8 | U10: 5 | Y10: 三女 | AA10: 鑓田病院 | AC10: ケアハウス辰巳彩風苑 | AE10: 富津市 | AG10: リハパーク菊間
C11: 勝浦市 | H11: =COUNTIF(記録台帳!$O$5:$O$505,統計!C11) -> 0 | T11: 9 | Y11: 孫 | AA11: 帝京病院 | AE11: 勝浦市 | AG11: 春
C12: 船橋市 | H12: =COUNTIF(記録台帳!$O$5:$O$505,統計!C12) -> 0 | T12: 10 | Y12: 妹 | AA12: 白金整形外科 | AE12: 船橋市 | AG12: 市原園
C13: 市川市 | H13: =COUNTIF(記録台帳!$O$5:$O$505,統計!C13) -> 0 | T13: 11 | Y13: 甥 | AE13: 市川市 | AG13: トータス
C14: 松戸市 | H14: =COUNTIF(記録台帳!$O$5:$O$505,統計!C14) -> 0 | T14: 12 | Y14: 姪 | AE14: 松戸市 | AG14: クレイン
C15: 浦安市 | H15: =COUNTIF(記録台帳!$O$5:$O$505,統計!C15) -> 0 | T15: 13 | AE15: 浦安市 | AG15: なんな苑
H16: =COUNTIF(記録台帳!$O$5:$O$505,統計!C16) -> 0 | T16: 14 | AG16: ユーアイ倶楽部
H17: =COUNTIF(記録台帳!$O$5:$O$505,統計!C17) -> 0
H18: =COUNTIF(記録台帳!$O$5:$O$505,統計!C18) -> 0
H19: =COUNTIF(記録台帳!$O$5:$O$505,統計!C19) -> 0
H20: =COUNTIF(記録台帳!$O$5:$O$505,統計!C20) -> 0
H21: =COUNTIF(記録台帳!$O$5:$O$505,統計!C21) -> 0
H22: =COUNTIF(記録台帳!$O$5:$O$505,統計!C22) -> 0
H23: =COUNTIF(記録台帳!$O$5:$O$505,統計!C23) -> 0
H24: =COUNTIF(記録台帳!$O$5:$O$505,統計!C24) -> 0
H25: =COUNTIF(記録台帳!$O$5:$O$505,統計!C25) -> 0
H26: =COUNTIF(記録台帳!$O$5:$O$505,統計!C26) -> 0
H27: =COUNTIF(記録台帳!$O$5:$O$505,統計!C27) -> 0
H28: =COUNTIF(記録台帳!$O$5:$O$505,統計!C28) -> 0
H29: =COUNTIF(記録台帳!$O$5:$O$505,統計!C29) -> 0
H30: =COUNTIF(記録台帳!$O$5:$O$505,統計!C30) -> 0
H31: =COUNTIF(記録台帳!$O$5:$O$505,統計!C31) -> 0
H32: =COUNTIF(記録台帳!$O$5:$O$505,統計!C32) -> 0 | AP32: 申込日 | AQ32: 氏名 | AR32: (ﾌﾘｶﾞﾅ) | AS32: 住所 | AT32: 居住区分 | AU32: 居住施設 | AV32: 介護保険被保険者番号 | AW32: 市町村 | AX32: 近隣判定 | AY32: 認定介護度 | AZ32: 実質介護度 | BA32: 介護負担 | BB32: 問題行動 | BC32: 介護能力 | BD32: 緊急加点 | BE32: 居宅加点 | BF32: コメント | BG32: 性別
B33: 他県 | C33: 東京都 | H33: =COUNTIF(記録台帳!$O$5:$O$505,統計!C33) -> 0 | AP33: =IF(#REF!="",#REF!,#REF!) ->  | AQ33: =#REF! ->  | AR33: =#REF! ->  | AS33: =#REF! ->  | AT33: =#REF! ->  | AU33: =#REF! ->  | AV33: =#REF! ->  | AW33: =#REF! ->  | AX33: =#REF! ->  | AY33: =#REF! ->  | AZ33: =K7 -> 0 | BA33: =B7 -> 0 | BB33: =D7 -> 0 | BC33: =F7 -> 0 | BD33: =P28 -> 0 | BE33: =#REF! ->  | BF33: =N7 -> 0 | BG33: =#REF! -> 
C34: 神奈川県 | H34: =COUNTIF(記録台帳!$O$5:$O$505,統計!C34) -> 0
C35: 埼玉県 | H35: =COUNTIF(記録台帳!$O$5:$O$505,統計!C35) -> 0
C36: 茨城県 | H36: =COUNTIF(記録台帳!$O$5:$O$505,統計!C36) -> 0
C37: 群馬県 | H37: =COUNTIF(記録台帳!$O$5:$O$505,統計!C37) -> 0
C38: 栃木県 | H38: =COUNTIF(記録台帳!$O$5:$O$505,統計!C38) -> 0
H39: =COUNTIF(記録台帳!$O$5:$O$505,統計!C39) -> 0
H40: =COUNTIF(記録台帳!$O$5:$O$505,統計!C40) -> 0
H41: =COUNTIF(記録台帳!$O$5:$O$505,統計!C41) -> 0
H42: =COUNTIF(記録台帳!$O$5:$O$505,統計!C42) -> 0
H43: =COUNTIF(記録台帳!$O$5:$O$505,統計!C43) -> 0
H44: =COUNTIF(記録台帳!$O$5:$O$505,統計!C44) -> 0
H45: =COUNTIF(記録台帳!$O$5:$O$505,統計!C45) -> 0
H46: =COUNTIF(記録台帳!$O$5:$O$505,統計!C46) -> 0
H47: =COUNTIF(記録台帳!$O$5:$O$505,統計!C47) -> 0
H48: =COUNTIF(記録台帳!$O$5:$O$505,統計!C48) -> 0
H49: =COUNTIF(記録台帳!$O$5:$O$505,統計!C49) -> 0
H50: =COUNTIF(記録台帳!$O$5:$O$505,統計!C50) -> 0
H51: =COUNTIF(記録台帳!$O$5:$O$505,統計!C51) -> 0
H52: =COUNTIF(記録台帳!$O$5:$O$505,統計!C52) -> 0
H53: =COUNTIF(記録台帳!$O$5:$O$505,統計!C53) -> 0
H54: =COUNTIF(記録台帳!$O$5:$O$505,統計!C54) -> 0
H55: =COUNTIF(記録台帳!$O$5:$O$505,統計!C55) -> 0
H56: =COUNTIF(記録台帳!$O$5:$O$505,統計!C56) -> 0
H57: =COUNTIF(記録台帳!$O$5:$O$505,統計!C57) -> 0
H58: =COUNTIF(記録台帳!$O$5:$O$505,統計!C58) -> 0
H59: =COUNTIF(記録台帳!$O$5:$O$505,統計!C59) -> 0
H60: =COUNTIF(記録台帳!$O$5:$O$505,統計!C60) -> 0
H61: =COUNTIF(記録台帳!$O$5:$O$505,統計!C61) -> 0
H62: =COUNTIF(記録台帳!$O$5:$O$505,統計!C62) -> 0

Sheet 宛名印刷
H1: 印刷はじめ | L1: 印刷終わり
H2: 1 | J2: から | L2: 2 | N2: まで | Z2: 宛名印刷
B3: 印刷番号
N6: =IF(B2="",0,MID(VLOOKUP(B2,記録台帳!B4:DM505,18),1,1)) -> 0 | O6: =IF(B2="",0,MID(VLOOKUP(B2,記録台帳!B4:DM505,18),2,1)) -> 0 | P6: =IF(B2="",0,MID(VLOOKUP(B2,記録台帳!B4:DM505,18),3,1)) -> 0 | Q6: =IF(B2="",0,MID(VLOOKUP(B2,記録台帳!B4:DM505,18),5,1)) -> 0 | R6: =IF(B2="",0,MID(VLOOKUP(B2,記録台帳!B4:DM505,18),6,1)) -> 0 | S6: =IF(B2="",0,MID(VLOOKUP(B2,記録台帳!B4:DM505,18),7,1)) -> 0 | T6: =IF(B2="",0,MID(VLOOKUP(B2,記録台帳!B4:DM505,18),8,1)) -> 0 | AE6: 〒 | AF6: =IF(AB7="",0,VLOOKUP(AB7,記録台帳!$B$4:$GB$505,18)) ->  | AT6: 〒 | AU6: =IF(BJ7="",0,VLOOKUP(BJ7,記録台帳!$B$4:$GB$505,18)) -> 
AB7: 1 | AE7: =IF(AB7="","",(VLOOKUP(AB7,記録台帳!$B$4:$DM$505,19))) ->  | AT7: =IF(BJ7="","",(VLOOKUP(BJ7,記録台帳!$B$4:$DM$505,19))) ->  | BJ7: =AB32+1 -> 7
X8: =MID(W3,2,1) -> 
M9: =IF(B2="","",(VLOOKUP(B2,記録台帳!B4:DM505,19))) ->  | AE9: =IF(AB7="","",(VLOOKUP(AB7,記録台帳!$B$4:$DM$505,15))) ->  | AT9: =IF(BJ7="","",(VLOOKUP(BJ7,記録台帳!$B$4:$DM$505,15))) -> 
H10: 〒２９０－０１７８ | AO10: 様 | BD10: 様
AE11: 〒 | AF11: =IF(AB12="",0,VLOOKUP(AB12,記録台帳!$B$4:$GB$505,18)) ->  | AT11: 〒 | AU11: =IF(BJ12="",0,VLOOKUP(BJ12,記録台帳!$B$4:$GB$505,18)) -> 
J12: 市原市神崎２６３番地１ 特別養護老人ホーム辰巳萬緑苑 | M12: =IF(B2="","",(VLOOKUP(B2,記録台帳!B4:DM505,15))) ->  | AB12: =AB7+1 -> 2 | AE12: =IF(AB12="","",(VLOOKUP(AB12,記録台帳!$B$4:$DM$505,19))) ->  | AT12: =IF(BJ12="","",(VLOOKUP(BJ12,記録台帳!$B$4:$DM$505,19))) ->  | BJ12: =BJ7+1 -> 8
T13: 様
H14: ℡０４３６（７５）２２５１ | AE14: =IF(AB12="","",(VLOOKUP(AB12,記録台帳!$B$4:$DM$505,15))) ->  | AT14: =IF(BJ12="","",(VLOOKUP(BJ12,記録台帳!$B$4:$DM$505,15))) -> 
AO15: 様 | BD15: 様
AE16: 〒 | AF16: =IF(AB17="",0,VLOOKUP(AB17,記録台帳!$B$4:$GB$505,18)) ->  | AT16: 〒 | AU16: =IF(BJ17="",0,VLOOKUP(BJ17,記録台帳!$B$4:$GB$505,18)) -> 
AB17: =AB12+1 -> 3 | AE17: =IF(AB17="","",(VLOOKUP(AB17,記録台帳!$B$4:$DM$505,19))) ->  | AT17: =IF(BJ17="","",(VLOOKUP(BJ17,記録台帳!$B$4:$DM$505,19))) ->  | BJ17: =BJ12+1 -> 9
AE19: =IF(AB17="","",(VLOOKUP(AB17,記録台帳!$B$4:$DM$505,15))) ->  | AT19: =IF(BJ17="","",(VLOOKUP(BJ17,記録台帳!$B$4:$DM$505,15))) -> 
AO20: 様 | BD20: 様
AE21: 〒 | AF21: =IF(AB22="",0,VLOOKUP(AB22,記録台帳!$B$4:$GB$505,18)) ->  | AT21: 〒 | AU21: =IF(BJ22="",0,VLOOKUP(BJ22,記録台帳!$B$4:$GB$505,18)) -> 
AB22: =AB17+1 -> 4 | AE22: =IF(AB22="","",(VLOOKUP(AB22,記録台帳!$B$4:$DM$505,19))) ->  | AT22: =IF(BJ22="","",(VLOOKUP(BJ22,記録台帳!$B$4:$DM$505,19))) ->  | BJ22: =BJ17+1 -> 10
AE24: =IF(AB22="","",(VLOOKUP(AB22,記録台帳!$B$4:$DM$505,15))) ->  | AT24: =IF(BJ22="","",(VLOOKUP(BJ22,記録台帳!$B$4:$DM$505,15))) -> 
AO25: 様 | BD25: 様
AE26: 〒 | AF26: =IF(AB27="",0,VLOOKUP(AB27,記録台帳!$B$4:$GB$505,18)) ->  | AT26: 〒 | AU26: =IF(BJ27="",0,VLOOKUP(BJ27,記録台帳!$B$4:$GB$505,18)) -> 
AB27: =AB22+1 -> 5 | AE27: =IF(AB27="","",(VLOOKUP(AB27,記録台帳!$B$4:$DM$505,19))) ->  | AT27: =IF(BJ27="","",(VLOOKUP(BJ27,記録台帳!$B$4:$DM$505,19))) ->  | BJ27: =BJ22+1 -> 11
AE29: =IF(AB27="","",(VLOOKUP(AB27,記録台帳!$B$4:$DM$505,15))) ->  | AT29: =IF(BJ27="","",(VLOOKUP(BJ27,記録台帳!$B$4:$DM$505,15))) -> 
AO30: 様 | BD30: 様
AE31: 〒 | AF31: =IF(AB32="",0,VLOOKUP(AB32,記録台帳!$B$4:$GB$505,18)) ->  | AT31: 〒 | AU31: =IF(BJ32="",0,VLOOKUP(BJ32,記録台帳!$B$4:$GB$505,18)) -> 
AB32: =AB27+1 -> 6 | AE32: =IF(AB32="","",(VLOOKUP(AB32,記録台帳!$B$4:$DM$505,19))) ->  | AT32: =IF(BJ32="","",(VLOOKUP(BJ32,記録台帳!$B$4:$DM$505,19))) ->  | BJ32: =BJ27+1 -> 12
AE34: =IF(AB32="","",(VLOOKUP(AB32,記録台帳!$B$4:$DM$505,15))) ->  | AT34: =IF(BJ32="","",(VLOOKUP(BJ32,記録台帳!$B$4:$DM$505,15))) -> 
AO35: 様 | BD35: 様

Sheet 市報告書
D3: 別紙様式１
E5: 特別養護老人ホーム新規入所者及び入所申込者等調査票(市町村長あて)
B7: 年 | F7: 法人名 | H7: 社会福井法人琢心会
B8: 26 | F8: 施設名 | H8: 特別養護老人ホーム辰巳萬緑苑
F9: 作成担当者名 | H9: 小出 浩丸
B10: 月
B11: 9 | D11: ="平成"&B8&"年"&B11&"月2日から平成"&IF(B11=12,B8+1,B8)&"年"&IF(B11=12,1,B11+1)&"月1日までの貴市町村在住の新規入所者、入居申込者は以下のとおりです。" -> 平成26年9月2日から平成26年10月1日までの貴市町村在住の新規入所者、入居申込者は以下のとおりです。
D13: １ 新規入所者
A14: 削除台帳から番号記入 | D14: 氏 名 | E14: 氏名(ﾌﾘｶﾞﾅ) | F14: 住 所 | G14: 入居年月日 | I14: 介護保険被保険者番号
D15: =IF($B15="","",VLOOKUP($B15,削除台帳!$B$4:$O$505,3)) ->  | E15: =IF($B15="","",VLOOKUP($B15,削除台帳!$B$4:$O$505,4)) ->  | F15: =IF($B15="","",VLOOKUP($B15,削除台帳!$B$4:$O$505,7)) ->  | I15: =IF($B15="","",VLOOKUP($B15,削除台帳!$B$4:$O$505,11)) -> 
D16: =IF($B16="","",VLOOKUP($B16,削除台帳!$B$4:$O$505,3)) ->  | E16: =IF($B16="","",VLOOKUP($B16,削除台帳!$B$4:$O$505,4)) ->  | F16: =IF($B16="","",VLOOKUP($B16,削除台帳!$B$4:$O$505,7)) ->  | I16: =IF($B16="","",VLOOKUP($B16,削除台帳!$B$4:$O$505,11)) -> 
D17: =IF($B17="","",VLOOKUP($B17,削除台帳!$B$4:$O$505,3)) ->  | E17: =IF($B17="","",VLOOKUP($B17,削除台帳!$B$4:$O$505,4)) ->  | F17: =IF($B17="","",VLOOKUP($B17,削除台帳!$B$4:$O$505,7)) ->  | I17: =IF($B17="","",VLOOKUP($B17,削除台帳!$B$4:$O$505,11)) -> 
D18: =IF($B18="","",VLOOKUP($B18,削除台帳!$B$4:$O$505,3)) ->  | E18: =IF($B18="","",VLOOKUP($B18,削除台帳!$B$4:$O$505,4)) ->  | F18: =IF($B18="","",VLOOKUP($B18,削除台帳!$B$4:$O$505,7)) ->  | I18: =IF($B18="","",VLOOKUP($B18,削除台帳!$B$4:$O$505,11)) -> 
D19: =IF($B19="","",VLOOKUP($B19,削除台帳!$B$4:$O$505,3)) ->  | E19: =IF($B19="","",VLOOKUP($B19,削除台帳!$B$4:$O$505,4)) ->  | F19: =IF($B19="","",VLOOKUP($B19,削除台帳!$B$4:$O$505,7)) ->  | I19: =IF($B19="","",VLOOKUP($B19,削除台帳!$B$4:$O$505,11)) -> 
D21: ２ 新規入所申込者
A22: 記録台帳から番号記入 | D22: 氏 名 | E22: 氏名(ﾌﾘｶﾞﾅ) | F22: 住 所 | G22: 現在の状況 | I22: 介護保険被保険者番号
D23: =IF($B23="","",VLOOKUP($B23,記録台帳!$B$4:$O$505,5)) ->  | E23: =IF($B23="","",VLOOKUP($B23,記録台帳!$B$4:$O$505,6)) ->  | F23: =IF($B23="","",VLOOKUP($B23,記録台帳!$B$4:$O$505,9)) ->  | I23: =IF($B23="","",VLOOKUP($B23,記録台帳!$B$4:$O$505,13)) -> 
D24: =IF($B24="","",VLOOKUP($B24,記録台帳!$B$4:$O$505,5)) ->  | E24: =IF($B24="","",VLOOKUP($B24,記録台帳!$B$4:$O$505,6)) ->  | F24: =IF($B24="","",VLOOKUP($B24,記録台帳!$B$4:$O$505,9)) ->  | I24: =IF($B24="","",VLOOKUP($B24,記録台帳!$B$4:$O$505,13)) -> 
D25: =IF($B25="","",VLOOKUP($B25,記録台帳!$B$4:$O$505,5)) ->  | E25: =IF($B25="","",VLOOKUP($B25,記録台帳!$B$4:$O$505,6)) ->  | F25: =IF($B25="","",VLOOKUP($B25,記録台帳!$B$4:$O$505,9)) ->  | I25: =IF($B25="","",VLOOKUP($B25,記録台帳!$B$4:$O$505,13)) ->  | K25: 1 | L25: 居宅
D26: =IF($B26="","",VLOOKUP($B26,記録台帳!$B$4:$O$505,5)) ->  | E26: =IF($B26="","",VLOOKUP($B26,記録台帳!$B$4:$O$505,6)) ->  | F26: =IF($B26="","",VLOOKUP($B26,記録台帳!$B$4:$O$505,9)) ->  | I26: =IF($B26="","",VLOOKUP($B26,記録台帳!$B$4:$O$505,13)) ->  | K26: 2 | L26: 病院
D27: =IF($B27="","",VLOOKUP($B27,記録台帳!$B$4:$O$505,5)) ->  | E27: =IF($B27="","",VLOOKUP($B27,記録台帳!$B$4:$O$505,6)) ->  | F27: =IF($B27="","",VLOOKUP($B27,記録台帳!$B$4:$O$505,9)) ->  | I27: =IF($B27="","",VLOOKUP($B27,記録台帳!$B$4:$O$505,13)) ->  | K27: 3 | L27: 老人保健施設
D28: =IF($B28="","",VLOOKUP($B28,記録台帳!$B$4:$O$505,5)) ->  | E28: =IF($B28="","",VLOOKUP($B28,記録台帳!$B$4:$O$505,6)) ->  | F28: =IF($B28="","",VLOOKUP($B28,記録台帳!$B$4:$O$505,9)) ->  | I28: =IF($B28="","",VLOOKUP($B28,記録台帳!$B$4:$O$505,13)) ->  | K28: 4 | L28: 療養病床郡
D29: =IF($B29="","",VLOOKUP($B29,記録台帳!$B$4:$O$505,5)) ->  | E29: =IF($B29="","",VLOOKUP($B29,記録台帳!$B$4:$O$505,6)) ->  | F29: =IF($B29="","",VLOOKUP($B29,記録台帳!$B$4:$O$505,9)) ->  | I29: =IF($B29="","",VLOOKUP($B29,記録台帳!$B$4:$O$505,13)) ->  | K29: 5 | L29: 養護老人ホーム
D30: =IF($B30="","",VLOOKUP($B30,記録台帳!$B$4:$O$505,5)) ->  | E30: =IF($B30="","",VLOOKUP($B30,記録台帳!$B$4:$O$505,6)) ->  | F30: =IF($B30="","",VLOOKUP($B30,記録台帳!$B$4:$O$505,9)) ->  | I30: =IF($B30="","",VLOOKUP($B30,記録台帳!$B$4:$O$505,13)) ->  | K30: 6 | L30: その他
D31: =IF($B31="","",VLOOKUP($B31,記録台帳!$B$4:$O$505,5)) ->  | E31: =IF($B31="","",VLOOKUP($B31,記録台帳!$B$4:$O$505,6)) ->  | F31: =IF($B31="","",VLOOKUP($B31,記録台帳!$B$4:$O$505,9)) ->  | I31: =IF($B31="","",VLOOKUP($B31,記録台帳!$B$4:$O$505,13)) -> 
D32: =IF($B32="","",VLOOKUP($B32,記録台帳!$B$4:$O$505,5)) ->  | E32: =IF($B32="","",VLOOKUP($B32,記録台帳!$B$4:$O$505,6)) ->  | F32: =IF($B32="","",VLOOKUP($B32,記録台帳!$B$4:$O$505,9)) ->  | I32: =IF($B32="","",VLOOKUP($B32,記録台帳!$B$4:$O$505,13)) -> 
D33: =IF($B33="","",VLOOKUP($B33,記録台帳!$B$4:$O$505,5)) ->  | E33: =IF($B33="","",VLOOKUP($B33,記録台帳!$B$4:$O$505,6)) ->  | F33: =IF($B33="","",VLOOKUP($B33,記録台帳!$B$4:$O$505,9)) ->  | I33: =IF($B33="","",VLOOKUP($B33,記録台帳!$B$4:$O$505,13)) -> 
D34: =IF($B34="","",VLOOKUP($B34,記録台帳!$B$4:$O$505,5)) ->  | E34: =IF($B34="","",VLOOKUP($B34,記録台帳!$B$4:$O$505,6)) ->  | F34: =IF($B34="","",VLOOKUP($B34,記録台帳!$B$4:$O$505,9)) ->  | I34: =IF($B34="","",VLOOKUP($B34,記録台帳!$B$4:$O$505,13)) -> 
D35: =IF($B35="","",VLOOKUP($B35,記録台帳!$B$4:$O$505,5)) ->  | E35: =IF($B35="","",VLOOKUP($B35,記録台帳!$B$4:$O$505,6)) ->  | F35: =IF($B35="","",VLOOKUP($B35,記録台帳!$B$4:$O$505,9)) ->  | I35: =IF($B35="","",VLOOKUP($B35,記録台帳!$B$4:$O$505,13)) -> 
D36: =IF($B36="","",VLOOKUP($B36,記録台帳!$B$4:$O$505,5)) ->  | E36: =IF($B36="","",VLOOKUP($B36,記録台帳!$B$4:$O$505,6)) ->  | F36: =IF($B36="","",VLOOKUP($B36,記録台帳!$B$4:$O$505,9)) ->  | I36: =IF($B36="","",VLOOKUP($B36,記録台帳!$B$4:$O$505,13)) -> 
D37: =IF($B37="","",VLOOKUP($B37,記録台帳!$B$4:$O$505,5)) ->  | E37: =IF($B37="","",VLOOKUP($B37,記録台帳!$B$4:$O$505,6)) ->  | F37: =IF($B37="","",VLOOKUP($B37,記録台帳!$B$4:$O$505,9)) ->  | I37: =IF($B37="","",VLOOKUP($B37,記録台帳!$B$4:$O$505,13)) -> 
D39: ３ 入所申込取り下げ者
A40: 削除台帳から番号記入 | D40: 氏 名 | E40: 氏名(ﾌﾘｶﾞﾅ) | F40: 住 所 | G40: 現在の状況 | I40: 介護保険被保険者番号
D41: =IF($B41="","",VLOOKUP($B41,削除台帳!$B$4:$O$505,3)) ->  | E41: =IF($B41="","",VLOOKUP($B41,削除台帳!$B$4:$O$505,4)) ->  | F41: =IF($B41="","",VLOOKUP($B41,削除台帳!$B$4:$O$505,7)) ->  | H41: =IF($B41="","",VLOOKUP($B41,削除台帳!$B$4:$O$505,5)) ->  | I41: =IF($B41="","",VLOOKUP($B41,削除台帳!$B$4:$O$505,11)) -> 
D42: =IF($B42="","",VLOOKUP($B42,削除台帳!$B$4:$O$505,3)) ->  | E42: =IF($B42="","",VLOOKUP($B42,削除台帳!$B$4:$O$505,4)) ->  | F42: =IF($B42="","",VLOOKUP($B42,削除台帳!$B$4:$O$505,7)) ->  | H42: =IF($B42="","",VLOOKUP($B42,削除台帳!$B$4:$O$505,5)) ->  | I42: =IF($B42="","",VLOOKUP($B42,削除台帳!$B$4:$O$505,11)) -> 
D43: =IF($B43="","",VLOOKUP($B43,削除台帳!$B$4:$O$505,3)) ->  | E43: =IF($B43="","",VLOOKUP($B43,削除台帳!$B$4:$O$505,4)) ->  | F43: =IF($B43="","",VLOOKUP($B43,削除台帳!$B$4:$O$505,7)) ->  | H43: =IF($B43="","",VLOOKUP($B43,削除台帳!$B$4:$O$505,5)) ->  | I43: =IF($B43="","",VLOOKUP($B43,削除台帳!$B$4:$O$505,11)) -> 
D44: =IF($B44="","",VLOOKUP($B44,削除台帳!$B$4:$O$505,3)) ->  | E44: =IF($B44="","",VLOOKUP($B44,削除台帳!$B$4:$O$505,4)) ->  | F44: =IF($B44="","",VLOOKUP($B44,削除台帳!$B$4:$O$505,7)) ->  | H44: =IF($B44="","",VLOOKUP($B44,削除台帳!$B$4:$O$505,5)) ->  | I44: =IF($B44="","",VLOOKUP($B44,削除台帳!$B$4:$O$505,11)) -> 
D45: =IF($B45="","",VLOOKUP($B45,削除台帳!$B$4:$O$505,3)) ->  | E45: =IF($B45="","",VLOOKUP($B45,削除台帳!$B$4:$O$505,4)) ->  | F45: =IF($B45="","",VLOOKUP($B45,削除台帳!$B$4:$O$505,7)) ->  | H45: =IF($B45="","",VLOOKUP($B45,削除台帳!$B$4:$O$505,5)) ->  | I45: =IF($B45="","",VLOOKUP($B45,削除台帳!$B$4:$O$505,11)) -> 
D46: 注2） 上表の２及び３中「現在の状況」欄は入所希望者及び申し込み取り下げ者が１－居宅、２－病院
D47: ３－介護老人保健施設、4－療養型病床群、５－養護老人ホーム、６－その他、のうちいずれの状況
D48: にあるかを番号で記入してください。
D49: 注３) 表3の入所申し込み取り下げ者については、15年4月1日から運用されている入所指針に基づき、
D50: 入所待機者順位名簿作成のための調査を行ったところ、入所を取り下げた者を含めて記載してください。
